Inv Transaction,Supplier Name,Headserv Name,Stratdir Name,Account Description,Paid Date,Sum of Inv Amount,Proclass,merchant
3250833,RESG BUS AND COACH LTD,Operations and Neighbourhoods,Operations and Neighbourhoods,Sub-contractor Services,02/03/22,748.90 ,-999999,Unclassifiable
460439,St Christopher�s Trust,Adult Social Care,Adults,Nursing Home Long Stay Fees,06/01/22,"10,032.00 ",321017,Social Community Care Supplies & Services - Adult
460440,St Christopher�s Trust,Adult Social Care,Adults,Nursing Home Long Stay Fees,06/01/22,"3,960.00 ",321017,Social Community Care Supplies & Services - Adult
470938,DIAMOND DECORATORS UK LTD,Operations and Neighbourhoods,Operations and Neighbourhoods,Sub-contractor Services,02/02/22,"3,582.74 ",100000,Building Construction Materials
32000062,Redacted Supplier,Multiple Heads of Service,Multiple Strategic Directorates,Section 52 School Cash Advances,04/01/22,"9,209.40 ",171011,Education
32000062,Redacted Supplier,Education,Children's Services,Under 5'S Education Private Day Nursery Fees,04/01/22,"26,435.03 ",321000,Social Community Care Supplies & Services - Adult
32000062,Redacted Supplier,Multiple Heads of Service,Multiple Strategic Directorates,Section 52 School Cash Advances,04/01/22,"22,501.46 ",171011,Education
32000062,Redacted Supplier,Education,Children's Services,Under 5'S Education Private Day Nursery Fees,04/01/22,"44,453.93 ",170000,Education
32000062,Redacted Supplier,Multiple Heads of Service,Multiple Strategic Directorates,Section 52 School Cash Advances,04/01/22,"7,449.75 ",171011,Education
32000062,Redacted Supplier,Education,Children's Services,Under 5'S Education Private Day Nursery Fees,04/01/22,"16,038.00 ",321100,Social Community Care Supplies & Services - Children
32000062,Redacted Supplier,Education,Children's Services,Under 5'S Education Private Day Nursery Fees,04/01/22,"16,130.82 ",321100,Social Community Care Supplies & Services - Children
32000062,Redacted Supplier,Multiple Heads of Service,Multiple Strategic Directorates,Section 52 School Cash Advances,04/01/22,"14,701.50 ",171011,Education
32000062,Redacted Supplier,Multiple Heads of Service,Multiple Strategic Directorates,Section 52 School Cash Advances,04/01/22,"27,916.80 ",908001,Public Bodies
32000062,Redacted Supplier,Multiple Heads of Service,Multiple Strategic Directorates,Section 52 School Cash Advances,04/01/22,"13,457.81 ",171011,Education
32000062,Redacted Supplier,Multiple Heads of Service,Multiple Strategic Directorates,Section 52 School Cash Advances,04/01/22,"8,624.27 ",171011,Education
32000062,Redacted Supplier,Education,Children's Services,Under 5'S Education Private Day Nursery Fees,04/01/22,"19,213.43 ",171011,Education
32000062,Redacted Supplier,Multiple Heads of Service,Multiple Strategic Directorates,Section 52 School Cash Advances,04/01/22,"8,960.70 ",171011,Education
32000062,Redacted Supplier,Education,Children's Services,Under 5'S Education Private Day Nursery Fees,04/01/22,"45,363.00 ",170000,Education
32000062,Redacted Supplier,Education,Children's Services,Under 5'S Education Private Day Nursery Fees,04/01/22,"2,512.13 ",200000,Financial Services
32000062,Redacted Supplier,Education,Children's Services,Under 5'S Education Private Day Nursery Fees,04/01/22,"1,064.25 ",-999999,Unclassifiable
32000062,Redacted Supplier,Education,Children's Services,Under 5'S Education Private Day Nursery Fees,04/01/22,"9,557.84 ",170000,Education
32000062,Redacted Supplier,Education,Children's Services,Under 5'S Education Private Day Nursery Fees,04/01/22,"20,202.19 ",321100,Social Community Care Supplies & Services - Children
32000062,Redacted Supplier,Education,Children's Services,Under 5'S Education Private Day Nursery Fees,04/01/22,"25,491.63 ",170000,Education
32000062,Redacted Supplier,Education,Children's Services,Under 5'S Education Private Day Nursery Fees,04/01/22,"52,345.88 ",321100,Social Community Care Supplies & Services - Children
32000062,Redacted Supplier,Education,Children's Services,Under 5'S Education Private Day Nursery Fees,04/01/22,"33,455.63 ",170000,Education
32000062,Redacted Supplier,Education,Children's Services,Under 5'S Education Private Day Nursery Fees,04/01/22,"2,400.75 ",-999999,Unclassifiable
32000062,Redacted Supplier,Education,Children's Services,Under 5'S Education Private Day Nursery Fees,04/01/22,"2,128.50 ",-999999,Unclassifiable
32000062,Redacted Supplier,Education,Children's Services,Under 5'S Education Private Day Nursery Fees,04/01/22,"35,443.69 ",140000,Clothing
32000062,Redacted Supplier,Education,Children's Services,Under 5'S Education Private Day Nursery Fees,04/01/22,"31,267.76 ",171011,Education
32000062,Redacted Supplier,Education,Children's Services,Under 5'S Education Private Day Nursery Fees,04/01/22,"38,152.13 ",321100,Social Community Care Supplies & Services - Children
32000062,Redacted Supplier,Education,Children's Services,Under 5'S Education Private Day Nursery Fees,04/01/22,"4,356.00 ",-999999,Unclassifiable
32000062,Redacted Supplier,Education,Children's Services,Under 5'S Education Private Day Nursery Fees,04/01/22,"16,271.88 ",321100,Social Community Care Supplies & Services - Children
32000062,Redacted Supplier,Education,Children's Services,Under 5'S Education Private Day Nursery Fees,04/01/22,"20,183.63 ",321100,Social Community Care Supplies & Services - Children
32000062,Redacted Supplier,Education,Children's Services,Under 5'S Education Private Day Nursery Fees,04/01/22,"29,452.50 ",321100,Social Community Care Supplies & Services - Children
32000062,Redacted Supplier,Education,Children's Services,Under 5'S Education Private Day Nursery Fees,04/01/22,532.13 ,-999999,Unclassifiable
32000062,Redacted Supplier,Education,Children's Services,Under 5'S Education Private Day Nursery Fees,04/01/22,"51,121.13 ",321100,Social Community Care Supplies & Services - Children
32000062,Redacted Supplier,Individual Schools Budget,Children's Services,Section 251 Budget,04/01/22,"26,680.50 ",908001,Public Bodies
32000062,Redacted Supplier,Education,Children's Services,Under 5'S Education Private Day Nursery Fees,04/01/22,"18,177.00 ",908001,Public Bodies
32000062,Redacted Supplier,Education,Children's Services,Under 5'S Education Private Day Nursery Fees,04/01/22,"17,238.38 ",171011,Education
32000062,Redacted Supplier,Education,Children's Services,Under 5'S Education Private Day Nursery Fees,04/01/22,"17,853.42 ",321100,Social Community Care Supplies & Services - Children
32000062,Redacted Supplier,Education,Children's Services,Under 5'S Education Private Day Nursery Fees,04/01/22,"38,842.65 ",171011,Education
32000062,Redacted Supplier,Education,Children's Services,Under 5'S Education Private Day Nursery Fees,04/01/22,"48,418.66 ",321100,Social Community Care Supplies & Services - Children
32000062,Redacted Supplier,Education,Children's Services,Under 5'S Education Private Day Nursery Fees,04/01/22,"1,596.38 ",-999999,Unclassifiable
32000062,Redacted Supplier,Education,Children's Services,Under 5'S Education Private Day Nursery Fees,04/01/22,"33,759.01 ",171011,Education
32000062,Redacted Supplier,Education,Children's Services,Under 5'S Education Private Day Nursery Fees,04/01/22,"17,104.21 ",-999999,Unclassifiable
32000062,Redacted Supplier,Education,Children's Services,Under 5'S Education Private Day Nursery Fees,04/01/22,"64,755.38 ",171011,Education
32000062,Redacted Supplier,Education,Children's Services,Under 5'S Education Private Day Nursery Fees,04/01/22,"1,188.01 ",-999999,Unclassifiable
32000062,Redacted Supplier,Education,Children's Services,Under 5'S Education Private Day Nursery Fees,04/01/22,"39,160.25 ",171011,Education
32000062,Redacted Supplier,Education,Children's Services,Under 5'S Education Private Day Nursery Fees,04/01/22,"11,313.23 ",-999999,Unclassifiable
32000062,Redacted Supplier,Education,Children's Services,Under 5'S Education Private Day Nursery Fees,04/01/22,"1,188.01 ",-999999,Unclassifiable
32000062,Redacted Supplier,Individual Schools Budget,Children's Services,Section 251 Budget,04/01/22,"21,235.50 ",170000,Education
32000062,Redacted Supplier,Individual Schools Budget,Children's Services,Section 251 Budget,04/01/22,"27,626.25 ",170000,Education
32000062,Redacted Supplier,Education,Children's Services,Under 5'S Education Private Day Nursery Fees,04/01/22,532.13 ,-999999,Unclassifiable
32000062,Redacted Supplier,Education,Children's Services,Under 5'S Education Private Day Nursery Fees,04/01/22,"65,121.19 ",171011,Education
32000062,Redacted Supplier,Individual Schools Budget,Children's Services,Section 251 Budget,04/01/22,"20,752.88 ",170000,Education
32000062,Redacted Supplier,Individual Schools Budget,Children's Services,Section 251 Budget,04/01/22,"15,246.00 ",170000,Education
32000062,Redacted Supplier,Individual Schools Budget,Children's Services,Section 251 Budget,04/01/22,"40,837.50 ",170000,Education
32000062,Redacted Supplier,Education,Children's Services,Under 5'S Education Private Day Nursery Fees,04/01/22,"57,433.88 ",171011,Education
32000062,Redacted Supplier,Education,Children's Services,Under 5'S Education Private Day Nursery Fees,04/01/22,"34,058.28 ",171011,Education
32000062,Redacted Supplier,Education,Children's Services,Under 5'S Education Private Day Nursery Fees,04/01/22,"2,178.00 ",-999999,Unclassifiable
32000062,Redacted Supplier,Individual Schools Budget,Children's Services,Section 251 Budget,04/01/22,"37,248.75 ",170000,Education
32000062,Redacted Supplier,Individual Schools Budget,Children's Services,Section 251 Budget,04/01/22,"21,532.50 ",170000,Education
32000062,Redacted Supplier,Education,Children's Services,Under 5'S Education Private Day Nursery Fees,04/01/22,"53,732.25 ",170000,Education
32000062,Redacted Supplier,Education,Children's Services,Under 5'S Education Private Day Nursery Fees,04/01/22,"4,281.98 ",-999999,Unclassifiable
32000062,Redacted Supplier,Education,Children's Services,Under 5'S Education Private Day Nursery Fees,04/01/22,"1,076.63 ",-999999,Unclassifiable
32000062,Redacted Supplier,Education,Children's Services,Under 5'S Education Private Day Nursery Fees,04/01/22,538.31 ,321100,Social Community Care Supplies & Services - Children
32000062,Redacted Supplier,Education,Children's Services,Under 5'S Education Private Day Nursery Fees,04/01/22,"15,811.65 ",321100,Social Community Care Supplies & Services - Children
32000062,Redacted Supplier,Education,Children's Services,Under 5'S Education Private Day Nursery Fees,04/01/22,532.13 ,170000,Education
32000062,Redacted Supplier,Individual Schools Budget,Children's Services,Section 251 Budget,04/01/22,"8,712.00 ",170000,Education
32000062,Redacted Supplier,Education,Children's Services,Under 5'S Education Private Day Nursery Fees,04/01/22,"51,721.89 ",321100,Social Community Care Supplies & Services - Children
32000062,Redacted Supplier,Individual Schools Budget,Children's Services,Section 251 Budget,04/01/22,"10,766.25 ",170000,Education
32000062,Redacted Supplier,Individual Schools Budget,Children's Services,Section 251 Budget,04/01/22,"10,345.50 ",170000,Education
32000062,Redacted Supplier,Education,Children's Services,Under 5'S Education Private Day Nursery Fees,04/01/22,"4,752.00 ",-999999,Unclassifiable
32000062,Redacted Supplier,Multiple Heads of Service,Multiple Strategic Directorates,Section 52 School Cash Advances,04/01/22,"10,345.50 ",171011,Education
32000062,Redacted Supplier,Multiple Heads of Service,Multiple Strategic Directorates,Section 52 School Cash Advances,04/01/22,"19,917.56 ",171011,Education
32000062,Redacted Supplier,Multiple Heads of Service,Multiple Strategic Directorates,Section 52 School Cash Advances,04/01/22,"22,609.13 ",171011,Education
32000062,Redacted Supplier,Multiple Heads of Service,Multiple Strategic Directorates,Section 52 School Cash Advances,04/01/22,"23,945.63 ",171011,Education
32000062,Redacted Supplier,Multiple Heads of Service,Multiple Strategic Directorates,Section 52 School Cash Advances,04/01/22,"25,300.69 ",171011,Education
32000062,Redacted Supplier,Multiple Heads of Service,Multiple Strategic Directorates,Section 52 School Cash Advances,04/01/22,"22,881.38 ",171011,Education
32000062,Redacted Supplier,Multiple Heads of Service,Multiple Strategic Directorates,Section 52 School Cash Advances,04/01/22,"10,081.35 ",171011,Education
32000062,Redacted Supplier,Multiple Heads of Service,Multiple Strategic Directorates,Section 52 School Cash Advances,04/01/22,"21,285.00 ",171011,Education
32000062,Redacted Supplier,Multiple Heads of Service,Multiple Strategic Directorates,Section 52 School Cash Advances,04/01/22,"30,492.00 ",171011,Education
32000062,Redacted Supplier,Multiple Heads of Service,Multiple Strategic Directorates,Section 52 School Cash Advances,04/01/22,"25,542.00 ",171011,Education
32000062,Redacted Supplier,Multiple Heads of Service,Multiple Strategic Directorates,Section 52 School Cash Advances,04/01/22,"13,996.13 ",171011,Education
32000062,Redacted Supplier,Multiple Heads of Service,Multiple Strategic Directorates,Section 52 School Cash Advances,04/01/22,"14,534.44 ",171011,Education
32000062,Redacted Supplier,Multiple Heads of Service,Multiple Strategic Directorates,Section 52 School Cash Advances,04/01/22,"26,074.13 ",171011,Education
32000062,Redacted Supplier,Multiple Heads of Service,Multiple Strategic Directorates,Section 52 School Cash Advances,04/01/22,"38,220.19 ",171011,Education
32000062,Redacted Supplier,Multiple Heads of Service,Multiple Strategic Directorates,Section 52 School Cash Advances,04/01/22,"31,036.50 ",171011,Education
32000062,Redacted Supplier,Multiple Heads of Service,Multiple Strategic Directorates,Section 52 School Cash Advances,04/01/22,"20,146.50 ",171011,Education
32000062,Redacted Supplier,Individual Schools Budget,Children's Services,Section 251 Budget,04/01/22,"23,685.75 ",171011,Education
32000062,Redacted Supplier,Multiple Heads of Service,Multiple Strategic Directorates,Section 52 School Cash Advances,04/01/22,"10,890.00 ",171011,Education
32000062,Redacted Supplier,Multiple Heads of Service,Multiple Strategic Directorates,Section 52 School Cash Advances,04/01/22,"6,583.50 ",171011,Education
32000062,Redacted Supplier,Individual Schools Budget,Children's Services,Section 251 Budget,04/01/22,"15,072.75 ",171011,Education
32000062,Redacted Supplier,Multiple Heads of Service,Multiple Strategic Directorates,Section 52 School Cash Advances,04/01/22,"26,915.63 ",171011,Education
32000062,Redacted Supplier,Multiple Heads of Service,Multiple Strategic Directorates,Section 52 School Cash Advances,04/01/22,"13,835.25 ",171011,Education
32000062,Redacted Supplier,Multiple Heads of Service,Multiple Strategic Directorates,Section 52 School Cash Advances,04/01/22,"11,174.63 ",171011,Education
32000062,Redacted Supplier,Education,Children's Services,Under 5'S Education Private Day Nursery Fees,04/01/22,"12,310.66 ",400000,Non 3rd Party spend  
32000062,Redacted Supplier,Education,Children's Services,Under 5'S Education Private Day Nursery Fees,04/01/22,"17,255.63 ",321100,Social Community Care Supplies & Services - Children
32000062,Redacted Supplier,Education,Children's Services,Under 5'S Education Private Day Nursery Fees,04/01/22,"25,278.75 ",170000,Education
32000062,Redacted Supplier,Education,Children's Services,Under 5'S Education Private Day Nursery Fees,04/01/22,"54,029.25 ",170000,Education
32000062,Redacted Supplier,Education,Children's Services,Under 5'S Education Private Day Nursery Fees,04/01/22,"14,716.21 ",321000,Social Community Care Supplies & Services - Adult
32000062,Redacted Supplier,Education,Children's Services,Under 5'S Education Private Day Nursery Fees,04/01/22,"14,515.88 ",170000,Education
32000062,Redacted Supplier,Multiple Heads of Service,Multiple Strategic Directorates,Section 52 School Cash Advances,04/01/22,"15,450.98 ",171011,Education
32000062,Redacted Supplier,Individual Schools Budget,Children's Services,Section 251 Budget,04/01/22,"25,300.69 ",171011,Education
32000062,Redacted Supplier,Multiple Heads of Service,Multiple Strategic Directorates,Section 52 School Cash Advances,04/01/22,"12,861.30 ",171011,Education
32000062,Redacted Supplier,Individual Schools Budget,Children's Services,Section 251 Budget,04/01/22,"22,988.25 ",171011,Education
32000062,Redacted Supplier,Individual Schools Budget,Children's Services,Section 251 Budget,04/01/22,"31,608.23 ",179999,Education
32000062,Redacted Supplier,Multiple Heads of Service,Multiple Strategic Directorates,Section 52 School Cash Advances,04/01/22,"24,762.38 ",171011,Education
32000062,Redacted Supplier,Multiple Heads of Service,Multiple Strategic Directorates,Section 52 School Cash Advances,04/01/22,"13,515.98 ",171011,Education
32000062,Redacted Supplier,Education,Children's Services,Under 5'S Education Private Day Nursery Fees,04/01/22,"17,091.11 ",170000,Education
32000062,Redacted Supplier,Education,Children's Services,Under 5'S Education Private Day Nursery Fees,04/01/22,"17,750.63 ",321100,Social Community Care Supplies & Services - Children
32000062,Redacted Supplier,Education,Children's Services,Under 5'S Education Private Day Nursery Fees,04/01/22,"3,378.38 ",400000,Non 3rd Party spend  
32000062,Redacted Supplier,Education,Children's Services,Under 5'S Education Private Day Nursery Fees,04/01/22,"6,459.75 ",171011,Education
32000062,Redacted Supplier,Education,Children's Services,Under 5'S Education Private Day Nursery Fees,04/01/22,"37,272.31 ",170000,Education
32000062,Redacted Supplier,Education,Children's Services,Under 5'S Education Private Day Nursery Fees,04/01/22,"39,513.83 ",170000,Education
32000062,Redacted Supplier,Education,Children's Services,Under 5'S Education Private Day Nursery Fees,04/01/22,"47,576.25 ",170000,Education
32000062,Redacted Supplier,Education,Children's Services,Under 5'S Education Private Day Nursery Fees,04/01/22,"16,737.19 ",170000,Education
32000062,Redacted Supplier,Education,Children's Services,Under 5'S Education Private Day Nursery Fees,04/01/22,"35,862.75 ",170000,Education
32000062,Redacted Supplier,Education,Children's Services,Under 5'S Education Private Day Nursery Fees,04/01/22,"33,239.25 ",170000,Education
32000062,Redacted Supplier,Education,Children's Services,Under 5'S Education Private Day Nursery Fees,04/01/22,"29,485.88 ",170000,Education
32000062,Redacted Supplier,Education,Children's Services,Under 5'S Education Private Day Nursery Fees,04/01/22,"76,432.88 ",171011,Education
32000062,Redacted Supplier,Education,Children's Services,Under 5'S Education Private Day Nursery Fees,04/01/22,"22,266.75 ",321100,Social Community Care Supplies & Services - Children
32000062,Redacted Supplier,Education,Children's Services,Under 5'S Education Private Day Nursery Fees,04/01/22,"32,750.44 ",171011,Education
32000062,Redacted Supplier,Education,Children's Services,Under 5'S Education Private Day Nursery Fees,04/01/22,544.50 ,-999999,Unclassifiable
32000062,Redacted Supplier,Education,Children's Services,Under 5'S Education Private Day Nursery Fees,04/01/22,"17,319.49 ",400000,Non 3rd Party spend  
32000062,Redacted Supplier,Individual Schools Budget,Children's Services,Section 251 Budget,04/01/22,"27,992.25 ",321100,Social Community Care Supplies & Services - Children
32000062,Redacted Supplier,Individual Schools Budget,Children's Services,Section 251 Budget,04/01/22,"21,532.50 ",321100,Social Community Care Supplies & Services - Children
32000062,Redacted Supplier,Education,Children's Services,Under 5'S Education Private Day Nursery Fees,04/01/22,"3,267.00 ",321100,Social Community Care Supplies & Services - Children
32000062,Redacted Supplier,Education,Children's Services,Under 5'S Education Private Day Nursery Fees,04/01/22,"9,671.07 ",321100,Social Community Care Supplies & Services - Children
32000062,Redacted Supplier,Individual Schools Budget,Children's Services,Section 251 Budget,04/01/22,"23,318.25 ",170000,Education
32000062,Redacted Supplier,Individual Schools Budget,Children's Services,Section 251 Budget,04/01/22,"7,536.38 ",170000,Education
32000062,Redacted Supplier,Individual Schools Budget,Children's Services,Section 251 Budget,04/01/22,"14,701.50 ",170000,Education
32000062,Redacted Supplier,Education,Children's Services,Under 5'S Education Private Day Nursery Fees,04/01/22,"4,578.75 ",321100,Social Community Care Supplies & Services - Children
32000062,Redacted Supplier,Education,Children's Services,Under 5'S Education Private Day Nursery Fees,04/01/22,"5,160.38 ",321100,Social Community Care Supplies & Services - Children
32000062,Redacted Supplier,Education,Children's Services,Under 5'S Education Private Day Nursery Fees,04/01/22,655.88 ,-999999,Unclassifiable
32000062,Redacted Supplier,Education,Children's Services,Under 5'S Education Private Day Nursery Fees,04/01/22,655.88 ,-999999,Unclassifiable
32000062,Redacted Supplier,Education,Children's Services,Under 5'S Education Private Day Nursery Fees,04/01/22,"1,744.88 ",400000,Non 3rd Party spend  
32000062,Redacted Supplier,Education,Children's Services,Under 5'S Education Private Day Nursery Fees,04/01/22,"29,471.06 ",400000,Non 3rd Party spend  
32000062,Redacted Supplier,Education,Children's Services,Under 5'S Education Private Day Nursery Fees,04/01/22,532.13 ,-999999,Unclassifiable
32000062,Redacted Supplier,Education,Children's Services,Under 5'S Education Private Day Nursery Fees,04/01/22,"2,248.50 ",-999999,Unclassifiable
32000062,Redacted Supplier,Individual Schools Budget,Children's Services,Section 251 Budget,04/01/22,"20,994.19 ",170000,Education
32000062,Redacted Supplier,Education,Children's Services,Under 5'S Education Private Day Nursery Fees,04/01/22,"29,241.23 ",170000,Education
32000062,Redacted Supplier,Individual Schools Budget,Children's Services,Section 251 Budget,04/01/22,"15,431.63 ",170000,Education
32000062,Redacted Supplier,Education,Children's Services,Under 5'S Education Private Day Nursery Fees,04/01/22,"1,596.38 ",400000,Non 3rd Party spend  
32000062,Redacted Supplier,Education,Children's Services,Under 5'S Education Private Day Nursery Fees,04/01/22,"1,089.00 ",400000,Non 3rd Party spend  
32000062,Redacted Supplier,Education,Children's Services,Under 5'S Education Private Day Nursery Fees,04/01/22,"3,922.88 ",400000,Non 3rd Party spend  
32000062,Redacted Supplier,Education,Children's Services,Under 5'S Education Private Day Nursery Fees,04/01/22,538.31 ,-999999,Unclassifiable
32000062,Redacted Supplier,Education,Children's Services,Under 5'S Education Private Day Nursery Fees,04/01/22,"4,369.88 ",-999999,Unclassifiable
32000062,Redacted Supplier,Education,Children's Services,Under 5'S Education Private Day Nursery Fees,04/01/22,"5,321.25 ",-999999,Unclassifiable
32000062,Redacted Supplier,Education,Children's Services,Under 5'S Education Private Day Nursery Fees,04/01/22,"4,356.00 ",400000,Non 3rd Party spend  
32000062,Redacted Supplier,Individual Schools Budget,Children's Services,Section 251 Budget,04/01/22,"5,445.00 ",170000,Education
32000062,Redacted Supplier,Education,Children's Services,Under 5'S Education Private Day Nursery Fees,04/01/22,"1,064.25 ",-999999,Unclassifiable
32000062,Redacted Supplier,Education,Children's Services,Under 5'S Education Private Day Nursery Fees,04/01/22,"1,089.00 ",400000,Non 3rd Party spend  
32000062,Redacted Supplier,Education,Children's Services,Under 5'S Education Private Day Nursery Fees,04/01/22,"15,109.88 ",-999999,Unclassifiable
32000062,Redacted Supplier,Education,Children's Services,Under 5'S Education Private Day Nursery Fees,04/01/22,532.13 ,-999999,Unclassifiable
32000062,Redacted Supplier,Multiple Heads of Service,Multiple Strategic Directorates,Section 52 School Cash Advances,04/01/22,"25,300.69 ",171011,Education
32000062,Redacted Supplier,Individual Schools Budget,Children's Services,Section 251 Budget,04/01/22,"11,434.50 ",EDUCATION,Education
32000062,Redacted Supplier,Education,Children's Services,Under 5'S Education Private Day Nursery Fees,04/01/22,"13,064.07 ",400000,Non 3rd Party spend  
32000062,Redacted Supplier,Individual Schools Budget,Children's Services,Section 251 Budget,04/01/22,"14,157.00 ",171011,Education
32000062,Redacted Supplier,Education,Children's Services,Under 5'S Education Private Day Nursery Fees,04/01/22,"2,128.50 ",400000,Non 3rd Party spend  
32000062,Redacted Supplier,Education,Children's Services,Under 5'S Education Private Day Nursery Fees,04/01/22,"25,752.38 ",400000,Non 3rd Party spend  
32000062,Redacted Supplier,Education,Children's Services,Under 5'S Education Private Day Nursery Fees,04/01/22,"1,188.01 ",400000,Non 3rd Party spend  
32000062,Redacted Supplier,Education,Children's Services,Under 5'S Education Private Day Nursery Fees,04/01/22,532.13 ,-999999,Unclassifiable
32000062,Redacted Supplier,Education,Children's Services,Under 5'S Education Private Day Nursery Fees,04/01/22,"2,660.63 ",-999999,Unclassifiable
32000062,Redacted Supplier,Education,Children's Services,Under 5'S Education Private Day Nursery Fees,04/01/22,"1,311.75 ",400000,Non 3rd Party spend  
32000062,Redacted Supplier,Education,Children's Services,Under 5'S Education Private Day Nursery Fees,04/01/22,"2,252.26 ",-999999,Unclassifiable
32000062,Redacted Supplier,Education,Children's Services,Under 5'S Education Private Day Nursery Fees,04/01/22,655.88 ,400000,Non 3rd Party spend  
32000062,Redacted Supplier,Education,Children's Services,Under 5'S Education Private Day Nursery Fees,04/01/22,"2,614.50 ",400000,Non 3rd Party spend  
32000062,Redacted Supplier,Education,Children's Services,Under 5'S Education Private Day Nursery Fees,04/01/22,"21,582.01 ",170000,Education
32000062,Redacted Supplier,Education,Children's Services,Under 5'S Education Private Day Nursery Fees,04/01/22,532.13 ,-999999,Unclassifiable
32000062,Redacted Supplier,Education,Children's Services,Under 5'S Education Private Day Nursery Fees,04/01/22,"1,188.01 ",-999999,Unclassifiable
32000062,Redacted Supplier,Education,Children's Services,Under 5'S Education Private Day Nursery Fees,04/01/22,"14,825.25 ",170000,Education
32000062,Redacted Supplier,Education,Children's Services,Under 5'S Education Private Day Nursery Fees,04/01/22,"49,889.81 ",171011,Education
32000062,Redacted Supplier,Education,Children's Services,Under 5'S Education Private Day Nursery Fees,04/01/22,532.13 ,400000,Non 3rd Party spend  
32000062,Redacted Supplier,Education,Children's Services,Under 5'S Education Private Day Nursery Fees,04/01/22,"1,064.25 ",400000,Non 3rd Party spend  
32000062,Redacted Supplier,Education,Children's Services,Under 5'S Education Private Day Nursery Fees,04/01/22,"1,064.25 ",400000,Non 3rd Party spend  
32000062,Redacted Supplier,Education,Children's Services,Under 5'S Education Private Day Nursery Fees,04/01/22,"2,784.38 ",-999999,Unclassifiable
32000062,Redacted Supplier,Education,Children's Services,Under 5'S Education Private Day Nursery Fees,04/01/22,"1,596.38 ",-999999,Unclassifiable
32000062,Redacted Supplier,Education,Children's Services,Under 5'S Education Private Day Nursery Fees,04/01/22,655.88 ,-999999,Unclassifiable
32000062,Redacted Supplier,Education,Children's Services,Under 5'S Education Private Day Nursery Fees,04/01/22,"2,376.00 ",400000,Non 3rd Party spend  
32000062,Redacted Supplier,Education,Children's Services,Under 5'S Education Private Day Nursery Fees,04/01/22,"1,720.13 ",400000,Non 3rd Party spend  
32000062,Redacted Supplier,Education,Children's Services,Under 5'S Education Private Day Nursery Fees,04/01/22,"1,206.15 ",-999999,Unclassifiable
32000062,Redacted Supplier,Education,Children's Services,Under 5'S Education Private Day Nursery Fees,04/01/22,532.13 ,-999999,Unclassifiable
32000062,Redacted Supplier,Education,Children's Services,Under 5'S Education Private Day Nursery Fees,04/01/22,"1,064.25 ",321100,Social Community Care Supplies & Services - Children
32000062,Redacted Supplier,Education,Children's Services,Under 5'S Education Private Day Nursery Fees,04/01/22,"1,613.71 ",400000,Non 3rd Party spend  
32000062,Redacted Supplier,Education,Children's Services,Under 5'S Education Private Day Nursery Fees,04/01/22,"1,983.38 ",400000,Non 3rd Party spend  
32000062,Redacted Supplier,Education,Children's Services,Under 5'S Education Private Day Nursery Fees,04/01/22,"1,081.58 ",400000,Non 3rd Party spend  
32000062,Redacted Supplier,Education,Children's Services,Under 5'S Education Private Day Nursery Fees,04/01/22,"23,426.71 ",400000,Non 3rd Party spend  
32000062,Redacted Supplier,Education,Children's Services,Under 5'S Education Private Day Nursery Fees,04/01/22,"1,064.25 ",400000,Non 3rd Party spend  
32000062,Redacted Supplier,Education,Children's Services,Under 5'S Education Private Day Nursery Fees,04/01/22,532.13 ,400000,Non 3rd Party spend  
32000062,Redacted Supplier,Education,Children's Services,Under 5'S Education Private Day Nursery Fees,04/01/22,532.13 ,-999999,Unclassifiable
32000062,Redacted Supplier,Education,Children's Services,Under 5'S Education Private Day Nursery Fees,04/01/22,532.13 ,400000,Non 3rd Party spend  
32000062,Redacted Supplier,Education,Children's Services,Under 5'S Education Private Day Nursery Fees,04/01/22,"1,596.38 ",400000,Non 3rd Party spend  
32000062,Redacted Supplier,Education,Children's Services,Under 5'S Education Private Day Nursery Fees,04/01/22,532.13 ,400000,Non 3rd Party spend  
32000062,Redacted Supplier,Education,Children's Services,Under 5'S Education Private Day Nursery Fees,04/01/22,655.88 ,-999999,Unclassifiable
32000062,Redacted Supplier,Education,Children's Services,Under 5'S Education Private Day Nursery Fees,04/01/22,"1,744.88 ",321100,Social Community Care Supplies & Services - Children
32000062,Redacted Supplier,Education,Children's Services,Under 5'S Education Private Day Nursery Fees,04/01/22,"35,089.31 ",170000,Education
32000062,Redacted Supplier,Individual Schools Budget,Children's Services,Section 251 Budget,04/01/22,"35,790.75 ",400000,Non 3rd Party spend  
32000062,Redacted Supplier,Education,Children's Services,Under 5'S Education Private Day Nursery Fees,04/01/22,"1,064.25 ",400000,Non 3rd Party spend  
32000062,Redacted Supplier,Individual Schools Budget,Children's Services,Section 251 Budget,04/01/22,"3,334.23 ",170000,Education
32000062,Redacted Supplier,Education,Children's Services,Under 5'S Education Private Day Nursery Fees,04/01/22,655.88 ,400000,Non 3rd Party spend  
32000062,Redacted Supplier,Multiple Heads of Service,Multiple Strategic Directorates,Section 52 School Cash Advances,04/01/22,"23,774.55 ",171011,Education
32000062,Redacted Supplier,Education,Children's Services,Under 5'S Education Private Day Nursery Fees,04/01/22,"2,128.50 ",-999999,Unclassifiable
32000062,Redacted Supplier,Education,Children's Services,Under 5'S Education Private Day Nursery Fees,04/01/22,"1,720.13 ",-999999,Unclassifiable
32000062,Redacted Supplier,Education,Children's Services,Under 5'S Education Private Day Nursery Fees,04/01/22,"1,076.63 ",-999999,Unclassifiable
32000062,Redacted Supplier,Education,Children's Services,Under 5'S Education Private Day Nursery Fees,04/01/22,"1,064.25 ",-999999,Unclassifiable
32000062,Redacted Supplier,Education,Children's Services,Under 5'S Education Private Day Nursery Fees,04/01/22,655.88 ,-999999,Unclassifiable
32000062,Redacted Supplier,Education,Children's Services,Under 5'S Education Private Day Nursery Fees,04/01/22,886.88 ,-999999,Unclassifiable
32000062,Redacted Supplier,Education,Children's Services,Under 5'S Education Private Day Nursery Fees,04/01/22,"1,064.25 ",-999999,Unclassifiable
32000062,Redacted Supplier,Education,Children's Services,Under 5'S Education Private Day Nursery Fees,04/01/22,"1,063.01 ",-999999,Unclassifiable
32000062,Redacted Supplier,Education,Children's Services,Under 5'S Education Private Day Nursery Fees,04/01/22,655.88 ,-999999,Unclassifiable
32000062,Redacted Supplier,Education,Children's Services,Under 5'S Education Private Day Nursery Fees,04/01/22,"1,064.25 ",170000,Education
32000062,Redacted Supplier,Education,Children's Services,Under 5'S Education Private Day Nursery Fees,04/01/22,655.88 ,400000,Non 3rd Party spend  
32000062,Redacted Supplier,Education,Children's Services,Under 5'S Education Private Day Nursery Fees,04/01/22,544.50 ,-999999,Unclassifiable
32000062,Redacted Supplier,Education,Children's Services,Under 5'S Education Private Day Nursery Fees,04/01/22,"1,064.25 ",-999999,Unclassifiable
32000062,Redacted Supplier,Education,Children's Services,Under 5'S Education Private Day Nursery Fees,04/01/22,"1,076.63 ",-999999,Unclassifiable
5443816,Bloom Procurement Services Limited,Tameside Investment Partnership,Director of Place,Consultancies,04/01/22,"8,421.05 ",150000,Consultancy
5443817,Bloom Procurement Services Limited,Tameside Investment Partnership,Director of Place,Consultancies,04/01/22,"20,000.00 ",150000,Consultancy
5444269,Fanco Limited t/a 365 Medicare,Adult Social Care,Adults,Homecare Fees,04/01/22,524.65 ,321000,Social Community Care Supplies & Services - Adult
5444177,Shabach Health Care Ltd,Adult Social Care,Adults,Homecare Fees,04/01/22,"3,296.70 ",-999999,Unclassifiable
5443907,Redacted Supplier,Education,Children's Services,Other Local Authorities Fees,04/01/22,"8,887.00 ",170000,Education
5444340,TAMESIDE AND GLOSSOP INTEGRATED CARE NHS FOUNDATION TRUST,Education,Children's Services,Professional Child Services,04/01/22,"7,763.83 ",310000,Healthcare
5444044,TAMESIDE AND GLOSSOP INTEGRATED CARE NHS FOUNDATION TRUST,Hosted Services,Hosted Services,Professional Services,04/01/22,"48,161.80 ",310000,Healthcare
5444209,HUGH MASON PROPERTIES LIMITED,Adult Social Care,Adults,Non-Authority Accommodation Rental,04/01/22,"2,778.49 ",190000,Facilities & Management Services
5444211,HUGH MASON PROPERTIES LIMITED,Adult Social Care,Adults,Non-Authority Accommodation Rental,04/01/22,"3,060.59 ",190000,Facilities & Management Services
5444210,HUGH MASON PROPERTIES LIMITED,Adult Social Care,Adults,Non-Authority Accommodation Rental,04/01/22,"2,450.46 ",190000,Facilities & Management Services
5444377,TIPTOES CHILD THERAPY SERVICES (LTD),Childrens Services,Children's Services,Professional Consultancy Services,04/01/22,600.00 ,321100,Social Community Care Supplies & Services - Children
5444212,NORTHERN PROPERTIES LTD,Adult Social Care,Adults,Non-Authority Accommodation Rental,04/01/22,"2,443.04 ",190000,Facilities & Management Services
5443073,PENNINE CARE IN PATIENT SERVS PRIORY,Education,Children's Services,Independent School Fees,04/01/22,"1,840.00 ",321000,Social Community Care Supplies & Services - Adult
5444217,HOMES FOR LIFE LTD,Adult Social Care,Adults,Non-Authority Accommodation Rental,04/01/22,848.95 ,-999999,Unclassifiable
5444216,HOMES FOR LIFE LTD,Adult Social Care,Adults,Non-Authority Accommodation Rental,04/01/22,"1,104.24 ",-999999,Unclassifiable
5444215,HOMES FOR LIFE LTD,Adult Social Care,Adults,"Fixtures, Fittings & Furniture Purchase",04/01/22,902.99 ,-999999,Unclassifiable
5444214,HOMES FOR LIFE LTD,Adult Social Care,Adults,Non-Authority Accommodation Rental,04/01/22,"1,002.15 ",-999999,Unclassifiable
5444213,HOMES FOR LIFE LTD,Adult Social Care,Adults,Non-Authority Accommodation Rental,04/01/22,"1,104.24 ",-999999,Unclassifiable
5444023,ABLE CARE AND SUPPORT SERVICES LTD,Adult Social Care,Adults,Homecare Fees,04/01/22,"11,372.42 ",321000,Social Community Care Supplies & Services - Adult
5444288,HOMESHINE CLEANERS LTD,Adult Social Care,Adults,Homecare Fees,04/01/22,"1,383.50 ",130000,Cleaning & Janitorial
5444239,Smartway Health and Social Care Limited,Adult Social Care,Adults,Homecare Fees,04/01/22,"7,656.17 ",321000,Social Community Care Supplies & Services - Adult
5443143,CREATIVE SUPPORT LTD,Adult Social Care,Adults,Independent Sector Care Fees,04/01/22,"84,528.09 ",321000,Social Community Care Supplies & Services - Adult
5444313,WILDE CONSULTING ENGINEERS,Operations and Neighbourhoods,Operations and Neighbourhoods,Engineers Works,04/01/22,916.65 ,150000,Consultancy
5444223,"TAMESIDE, OLDHAM AND GLOSSOP MIND",Adult Social Care,Adults,Professional Services,04/01/22,"12,500.00 ",321000,Social Community Care Supplies & Services - Adult
5444219,STAMFORD PROPERTIES,Adult Social Care,Adults,Non-Authority Accommodation Rental,04/01/22,"1,060.40 ",-999999,Unclassifiable
5444183,TAMESIDE ARTS LTD,Adult Social Care,Adults,Homecare Fees,04/01/22,"1,716.00 ",290000,Arts & Leisure Services
5444220,CROFT INVESTMENTS LTD,Adult Social Care,Adults,Non-Authority Accommodation Rental,04/01/22,"2,108.22 ",321000,Social Community Care Supplies & Services - Adult
5442272,Complete Care & Enablement Services LTD,Adult Social Care,Adults,Residential Home Long Stay Fees,05/01/22,"5,343.80 ",321000,Social Community Care Supplies & Services - Adult
5442237,Complete Care & Enablement Services LTD,Adult Social Care,Adults,Residential Home Long Stay Fees,05/01/22,"4,580.40 ",321000,Social Community Care Supplies & Services - Adult
5442273,Complete Care & Enablement Services LTD,Adult Social Care,Adults,Residential Home Long Stay Fees,05/01/22,"3,985.54 ",321000,Social Community Care Supplies & Services - Adult
5442275,Complete Care & Enablement Services LTD,Adult Social Care,Adults,Residential Home Long Stay Fees,05/01/22,"5,343.80 ",321000,Social Community Care Supplies & Services - Adult
5442186,We Support LTD,Adult Social Care,Adults,Homecare Fees,05/01/22,"5,493.60 ",321000,Social Community Care Supplies & Services - Adult
5442146,YOUNG PEOPLE FIRST LIMITED,Childrens Services,Children's Services,Living With Formal Support,05/01/22,850.00 ,321100,Social Community Care Supplies & Services - Children
5442144,YOUNG PEOPLE FIRST LIMITED,Childrens Services,Children's Services,Living With Formal Support,05/01/22,"2,100.00 ",321100,Social Community Care Supplies & Services - Children
5442138,YOUNG PEOPLE FIRST LIMITED,Childrens Services,Children's Services,Living With Formal Support,05/01/22,"1,225.00 ",321100,Social Community Care Supplies & Services - Children
5442112,CFS CARE LIMITED,Childrens Services,Children's Services,Living With Formal Support,05/01/22,"5,142.86 ",321100,Social Community Care Supplies & Services - Children
5442112,CFS CARE LIMITED,Childrens Services,Children's Services,Semi independent - Weekly Living Allowances,05/01/22,294.50 ,321100,Social Community Care Supplies & Services - Children
5442258,CFS CARE LIMITED,Childrens Services,Children's Services,Living With Formal Support,05/01/22,"5,142.86 ",321100,Social Community Care Supplies & Services - Children
5442258,CFS CARE LIMITED,Childrens Services,Children's Services,Semi independent - Weekly Living Allowances,05/01/22,235.60 ,321100,Social Community Care Supplies & Services - Children
5442104,CFS CARE LIMITED,Childrens Services,Children's Services,Living With Formal Support,05/01/22,"4,871.42 ",321100,Social Community Care Supplies & Services - Children
5442104,CFS CARE LIMITED,Childrens Services,Children's Services,Semi independent - Weekly Living Allowances,05/01/22,235.60 ,321100,Social Community Care Supplies & Services - Children
5442108,CFS CARE LIMITED,Childrens Services,Children's Services,Living With Formal Support,05/01/22,"4,714.29 ",321100,Social Community Care Supplies & Services - Children
5442108,CFS CARE LIMITED,Childrens Services,Children's Services,Semi independent - Weekly Living Allowances,05/01/22,294.50 ,321100,Social Community Care Supplies & Services - Children
5443111,CFS CARE LIMITED,Childrens Services,Children's Services,Living With Formal Support,05/01/22,514.29 ,321100,Social Community Care Supplies & Services - Children
5443110,CFS CARE LIMITED,Childrens Services,Children's Services,Living With Formal Support,05/01/22,"4,800.00 ",321100,Social Community Care Supplies & Services - Children
5442160,PENNINE CARE NHS TRUST,Population Health,Population Health,Professional Services,05/01/22,"17,503.00 ",321000,Social Community Care Supplies & Services - Adult
5442162,PENNINE CARE NHS TRUST,Population Health,Population Health,Professional Services,05/01/22,"88,070.00 ",321000,Social Community Care Supplies & Services - Adult
5442161,PENNINE CARE NHS TRUST,Population Health,Population Health,Professional Services,05/01/22,"8,479.00 ",321000,Social Community Care Supplies & Services - Adult
5442177,Zeno Ltd,Adult Social Care,Adults,Homecare Fees,05/01/22,"10,256.66 ",310000,Healthcare
5442251,Supporting Futures LTD,Childrens Services,Children's Services,Childrens Homes Outside Local Authority Fees,05/01/22,"24,755.30 ",310000,Healthcare
5442175,Nola House Tutoring,Education,Children's Services,Independent School Fees,05/01/22,"1,260.00 ",171011,Education
5442681,Tough Cookies Ed CIC,Population Health,Population Health,Project Costs,05/01/22,"2,100.00 ",-999999,Unclassifiable
5441535,Creative Support Rents,Adult Social Care,Adults,Residential Home Long Stay Fees,05/01/22,983.84 ,202000,Financial Services
5442209,SURECARE TAMESIDE & OLDHAM,Adult Social Care,Adults,Homecare Fees,05/01/22,"3,304.74 ",111230,Catering
5442217,Holden Knight Education Ltd,Individual Schools Budget,Children's Services,Agency Staff,05/01/22,"1,125.00 ",261400,Human Resources
5442176,BTTLR LIMITED T/A Connecting Hands Healthcare Services,Childrens Services,Children's Services,Childrens Homes Outside Local Authority Fees,05/01/22,"11,300.00 ",-999999,Unclassifiable
5442218,Skills Recruitment Ltd t/a Skills Construction Centre,Individual Schools Budget,Children's Services,Professional Services,05/01/22,"1,200.00 ",-999999,Unclassifiable
5442136,N A Brown Ltd,Operations and Neighbourhoods,Operations and Neighbourhoods,General Materials,05/01/22,"2,472.04 ",-999999,Unclassifiable
5444241,TAMESIDE AND GLOSSOP INTEGRATED CARE NHS FOUNDATION TRUST,Contingency,Contingency,Professional Services,05/01/22,"6,132.30 ",310000,Healthcare
5442248,CAUSEWAY TECHNOLOGIES LTD,Operations and Neighbourhoods,Operations and Neighbourhoods,Licences,05/01/22,"1,732.04 ",270000,Information Communication Technology
5444348,MATTHEWS ENVIRONMENTAL SOLUTIONS LTD,(blank),(blank),Engineers -External,05/01/22,"33,989.87 ",390000,"Works - Construction, Repair & Maintenance"
5444337,TIPTOES CHILD THERAPY SERVICES (LTD),Childrens Services,Children's Services,Professional Medical Services,05/01/22,510.00 ,321100,Social Community Care Supplies & Services - Children
5442142,AECOM LTD,(blank),(blank),Fees,05/01/22,"7,478.00 ",-999999,Unclassifiable
5442159,ACORN CARE & EDUCATION LTD (SALES),Adult Social Care,Adults,Homecare Fees,05/01/22,"20,681.43 ",321100,Social Community Care Supplies & Services - Children
5442158,ACORN CARE & EDUCATION LTD (SALES),Adult Social Care,Adults,Homecare Fees,05/01/22,"20,014.29 ",321100,Social Community Care Supplies & Services - Children
5442131,Redacted Supplier,Adult Social Care,Adults,Homecare Fees,05/01/22,"1,213.72 ",170000,Education
5442133,Redacted Supplier,Adult Social Care,Adults,Homecare Fees,05/01/22,693.55 ,170000,Education
5442184,TURNING POINT,Adult Social Care,Adults,Homecare Fees,05/01/22,"1,820.90 ",321000,Social Community Care Supplies & Services - Adult
5442155,Redacted Supplier,Education,Children's Services,Other Local Authorities Fees,05/01/22,"31,618.15 ",170000,Education
5442157,Redacted Supplier,Education,Children's Services,Other Local Authorities Fees,05/01/22,"12,647.26 ",170000,Education
5442156,Redacted Supplier,Education,Children's Services,Other Local Authorities Fees,05/01/22,"1,380.49 ",170000,Education
5442149,Redacted Supplier,Education,Children's Services,Independent School Fees,05/01/22,"19,953.84 ",170000,Education
5442154,Redacted Supplier,Education,Children's Services,Independent School Fees,05/01/22,"19,456.39 ",170000,Education
5442152,Redacted Supplier,Education,Children's Services,Independent School Fees,05/01/22,"2,187.57 ",170000,Education
5442153,Redacted Supplier,Education,Children's Services,Other Local Authorities Fees,05/01/22,"19,845.43 ",170000,Education
5442203,FORENSIC TESTING SERVICE LTD,Childrens Services,Children's Services,Professional Services,05/01/22,809.80 ,180000,Environmental Services
5442037,ORACLE CARE LTD,Childrens Services,Children's Services,Childrens Homes Outside Local Authority Fees,05/01/22,"20,150.00 ",321100,Social Community Care Supplies & Services - Children
5444394,LK POLLUTION RESPONSE LTD,Operations and Neighbourhoods,Operations and Neighbourhoods,Building Works,05/01/22,"14,710.00 ",240000,Horticultural
5442148,MODERN CITY ARCHITECTURE & URBANISM,(blank),(blank),Fees,05/01/22,"4,000.00 ",390000,"Works - Construction, Repair & Maintenance"
5444538,Redacted Supplier,Education,Children's Services,Independent School Fees,05/01/22,"15,918.00 ",170000,Education
5442213,COMPUTEAM LTD,Individual Schools Budget,Children's Services,IT Equipment,05/01/22,741.98 ,270000,Information Communication Technology
5442267,CARETECH COMMUNITY SERVICES LIMITED,Adult Social Care,Adults,Residential Home Long Stay Fees,05/01/22,"5,661.92 ",321000,Social Community Care Supplies & Services - Adult
5442269,CARETECH COMMUNITY SERVICES LIMITED,Adult Social Care,Adults,Residential Home Long Stay Fees,05/01/22,"5,661.92 ",321000,Social Community Care Supplies & Services - Adult
5442265,CARETECH COMMUNITY SERVICES LIMITED,Adult Social Care,Adults,Residential Home Long Stay Fees,05/01/22,"2,830.80 ",321000,Social Community Care Supplies & Services - Adult
5442254,SafeNet Domestic Abuse Services Ltd,Childrens Services,Children's Services,Living With Formal Support,05/01/22,"1,811.53 ",321100,Social Community Care Supplies & Services - Children
5444159,ATLAS TRADING GROUP LTD,Operations and Neighbourhoods,Operations and Neighbourhoods,General Equipment Purchase,05/01/22,"1,609.14 ",100000,Building Construction Materials
5442102,EQUIFAX LTD,Hosted Services,Hosted Services,Professional Services,05/01/22,"1,395.48 ",200000,Financial Services
5443315,SOFTBOX LIMITED,People and Workforce Development,Governance,Training Course Costs,05/01/22,950.00 ,270000,Information Communication Technology
5442182,Redacted Supplier,Multiple Heads of Service,Multiple Strategic Directorates,CIS Labour Credits,05/01/22,"-2,800.00 ",390000,"Works - Construction, Repair & Maintenance"
5442182,Redacted Supplier,Multiple Heads of Service,Multiple Strategic Directorates,CIS Labour Debits,05/01/22,"2,800.00 ",390000,"Works - Construction, Repair & Maintenance"
5442182,Redacted Supplier,Operations and Neighbourhoods,Operations and Neighbourhoods,Engineers Works,05/01/22,"3,250.00 ",390000,"Works - Construction, Repair & Maintenance"
5442178,KOMPAN LTD,Operations and Neighbourhoods,Operations and Neighbourhoods,General Materials,05/01/22,"1,097.40 ",330000,Sports & Playground Equipment & Maintenance
5442110,ASKEWS  AND HOLTS LIBRARY SERVICES LTD,Operations and Neighbourhoods,Operations and Neighbourhoods,Purchase Books,05/01/22,"4,039.89 ",170000,Education
5442183,BACK CARE SOLUTIONS LTD,Childrens Services,Children's Services,Purchase General Office Equipment,05/01/22,824.70 ,310000,Healthcare
3250845,BURNT TREE GROUP LIMITED,Operations and Neighbourhoods,Operations and Neighbourhoods,Additional Hire,06/01/22,"7,465.84 ",380000,Vehicle Management
3250845,BURNT TREE GROUP LIMITED,Operations and Neighbourhoods,Operations and Neighbourhoods,Replacement Hire,06/01/22,48.34 ,380000,Vehicle Management
3250845,BURNT TREE GROUP LIMITED,Operations and Neighbourhoods,Operations and Neighbourhoods,Workshop Recharges including Misuse & Damage Costs,06/01/22,83.52 ,380000,Vehicle Management
3250845,LPW EUROPE LTD,Operations and Neighbourhoods,Operations and Neighbourhoods,General Equipment Repair & Maintenance,06/01/22,567.00 ,380000,Vehicle Management
3250845,LEEDS COMMERCIAL LTD T/A LC VEHICLE HIRE,Operations and Neighbourhoods,Operations and Neighbourhoods,Additional Hire,06/01/22,"4,815.00 ",380000,Vehicle Management
3250845,TRUCTYRE ATS,Operations and Neighbourhoods,Operations and Neighbourhoods,Tyre Costs,06/01/22,943.50 ,380000,Vehicle Management
5442286,CFS CARE LIMITED,Childrens Services,Children's Services,Living With Formal Support,06/01/22,"5,314.29 ",321100,Social Community Care Supplies & Services - Children
5442286,CFS CARE LIMITED,Childrens Services,Children's Services,Semi independent - Weekly Living Allowances,06/01/22,235.60 ,321100,Social Community Care Supplies & Services - Children
5442298,CFS CARE LIMITED,Childrens Services,Children's Services,Living With Formal Support,06/01/22,"3,257.14 ",321100,Social Community Care Supplies & Services - Children
5442307,CFS CARE LIMITED,Childrens Services,Children's Services,Living With Formal Support,06/01/22,"5,314.29 ",321100,Social Community Care Supplies & Services - Children
5444273,Fanco Limited t/a 365 Medicare,Adult Social Care,Adults,Homecare Fees,06/01/22,718.89 ,321000,Social Community Care Supplies & Services - Adult
5444892,Redacted Supplier,Education,Children's Services,Independent School Fees,06/01/22,"23,333.33 ",171011,Education
5442463,Engage Support LTD,Childrens Services,Children's Services,Living With Formal Support,06/01/22,"9,180.00 ",-999999,Unclassifiable
5444408,TPR Care Services Ltd,Childrens Services,Children's Services,Living With Formal Support,06/01/22,"1,544.20 ",321100,Social Community Care Supplies & Services - Children
5444411,TPR Care Services Ltd,Childrens Services,Children's Services,Living With Formal Support,06/01/22,"1,544.20 ",321100,Social Community Care Supplies & Services - Children
5439952,Time Recruitment Solutions Ltd,Childrens Services,Children's Services,Professional Medical Services,06/01/22,596.61 ,-999999,Unclassifiable
5439956,Time Recruitment Solutions Ltd,Childrens Services,Children's Services,Professional Medical Services,06/01/22,"2,128.00 ",-999999,Unclassifiable
5439958,Time Recruitment Solutions Ltd,Childrens Services,Children's Services,Professional Medical Services,06/01/22,"2,650.00 ",-999999,Unclassifiable
5439962,Time Recruitment Solutions Ltd,Childrens Services,Children's Services,Professional Medical Services,06/01/22,"1,200.00 ",-999999,Unclassifiable
5442451,Davis and Associates,(blank),(blank),Professional Services,06/01/22,"6,000.00 ",-999999,Unclassifiable
5442442,Fostering Attachments Limited (t/a Inspire Training),Childrens Services,Children's Services,Training Course Costs,06/01/22,700.00 ,261500,Human Resources
5444919,Halle Concerts Society,Hosted Services,Hosted Services,Professional Services,06/01/22,"1,725.00 ",-999999,Unclassifiable
5444424,NSL LIMITED,Operations and Neighbourhoods,Operations and Neighbourhoods,NSL Fees,06/01/22,"45,339.05 ",350000,Street & Traffic Management
5438585,FOSTERING SOLUTIONS LTD,Childrens Services,Children's Services,Foster Carer Agency Fees,06/01/22,"1,304.27 ",321000,Social Community Care Supplies & Services - Adult
5442310,FOSTERING SOLUTIONS LTD,Childrens Services,Children's Services,Foster Carer Agency Fees,06/01/22,"3,144.33 ",321000,Social Community Care Supplies & Services - Adult
5442330,FOSTERING SOLUTIONS LTD,Childrens Services,Children's Services,Foster Carer Agency Fees,06/01/22,"2,924.09 ",321000,Social Community Care Supplies & Services - Adult
5442336,FOSTERING SOLUTIONS LTD,Childrens Services,Children's Services,Foster Carer Agency Fees,06/01/22,"2,987.11 ",321000,Social Community Care Supplies & Services - Adult
5442338,FOSTERING SOLUTIONS LTD,Childrens Services,Children's Services,Foster Carer Agency Fees,06/01/22,"3,338.63 ",321000,Social Community Care Supplies & Services - Adult
5442332,FOSTERING SOLUTIONS LTD,Childrens Services,Children's Services,Foster Carer Agency Fees,06/01/22,"3,352.29 ",321000,Social Community Care Supplies & Services - Adult
5442341,FOSTERING SOLUTIONS LTD,Childrens Services,Children's Services,Foster Carer Agency Fees,06/01/22,"3,302.52 ",321000,Social Community Care Supplies & Services - Adult
5442345,FOSTERING SOLUTIONS LTD,Childrens Services,Children's Services,Foster Carer Agency Fees,06/01/22,"2,924.09 ",321000,Social Community Care Supplies & Services - Adult
5442329,FOSTERING SOLUTIONS LTD,Childrens Services,Children's Services,Foster Carer Agency Fees,06/01/22,"3,675.67 ",321000,Social Community Care Supplies & Services - Adult
5442335,FOSTERING SOLUTIONS LTD,Childrens Services,Children's Services,Foster Carer Agency Fees,06/01/22,"3,352.29 ",321000,Social Community Care Supplies & Services - Adult
5442340,FOSTERING SOLUTIONS LTD,Childrens Services,Children's Services,Foster Carer Agency Fees,06/01/22,"3,675.67 ",321000,Social Community Care Supplies & Services - Adult
5442333,FOSTERING SOLUTIONS LTD,Childrens Services,Children's Services,Foster Carer Agency Fees,06/01/22,"3,344.64 ",321000,Social Community Care Supplies & Services - Adult
5442339,FOSTERING SOLUTIONS LTD,Childrens Services,Children's Services,Foster Carer Agency Fees,06/01/22,"3,297.91 ",321000,Social Community Care Supplies & Services - Adult
5442342,FOSTERING SOLUTIONS LTD,Childrens Services,Children's Services,Foster Carer Agency Fees,06/01/22,"2,987.11 ",321000,Social Community Care Supplies & Services - Adult
5444417,MOSSLEY PRIVATE HIRE,Education,Children's Services,Transport Of Pupils,06/01/22,"1,625.00 ",360000,Public Transport
5444431,MOSSLEY PRIVATE HIRE,Education,Children's Services,Transport Of Pupils,06/01/22,"1,625.00 ",360000,Public Transport
5444425,MOSSLEY PRIVATE HIRE,Education,Children's Services,Transport Of Pupils,06/01/22,"1,625.00 ",360000,Public Transport
5444427,MOSSLEY PRIVATE HIRE,Education,Children's Services,Transport Of Pupils,06/01/22,"1,625.00 ",360000,Public Transport
5444429,MOSSLEY PRIVATE HIRE,Education,Children's Services,Transport Of Pupils,06/01/22,"1,625.00 ",360000,Public Transport
5444430,MOSSLEY PRIVATE HIRE,Education,Children's Services,Transport Of Ola Pupils,06/01/22,"1,677.00 ",360000,Public Transport
5444413,MOSSLEY PRIVATE HIRE,Education,Children's Services,Transport Of Pupils,06/01/22,"1,625.00 ",360000,Public Transport
5442446,KNIGHT KAVANAGH & PAGE,Tameside Investment Partnership,Director of Place,Fees,06/01/22,"4,975.00 ",150000,Consultancy
5442518,SEASHELL TRUST,Childrens Services,Children's Services,Residential Home Short Stay Fees,06/01/22,"1,980.00 ",321000,Social Community Care Supplies & Services - Adult
5442558,BOOTS UK LTD,Population Health,Population Health,Local Enhanced Services,06/01/22,600.70 ,150000,Consultancy
5443485,COMFORT CALL LIMITED,Adult Social Care,Adults,Homecare Fees,06/01/22,"35,860.71 ",310000,Healthcare
5442257,CREATIVE IDEAS IN PRINT LTD,(blank),(blank),Printing And Stationery,06/01/22,"2,055.00 ",190000,Facilities & Management Services
5444022,ABLE CARE AND SUPPORT SERVICES LTD,Adult Social Care,Adults,Homecare Fees,06/01/22,628.29 ,321000,Social Community Care Supplies & Services - Adult
5429471,BHA FOR EQUALITY,Population Health,Population Health,Project Costs,06/01/22,"2,460.00 ",-999999,Unclassifiable
5443568,MEDACS HEALTHCARE,Adult Social Care,Adults,Homecare Fees,06/01/22,"18,297.79 ",150000,Consultancy
5443488,CARELINE HOMECARE LTD,Adult Social Care,Adults,Homecare Fees,06/01/22,"32,578.16 ",321000,Social Community Care Supplies & Services - Adult
5443484,CARELINE HOMECARE LTD,Adult Social Care,Adults,Homecare Fees,06/01/22,"1,435.97 ",321000,Social Community Care Supplies & Services - Adult
5442613,CARETECH COMMUNITY SERVICES LIMITED,Adult Social Care,Adults,Residential Home Long Stay Fees,06/01/22,"4,787.02 ",321000,Social Community Care Supplies & Services - Adult
5442698,CARETECH COMMUNITY SERVICES LIMITED,Adult Social Care,Adults,Residential Home Long Stay Fees,06/01/22,"6,315.40 ",321000,Social Community Care Supplies & Services - Adult
5442651,CARETECH COMMUNITY SERVICES LIMITED,Adult Social Care,Adults,Residential Home Long Stay Fees,06/01/22,"4,323.64 ",321000,Social Community Care Supplies & Services - Adult
5442697,CARETECH COMMUNITY SERVICES LIMITED,Adult Social Care,Adults,Residential Home Long Stay Fees,06/01/22,"4,323.64 ",321000,Social Community Care Supplies & Services - Adult
5442614,CARETECH COMMUNITY SERVICES LIMITED,Adult Social Care,Adults,Residential Home Long Stay Fees,06/01/22,"3,764.95 ",321000,Social Community Care Supplies & Services - Adult
5442696,CARETECH COMMUNITY SERVICES LIMITED,Adult Social Care,Adults,Residential Home Long Stay Fees,06/01/22,"3,774.40 ",321000,Social Community Care Supplies & Services - Adult
5444395,Hyde Accessible Transport Limited,Education,Children's Services,Transport Of Pupils,06/01/22,"1,846.00 ",360000,Public Transport
5444398,Hyde Accessible Transport Limited,Education,Children's Services,Transport Of Pupils,06/01/22,"1,170.00 ",360000,Public Transport
5444402,Hyde Accessible Transport Limited,Education,Children's Services,Transport Of Pupils,06/01/22,"1,625.00 ",360000,Public Transport
5444442,Hyde Accessible Transport Limited,Education,Children's Services,Transport Of Pupils,06/01/22,682.50 ,360000,Public Transport
5444444,Hyde Accessible Transport Limited,Education,Children's Services,Transport Of Pupils,06/01/22,"1,625.00 ",360000,Public Transport
5444471,Hyde Accessible Transport Limited,Education,Children's Services,Transport Of Pupils,06/01/22,"1,170.00 ",360000,Public Transport
5444474,Hyde Accessible Transport Limited,Education,Children's Services,Transport Of Ola Pupils,06/01/22,"1,527.50 ",360000,Public Transport
5444478,Hyde Accessible Transport Limited,Education,Children's Services,Transport Of Post 16 Pupils,06/01/22,"1,625.00 ",360000,Public Transport
5444480,Hyde Accessible Transport Limited,Education,Children's Services,Transport Of Pupils,06/01/22,682.50 ,360000,Public Transport
5444483,Hyde Accessible Transport Limited,Education,Children's Services,Transport Of Pupils,06/01/22,"1,625.00 ",360000,Public Transport
5444488,Hyde Accessible Transport Limited,Education,Children's Services,Transport Of Ola Pupils,06/01/22,"2,115.00 ",360000,Public Transport
5444490,Hyde Accessible Transport Limited,Education,Children's Services,Transport Of Pupils,06/01/22,682.50 ,360000,Public Transport
5444495,Hyde Accessible Transport Limited,Education,Children's Services,Transport Of Pupils,06/01/22,"1,625.00 ",360000,Public Transport
5444498,Hyde Accessible Transport Limited,Education,Children's Services,Transport Of Ola Pupils,06/01/22,"1,755.00 ",360000,Public Transport
5444503,Hyde Accessible Transport Limited,Education,Children's Services,Transport Of Pupils,06/01/22,"1,625.00 ",360000,Public Transport
5444506,Hyde Accessible Transport Limited,Education,Children's Services,Transport Of Post 16 Pupils,06/01/22,"1,462.50 ",360000,Public Transport
5444511,Hyde Accessible Transport Limited,Education,Children's Services,Transport Of Pupils,06/01/22,910.00 ,360000,Public Transport
5444514,Hyde Accessible Transport Limited,Education,Children's Services,Transport Of Pupils,06/01/22,"1,625.00 ",360000,Public Transport
5444396,Hyde Accessible Transport Limited,Education,Children's Services,Transport Of Ola Pupils,06/01/22,"1,462.50 ",360000,Public Transport
5444400,Hyde Accessible Transport Limited,Education,Children's Services,Transport Of Pupils,06/01/22,"1,625.00 ",360000,Public Transport
5444403,Hyde Accessible Transport Limited,Education,Children's Services,Transport Of Pupils,06/01/22,"1,625.00 ",360000,Public Transport
5444414,Hyde Accessible Transport Limited,Education,Children's Services,Transport Of Pupils,06/01/22,"1,462.50 ",360000,Public Transport
5444449,Hyde Accessible Transport Limited,Education,Children's Services,Transport Of Pupils,06/01/22,"1,462.50 ",360000,Public Transport
5444457,Hyde Accessible Transport Limited,Education,Children's Services,Transport Of Post 16 Pupils,06/01/22,975.00 ,360000,Public Transport
5444459,Hyde Accessible Transport Limited,Education,Children's Services,Transport Of Post 16 Pupils,06/01/22,"1,462.50 ",360000,Public Transport
5444469,Hyde Accessible Transport Limited,Education,Children's Services,Transport Of Ola Pupils,06/01/22,"2,115.00 ",360000,Public Transport
5444472,Hyde Accessible Transport Limited,Education,Children's Services,Transport Of Ola Pupils,06/01/22,"2,377.50 ",360000,Public Transport
5444476,Hyde Accessible Transport Limited,Education,Children's Services,Transport Of Pupils,06/01/22,910.00 ,360000,Public Transport
5444481,Hyde Accessible Transport Limited,Education,Children's Services,Transport Of Pupils,06/01/22,"1,170.00 ",360000,Public Transport
5444486,Hyde Accessible Transport Limited,Education,Children's Services,Transport Of Pupils,06/01/22,"1,462.50 ",360000,Public Transport
5444493,Hyde Accessible Transport Limited,Education,Children's Services,Transport Of Pupils,06/01/22,"1,625.00 ",360000,Public Transport
5444496,Hyde Accessible Transport Limited,Education,Children's Services,Transport Of Ola Pupils,06/01/22,"1,462.50 ",360000,Public Transport
5444501,Hyde Accessible Transport Limited,Education,Children's Services,Transport Of Pupils,06/01/22,910.00 ,360000,Public Transport
5444504,Hyde Accessible Transport Limited,Education,Children's Services,Transport Of Pupils,06/01/22,"1,950.00 ",360000,Public Transport
5444512,Hyde Accessible Transport Limited,Education,Children's Services,Transport Of Post 16 Pupils,06/01/22,875.00 ,360000,Public Transport
5444401,Hyde Accessible Transport Limited,Education,Children's Services,Transport Of Ola Pupils,06/01/22,"1,625.00 ",360000,Public Transport
5444445,Hyde Accessible Transport Limited,Education,Children's Services,Transport Of Pupils,06/01/22,975.00 ,360000,Public Transport
5444447,Hyde Accessible Transport Limited,Education,Children's Services,Transport Of Pupils,06/01/22,682.50 ,360000,Public Transport
5444450,Hyde Accessible Transport Limited,Education,Children's Services,Transport Of Pupils,06/01/22,"1,462.50 ",360000,Public Transport
5444455,Hyde Accessible Transport Limited,Education,Children's Services,Transport Of Pupils,06/01/22,"1,170.00 ",360000,Public Transport
5444460,Hyde Accessible Transport Limited,Education,Children's Services,Transport Of Pupils,06/01/22,"1,462.50 ",360000,Public Transport
5444470,Hyde Accessible Transport Limited,Education,Children's Services,Transport Of Pupils,06/01/22,"1,625.00 ",360000,Public Transport
5444477,Hyde Accessible Transport Limited,Education,Children's Services,Transport Of Post 16 Pupils,06/01/22,"1,625.00 ",360000,Public Transport
5444484,Hyde Accessible Transport Limited,Education,Children's Services,Transport Of Post 16 Pupils,06/01/22,"1,170.00 ",360000,Public Transport
5444487,Hyde Accessible Transport Limited,Education,Children's Services,Transport Of Pupils,06/01/22,"1,462.50 ",360000,Public Transport
5444491,Hyde Accessible Transport Limited,Education,Children's Services,Transport Of Pupils,06/01/22,975.00 ,360000,Public Transport
5444494,Hyde Accessible Transport Limited,Education,Children's Services,Transport Of Pupils,06/01/22,"1,462.50 ",360000,Public Transport
5444499,Hyde Accessible Transport Limited,Education,Children's Services,Transport Of Ola Pupils,06/01/22,"1,527.50 ",360000,Public Transport
5444502,Hyde Accessible Transport Limited,Education,Children's Services,Transport Of Post 16 Pupils,06/01/22,525.00 ,360000,Public Transport
5444507,Hyde Accessible Transport Limited,Education,Children's Services,Transport Of Pupils,06/01/22,682.50 ,360000,Public Transport
5444510,Hyde Accessible Transport Limited,Education,Children's Services,Transport Of Pupils,06/01/22,682.50 ,360000,Public Transport
5444397,Hyde Accessible Transport Limited,Education,Children's Services,Transport Of Pupils,06/01/22,"1,625.00 ",360000,Public Transport
5444404,Hyde Accessible Transport Limited,Education,Children's Services,Transport Of Ola Pupils,06/01/22,"1,527.50 ",360000,Public Transport
5444440,Hyde Accessible Transport Limited,Education,Children's Services,Transport Of Pupils,06/01/22,"1,625.00 ",360000,Public Transport
5444448,Hyde Accessible Transport Limited,Education,Children's Services,Transport Of Pupils,06/01/22,"1,625.00 ",360000,Public Transport
5444452,Hyde Accessible Transport Limited,Education,Children's Services,Transport Of Pupils,06/01/22,"1,462.50 ",360000,Public Transport
5444456,Hyde Accessible Transport Limited,Education,Children's Services,Transport Of Post 16 Pupils,06/01/22,"1,170.00 ",360000,Public Transport
5444462,Hyde Accessible Transport Limited,Education,Children's Services,Transport Of Pupils,06/01/22,"1,170.00 ",360000,Public Transport
5444473,Hyde Accessible Transport Limited,Education,Children's Services,Transport Of Pupils,06/01/22,"1,300.00 ",360000,Public Transport
5444482,Hyde Accessible Transport Limited,Education,Children's Services,Transport Of Ola Pupils,06/01/22,"1,755.00 ",360000,Public Transport
5444485,Hyde Accessible Transport Limited,Education,Children's Services,Transport Of Pupils,06/01/22,"1,625.00 ",360000,Public Transport
5444492,Hyde Accessible Transport Limited,Education,Children's Services,Transport Of Pupils,06/01/22,"1,683.50 ",360000,Public Transport
5444497,Hyde Accessible Transport Limited,Education,Children's Services,Transport Of Pupils,06/01/22,"1,462.50 ",360000,Public Transport
5444500,Hyde Accessible Transport Limited,Education,Children's Services,Transport Of Pupils,06/01/22,"1,170.00 ",360000,Public Transport
5444505,Hyde Accessible Transport Limited,Education,Children's Services,Transport Of Ola Pupils,06/01/22,"1,527.50 ",360000,Public Transport
5444508,Hyde Accessible Transport Limited,Education,Children's Services,Transport Of Ola Pupils,06/01/22,"1,222.00 ",360000,Public Transport
5444513,Hyde Accessible Transport Limited,Education,Children's Services,Transport Of Ola Pupils,06/01/22,"1,683.50 ",360000,Public Transport
5442625,Compass Fostering North LTD,Childrens Services,Children's Services,Foster Carer Agency Fees,06/01/22,"3,197.34 ",321100,Social Community Care Supplies & Services - Children
5442627,Compass Fostering North LTD,Childrens Services,Children's Services,Foster Carer Agency Fees,06/01/22,"3,197.34 ",321100,Social Community Care Supplies & Services - Children
5442618,Compass Fostering North LTD,Childrens Services,Children's Services,Foster Carer Agency Fees,06/01/22,"3,337.15 ",321100,Social Community Care Supplies & Services - Children
5442626,Compass Fostering North LTD,Childrens Services,Children's Services,Foster Carer Agency Fees,06/01/22,"3,277.01 ",321100,Social Community Care Supplies & Services - Children
5444433,Redacted Supplier,Education,Children's Services,Transport Of Pupils,06/01/22,"1,625.00 ",360000,Public Transport
5444434,Redacted Supplier,Education,Children's Services,Transport Of Post 16 Pupils,06/01/22,"1,462.50 ",360000,Public Transport
5444432,Redacted Supplier,Education,Children's Services,Transport Of Pupils,06/01/22,"1,625.00 ",360000,Public Transport
5444435,Redacted Supplier,Education,Children's Services,Transport Of Pupils,06/01/22,"1,950.00 ",360000,Public Transport
5444437,Redacted Supplier,Education,Children's Services,Transport Of Pupils,06/01/22,"1,625.00 ",360000,Public Transport
5442447,ADULLAM HOMES HOUSING ASSOC LTD,Operations and Neighbourhoods,Operations and Neighbourhoods,Supporting People Gross Contract,06/01/22,"63,250.00 ",321000,Social Community Care Supplies & Services - Adult
5444327,JACKSON & TAYLOR LTD,Housing,Director of Place,Minor Works - Building,06/01/22,630.00 ,390000,"Works - Construction, Repair & Maintenance"
5444296,MANLEC ELECTRICAL(MANCHESTER) LTD,Housing,Director of Place,Minor Works - Building,06/01/22,637.00 ,390000,"Works - Construction, Repair & Maintenance"
5444305,MANLEC ELECTRICAL(MANCHESTER) LTD,Housing,Director of Place,Minor Works - Building,06/01/22,892.70 ,390000,"Works - Construction, Repair & Maintenance"
5444304,MANLEC ELECTRICAL(MANCHESTER) LTD,Housing,Director of Place,Minor Works - Building,06/01/22,537.40 ,390000,"Works - Construction, Repair & Maintenance"
5444312,MANLEC ELECTRICAL(MANCHESTER) LTD,Housing,Director of Place,Minor Works - Building,06/01/22,904.20 ,390000,"Works - Construction, Repair & Maintenance"
5442453,GEORGE HOUSE TRUST,Population Health,Population Health,Professional Services,06/01/22,799.20 ,311100,Healthcare
5442357,ALPHA PLUS FOSTERING LIMITED,Childrens Services,Children's Services,Foster Carer Agency Fees,06/01/22,"4,921.54 ",321000,Social Community Care Supplies & Services - Adult
5442366,ALPHA PLUS FOSTERING LIMITED,Childrens Services,Children's Services,Foster Carer Agency Fees,06/01/22,815.01 ,321000,Social Community Care Supplies & Services - Adult
5442448,K P DODD CONSTRUCTION LTD,Housing,Director of Place,Minor Works - Building,06/01/22,900.00 ,390000,"Works - Construction, Repair & Maintenance"
5442450,K P DODD CONSTRUCTION LTD,Housing,Director of Place,Minor Works - Building,06/01/22,875.00 ,390000,"Works - Construction, Repair & Maintenance"
5442475,K P DODD CONSTRUCTION LTD,Housing,Director of Place,Specialist Works,06/01/22,500.00 ,390000,"Works - Construction, Repair & Maintenance"
5442483,K P DODD CONSTRUCTION LTD,Housing,Director of Place,Minor Works - Building,06/01/22,875.00 ,390000,"Works - Construction, Repair & Maintenance"
5442473,K P DODD CONSTRUCTION LTD,Housing,Director of Place,Minor Works - Building,06/01/22,900.00 ,390000,"Works - Construction, Repair & Maintenance"
5442481,K P DODD CONSTRUCTION LTD,Housing,Director of Place,Minor Works - Building,06/01/22,500.00 ,390000,"Works - Construction, Repair & Maintenance"
5442457,K P DODD CONSTRUCTION LTD,Housing,Director of Place,Specialist Works,06/01/22,500.00 ,390000,"Works - Construction, Repair & Maintenance"
5442477,K P DODD CONSTRUCTION LTD,Housing,Director of Place,Minor Works - Building,06/01/22,"1,016.00 ",390000,"Works - Construction, Repair & Maintenance"
5442482,K P DODD CONSTRUCTION LTD,Housing,Director of Place,Minor Works - Building,06/01/22,900.00 ,390000,"Works - Construction, Repair & Maintenance"
5442485,K P DODD CONSTRUCTION LTD,Housing,Director of Place,Minor Works - Building,06/01/22,500.00 ,390000,"Works - Construction, Repair & Maintenance"
5442666,Redacted Supplier,Corporate Costs,Corporate Costs,Professional Services,07/01/22,"2,286.50 ",360000,Public Transport
5442953,Mangar International,Adult Social Care,Adults,IT Equipment,07/01/22,"2,080.46 ",321000,Social Community Care Supplies & Services - Adult
5442668,Redacted Supplier,Education,Children's Services,Other Local Authorities Fees,07/01/22,"2,196.00 ",170000,Education
5442731,CFS CARE LIMITED,Childrens Services,Children's Services,Living With Formal Support,07/01/22,"5,142.86 ",321100,Social Community Care Supplies & Services - Children
5442731,CFS CARE LIMITED,Childrens Services,Children's Services,Semi independent - Weekly Living Allowances,07/01/22,294.50 ,321100,Social Community Care Supplies & Services - Children
5431731,ROC Northwest Limited,Childrens Services,Children's Services,Childrens Homes Outside Local Authority Fees,07/01/22,"14,463.90 ",321100,Social Community Care Supplies & Services - Children
5434169,ROC Northwest Limited,Childrens Services,Children's Services,Childrens Homes Outside Local Authority Fees,07/01/22,"14,946.03 ",321100,Social Community Care Supplies & Services - Children
5435861,ROC Northwest Limited,Childrens Services,Children's Services,Childrens Homes Outside Local Authority Fees,07/01/22,"1,450.40 ",321100,Social Community Care Supplies & Services - Children
5444865,Cromwood Housing Ltd,Operations and Neighbourhoods,Operations and Neighbourhoods,Other Accommodation Related Costs,07/01/22,"55,715.13 ",250000,Housing Management
5444864,Cromwood Housing Ltd,Operations and Neighbourhoods,Operations and Neighbourhoods,Other Accommodation Related Costs,07/01/22,"21,279.49 ",250000,Housing Management
5444615,Fanco Limited t/a 365 Medicare,Adult Social Care,Adults,Homecare Fees,07/01/22,524.65 ,321000,Social Community Care Supplies & Services - Adult
5442990,Stepping Stone Projects,Childrens Services,Children's Services,Living With Formal Support,07/01/22,"2,287.50 ",-999999,Unclassifiable
5442992,Stepping Stone Projects,Childrens Services,Children's Services,Living With Formal Support,07/01/22,"1,830.00 ",-999999,Unclassifiable
5442986,Stepping Stone Projects,Childrens Services,Children's Services,Living With Formal Support,07/01/22,"1,497.00 ",-999999,Unclassifiable
5442991,Stepping Stone Projects,Childrens Services,Children's Services,Living With Formal Support,07/01/22,"1,830.00 ",-999999,Unclassifiable
5442993,Stepping Stone Projects,Childrens Services,Children's Services,Living With Formal Support,07/01/22,"1,960.72 ",-999999,Unclassifiable
5442987,Stepping Stone Projects,Childrens Services,Children's Services,Living With Formal Support,07/01/22,"1,603.93 ",-999999,Unclassifiable
5442983,Stepping Stone Projects,Childrens Services,Children's Services,Living With Formal Support,07/01/22,"1,069.29 ",-999999,Unclassifiable
5442922,Stepping Stone Projects,Childrens Services,Children's Services,Living With Formal Support,07/01/22,"2,839.29 ",-999999,Unclassifiable
5445078,Carrington West Ltd,Place,Growth,Agency Staff,07/01/22,900.90 ,-999999,Unclassifiable
5445079,Carrington West Ltd,Place,Growth,Agency Staff,07/01/22,900.90 ,-999999,Unclassifiable
5442571,Redacted Supplier,Childrens Services,Children's Services,Living With Formal Support,07/01/22,"5,668.66 ",-999999,Unclassifiable
5442581,Redacted Supplier,Childrens Services,Children's Services,Living With Formal Support,07/01/22,"5,668.66 ",-999999,Unclassifiable
5442582,Redacted Supplier,Childrens Services,Children's Services,Living With Formal Support,07/01/22,"3,963.66 ",-999999,Unclassifiable
5442573,Redacted Supplier,Childrens Services,Children's Services,Living With Formal Support,07/01/22,"5,668.66 ",-999999,Unclassifiable
5442590,Redacted Supplier,Childrens Services,Children's Services,Living With Formal Support,07/01/22,"4,022.92 ",-999999,Unclassifiable
5442585,Redacted Supplier,Childrens Services,Children's Services,Living With Formal Support,07/01/22,"3,963.66 ",-999999,Unclassifiable
5442577,Redacted Supplier,Childrens Services,Children's Services,Living With Formal Support,07/01/22,"3,963.66 ",-999999,Unclassifiable
5442577,Redacted Supplier,Childrens Services,Children's Services,Semi independent - Weekly Living Allowances,07/01/22,262.26 ,-999999,Unclassifiable
5442579,Redacted Supplier,Childrens Services,Children's Services,Living With Formal Support,07/01/22,"3,963.66 ",-999999,Unclassifiable
5442579,Redacted Supplier,Childrens Services,Children's Services,Semi independent - Weekly Living Allowances,07/01/22,262.26 ,-999999,Unclassifiable
5442568,Redacted Supplier,Childrens Services,Children's Services,Living With Formal Support,07/01/22,"3,963.66 ",-999999,Unclassifiable
5442570,Redacted Supplier,Childrens Services,Children's Services,Living With Formal Support,07/01/22,"3,963.66 ",-999999,Unclassifiable
5442572,Redacted Supplier,Childrens Services,Children's Services,Living With Formal Support,07/01/22,"5,668.66 ",-999999,Unclassifiable
5442576,Redacted Supplier,Childrens Services,Children's Services,Living With Formal Support,07/01/22,"3,963.66 ",-999999,Unclassifiable
5442877,LOCAL CARE FORCE,Adult Social Care,Adults,Homecare Fees,07/01/22,"2,552.16 ",310000,Healthcare
5442748,LOCAL CARE FORCE,Adult Social Care,Adults,Homecare Fees,07/01/22,"2,358.72 ",310000,Healthcare
5445117,SMT Projects,Place,Growth,Professional Services,07/01/22,"1,215.00 ",-999999,Unclassifiable
5444547,Wellbeing Property Solutions Ltd,Childrens Services,Children's Services,Childrens Homes Outside Local Authority Fees,07/01/22,700.00 ,261000,Human Resources
5444549,Wellbeing Property Solutions Ltd,Childrens Services,Children's Services,Childrens Homes Outside Local Authority Fees,07/01/22,700.00 ,261000,Human Resources
5444834,Wellbeing Property Solutions Ltd,Childrens Services,Children's Services,Childrens Homes Outside Local Authority Fees,07/01/22,700.00 ,261000,Human Resources
5444836,Positive Care Solutions Ltd,Childrens Services,Children's Services,Childrens Homes Outside Local Authority Fees,07/01/22,"7,300.00 ",261000,Human Resources
5444553,Positive Care Solutions Ltd,Childrens Services,Children's Services,Childrens Homes Outside Local Authority Fees,07/01/22,"7,300.00 ",261000,Human Resources
5442783,Brook,Population Health,Population Health,Professional Services,07/01/22,"1,328.60 ",-999999,Unclassifiable
5443183,Shabach Health Care Ltd,Adult Social Care,Adults,Homecare Fees,07/01/22,"1,989.68 ",-999999,Unclassifiable
5442950,Lincolnshire County Council,Education,Children's Services,Transport Of Ola Pupils,07/01/22,"1,779.51 ",UNCLASS,Unclassifiable
5442805,Constellia Public Ltd,Place,Growth,Professional Services,07/01/22,"45,464.62 ",150000,Consultancy
5444421,TPR Care Services Ltd,Childrens Services,Children's Services,Living With Formal Support,07/01/22,"1,229.20 ",321100,Social Community Care Supplies & Services - Children
5444423,TPR Care Services Ltd,Childrens Services,Children's Services,Living With Formal Support,07/01/22,"1,604.92 ",321100,Social Community Care Supplies & Services - Children
5444419,TPR Care Services Ltd,Childrens Services,Children's Services,Living With Formal Support,07/01/22,"1,604.92 ",321100,Social Community Care Supplies & Services - Children
5442797,Gray Healthcare Limited,Childrens Services,Children's Services,Childrens Homes Outside Local Authority Fees,07/01/22,"19,418.00 ",-999999,Unclassifiable
5442717,Redacted Supplier,(blank),(blank),Professional Entertainment Services,07/01/22,"2,450.00 ",-999999,Unclassifiable
5442683,STORYTIME MAGAZINE LTD,Education,Children's Services,Educational/Instructional Materials,07/01/22,"1,290.00 ",-999999,Unclassifiable
5441065,DOMAIN CARE NORTH WEST LTD,Adult Social Care,Adults,Homecare Fees,07/01/22,"1,256.68 ",321100,Social Community Care Supplies & Services - Children
5444428,MOSSLEY PRIVATE HIRE,Education,Children's Services,Transport Of Pupils,07/01/22,"1,527.50 ",360000,Public Transport
5443195,GREENSCAPE,Adult Social Care,Adults,Professional Services,07/01/22,"1,111.44 ",390000,"Works - Construction, Repair & Maintenance"
5442675,VISION FOR EDUCATION LIMITED,Education,Children's Services,Professional Services,07/01/22,912.00 ,170000,Education
5442674,MODES USERS ASSOCIATION,Operations and Neighbourhoods,Operations and Neighbourhoods,Licences,07/01/22,600.00 ,270000,Information Communication Technology
5442719,Tynetec a group brand of Legrand Electric Ltd,Adult Social Care,Adults,IT Equipment,07/01/22,"1,431.54 ",321100,Social Community Care Supplies & Services - Children
5442720,Tynetec a group brand of Legrand Electric Ltd,Adult Social Care,Adults,IT Equipment,07/01/22,"1,524.30 ",321100,Social Community Care Supplies & Services - Children
5442904,Tynetec a group brand of Legrand Electric Ltd,Adult Social Care,Adults,IT Equipment,07/01/22,"7,390.25 ",321100,Social Community Care Supplies & Services - Children
5444708,PERSON CENTRED CARE SERVICES LIMITED,Adult Social Care,Adults,Homecare Fees,07/01/22,"7,818.80 ",310000,Healthcare
5442672,CARRICK SIGNS LTD,Policy and Communications,Governance,Printing And Stationery,07/01/22,"1,688.60 ",100000,Building Construction Materials
5442673,CPD CERTIFICATION SERVICES,Hosted Services,Hosted Services,Professional Services,07/01/22,"1,595.00 ",260000,Human Resources
5442746,CLOVERLEAF ADVOCACY 2000 LTD,Adult Social Care,Adults,Professional Services,07/01/22,"12,678.84 ",321000,Social Community Care Supplies & Services - Adult
5445011,ABOUT TAMESIDE,Policy and Communications,Governance,"Marketing, Publicity and Recruitment",07/01/22,550.00 ,908001,Public Bodies
5442690,CITY LIFT SERVICES (NW) LTD,Adult Social Care,Adults,General Equipment Repair & Maintenance,07/01/22,920.00 ,390000,"Works - Construction, Repair & Maintenance"
5442909,FOSTERING PEOPLE LTD,Childrens Services,Children's Services,Foster Carer Agency Fees,07/01/22,"3,166.65 ",321100,Social Community Care Supplies & Services - Children
5442994,Optima Health and Social Care Ltd,Childrens Services,Children's Services,Homecare Fees,07/01/22,"1,890.00 ",321100,Social Community Care Supplies & Services - Children
5442659,TUDOR (UK) LTD T/A TUDOR ENVIRONMENTAL,Operations and Neighbourhoods,Operations and Neighbourhoods,General Equipment Purchase,07/01/22,549.96 ,240000,Horticultural
5442662,TUDOR (UK) LTD T/A TUDOR ENVIRONMENTAL,Operations and Neighbourhoods,Operations and Neighbourhoods,General Equipment Purchase,07/01/22,"1,048.40 ",240000,Horticultural
5444931,Gallagher Bassett International Ltd,Multiple Heads of Service,Multiple Strategic Directorates,Employers Liability Insurance Claims,07/01/22,"3,134.00 ",-999999,Unclassifiable
5444931,Gallagher Bassett International Ltd,Multiple Heads of Service,Multiple Strategic Directorates,Public Liability Insurance Claims,07/01/22,"4,658.80 ",-999999,Unclassifiable
5444931,Gallagher Bassett International Ltd,Multiple Heads of Service,Multiple Strategic Directorates,Transport Insurance Claims,07/01/22,"1,281.40 ",-999999,Unclassifiable
5444931,Gallagher Bassett International Ltd,Finance,Finance & IT,Public Liability Insurance,07/01/22,"4,522.50 ",-999999,Unclassifiable
5444931,Gallagher Bassett International Ltd,Finance,Finance & IT,Transport Insurance,07/01/22,"9,582.93 ",-999999,Unclassifiable
5442809,UK FOSTERING LTD,Childrens Services,Children's Services,Foster Carer Agency Fees,07/01/22,"3,111.90 ",321100,Social Community Care Supplies & Services - Children
5442810,UK FOSTERING LTD,Childrens Services,Children's Services,Foster Carer Agency Fees,07/01/22,"3,211.20 ",321100,Social Community Care Supplies & Services - Children
5442297,CARETECH COMMUNITY SERVICES LIMITED,Adult Social Care,Adults,Residential Home Long Stay Fees,07/01/22,"8,917.04 ",321000,Social Community Care Supplies & Services - Adult
5442642,CARETECH COMMUNITY SERVICES LIMITED,Adult Social Care,Adults,Nursing Home Long Stay Fees,07/01/22,"5,248.50 ",321000,Social Community Care Supplies & Services - Adult
5442647,CARETECH COMMUNITY SERVICES LIMITED,Adult Social Care,Adults,Nursing Home Long Stay Fees,07/01/22,"5,248.50 ",321000,Social Community Care Supplies & Services - Adult
5442692,CARETECH COMMUNITY SERVICES LIMITED,Adult Social Care,Adults,Nursing Home Long Stay Fees,07/01/22,"8,572.55 ",321000,Social Community Care Supplies & Services - Adult
5442612,CARETECH COMMUNITY SERVICES LIMITED,Adult Social Care,Adults,Nursing Home Long Stay Fees,07/01/22,"5,248.50 ",321000,Social Community Care Supplies & Services - Adult
5442653,CARETECH COMMUNITY SERVICES LIMITED,Adult Social Care,Adults,Residential Home Long Stay Fees,07/01/22,"4,201.52 ",321000,Social Community Care Supplies & Services - Adult
5442631,CARETECH COMMUNITY SERVICES LIMITED,Adult Social Care,Adults,Nursing Home Long Stay Fees,07/01/22,"5,423.45 ",321000,Social Community Care Supplies & Services - Adult
5442604,CARETECH COMMUNITY SERVICES LIMITED,Adult Social Care,Adults,Nursing Home Long Stay Fees,07/01/22,"5,248.50 ",321000,Social Community Care Supplies & Services - Adult
5442963,ROUTES HEALTHCARE (NORTH) LIMITED,Adult Social Care,Adults,Homecare Fees,07/01/22,"7,981.22 ",321100,Social Community Care Supplies & Services - Children
5442820,Redacted Supplier,Operations and Neighbourhoods,Operations and Neighbourhoods,Professional Entertainment Services,07/01/22,"1,000.00 ",170000,Education
5442802,Next Stage 'A Way Forward' Youth Development LTD,Childrens Services,Children's Services,Living With Formal Support,07/01/22,"4,650.00 ",321100,Social Community Care Supplies & Services - Children
5442804,Next Stage 'A Way Forward' Youth Development LTD,Childrens Services,Children's Services,Living With Formal Support,07/01/22,"4,650.00 ",321100,Social Community Care Supplies & Services - Children
5442671,Northern Community Pathways Limited,Childrens Services,Children's Services,Semi independent - Weekly Living Allowances,07/01/22,930.28 ,321100,Social Community Care Supplies & Services - Children
5444475,Hyde Accessible Transport Limited,Education,Children's Services,Transport Of Pupils,07/01/22,"1,300.00 ",360000,Public Transport
5442969,Orange Grove Fostercare LTD,Childrens Services,Children's Services,Foster Carer Agency Fees,07/01/22,"3,570.84 ",321100,Social Community Care Supplies & Services - Children
5442968,Orange Grove Fostercare LTD,Childrens Services,Children's Services,Foster Carer Agency Fees,07/01/22,"3,289.31 ",321100,Social Community Care Supplies & Services - Children
5442970,Orange Grove Fostercare LTD,Childrens Services,Children's Services,Foster Carer Agency Fees,07/01/22,"3,551.45 ",321100,Social Community Care Supplies & Services - Children
5442972,Orange Grove Fostercare LTD,Childrens Services,Children's Services,Foster Carer Agency Fees,07/01/22,"3,551.45 ",321100,Social Community Care Supplies & Services - Children
5442971,Orange Grove Fostercare LTD,Childrens Services,Children's Services,Foster Carer Agency Fees,07/01/22,"3,497.33 ",321100,Social Community Care Supplies & Services - Children
5442654,Exclusec Security Solutions Ltd,Operations and Neighbourhoods,Operations and Neighbourhoods,Security Services,07/01/22,"19,677.00 ",-999999,Unclassifiable
5442846,FOSTER CARE ASSOCIATES LTD (FCA),Childrens Services,Children's Services,Foster Carer Agency Fees,07/01/22,"3,690.55 ",321000,Social Community Care Supplies & Services - Adult
5442845,FOSTER CARE ASSOCIATES LTD (FCA),Childrens Services,Children's Services,Foster Carer Agency Fees,07/01/22,"3,739.56 ",321000,Social Community Care Supplies & Services - Adult
5442841,FOSTER CARE ASSOCIATES LTD (FCA),Childrens Services,Children's Services,Foster Carer Agency Fees,07/01/22,"3,237.02 ",321000,Social Community Care Supplies & Services - Adult
5442844,FOSTER CARE ASSOCIATES LTD (FCA),Childrens Services,Children's Services,Foster Carer Agency Fees,07/01/22,"3,243.92 ",321000,Social Community Care Supplies & Services - Adult
5442843,FOSTER CARE ASSOCIATES LTD (FCA),Childrens Services,Children's Services,Foster Carer Agency Fees,07/01/22,"6,010.28 ",321000,Social Community Care Supplies & Services - Adult
5442840,FOSTER CARE ASSOCIATES LTD (FCA),Childrens Services,Children's Services,Foster Carer Agency Fees,07/01/22,"3,662.41 ",321000,Social Community Care Supplies & Services - Adult
5442842,FOSTER CARE ASSOCIATES LTD (FCA),Childrens Services,Children's Services,Foster Carer Agency Fees,07/01/22,"4,029.69 ",321000,Social Community Care Supplies & Services - Adult
5442839,FOSTER CARE ASSOCIATES LTD (FCA),Childrens Services,Children's Services,Foster Carer Agency Fees,07/01/22,"3,662.41 ",321000,Social Community Care Supplies & Services - Adult
5442847,FOSTER CARE ASSOCIATES LTD (FCA),Childrens Services,Children's Services,Foster Carer Agency Fees,07/01/22,"3,914.99 ",321000,Social Community Care Supplies & Services - Adult
5444617,DIRECT CARE (TAMESIDE) LTD,Adult Social Care,Adults,Homecare Fees,07/01/22,"42,053.16 ",321000,Social Community Care Supplies & Services - Adult
5442952,KAY PICTURES LTD,Education,Children's Services,Educational Equipment,07/01/22,560.00 ,150000,Consultancy
5442921,D.A. LANGUAGES LTD,Childrens Services,Children's Services,Professional Services,07/01/22,600.00 ,260000,Human Resources
5442754,ASHTON SIXTH FORM COLLEGE,Education,Children's Services,Post 16 FE College Fees,07/01/22,"13,158.00 ",UNCLASS,Unclassifiable
5442687,INSTITUTE OF REVENUES RATING AND VALUATION,Exchequer,Governance,Subscriptions,07/01/22,"1,200.00 ",200000,Financial Services
5442988,Redacted Supplier,Education,Children's Services,Non-Maintained School Fees,07/01/22,"21,614.07 ",321100,Social Community Care Supplies & Services - Children
5442676,CREATIVE SUPPORT LTD,Adult Social Care,Adults,Residential Home Long Stay Fees,07/01/22,"1,817.20 ",321000,Social Community Care Supplies & Services - Adult
5442657,Redacted Supplier,Childrens Services,Children's Services,Childrens Homes Outside Local Authority Fees,07/01/22,"5,020.73 ",321100,Social Community Care Supplies & Services - Children
5442656,Redacted Supplier,Childrens Services,Children's Services,Childrens Homes Outside Local Authority Fees,07/01/22,"17,678.40 ",321100,Social Community Care Supplies & Services - Children
5442655,Redacted Supplier,Childrens Services,Children's Services,Childrens Homes Outside Local Authority Fees,07/01/22,"11,978.70 ",321100,Social Community Care Supplies & Services - Children
5442661,Redacted Supplier,Childrens Services,Children's Services,Childrens Homes Outside Local Authority Fees,07/01/22,"11,335.80 ",321100,Social Community Care Supplies & Services - Children
5442660,Redacted Supplier,Childrens Services,Children's Services,Childrens Homes Outside Local Authority Fees,07/01/22,"7,586.51 ",321100,Social Community Care Supplies & Services - Children
5444160,ATLAS TRADING GROUP LTD,Operations and Neighbourhoods,Operations and Neighbourhoods,General Equipment Purchase,07/01/22,702.00 ,100000,Building Construction Materials
5442884,CAPITA BUSINESS SERVICES LIMITED,Exchequer,Governance,Computer Software Maintenance Costs,07/01/22,"11,580.00 ",270000,Information Communication Technology
5442547,SWIIS FOSTER CARE LTD,Childrens Services,Children's Services,Foster Carer Agency Fees,07/01/22,787.78 ,321100,Social Community Care Supplies & Services - Children
5442551,SWIIS FOSTER CARE LTD,Childrens Services,Children's Services,Foster Carer Agency Fees,07/01/22,"1,694.98 ",321100,Social Community Care Supplies & Services - Children
5442548,SWIIS FOSTER CARE LTD,Childrens Services,Children's Services,Foster Carer Agency Fees,07/01/22,863.03 ,321100,Social Community Care Supplies & Services - Children
5442552,SWIIS FOSTER CARE LTD,Childrens Services,Children's Services,Foster Carer Agency Fees,07/01/22,760.48 ,321100,Social Community Care Supplies & Services - Children
5442549,SWIIS FOSTER CARE LTD,Childrens Services,Children's Services,Foster Carer Agency Fees,07/01/22,696.99 ,321100,Social Community Care Supplies & Services - Children
5442999,ON365,GMPF (FX),GMPF (FX),Computer Hardware Maintenance Costs,07/01/22,"3,100.00 ",270000,Information Communication Technology
5442772,SWEEPWISE LIMITED,Operations and Neighbourhoods,Operations and Neighbourhoods,General Materials,07/01/22,"2,880.00 ",230000,Highway Equipment & Materials
5442689,KOMPAN LTD,Operations and Neighbourhoods,Operations and Neighbourhoods,General Materials,07/01/22,"6,388.05 ",330000,Sports & Playground Equipment & Maintenance
5442752,PHOENIX SOFTWARE LTD,GMPF (FX),GMPF (FX),Computer Software,07/01/22,"76,330.11 ",270000,Information Communication Technology
5442645,CHILD ACTION NORTHWEST,Adult Social Care,Adults,Professional Services,07/01/22,"1,170.06 ",-999999,Unclassifiable
5442634,FORBES SOLICITORS,Multiple Heads of Service,Multiple Strategic Directorates,Highways Insurance Claims,07/01/22,"1,347.39 ",280000,Legal Services
5442599,K P DODD CONSTRUCTION LTD,Housing,Director of Place,Mandatory Adaptations Grant (DFG),07/01/22,"1,050.00 ",390000,"Works - Construction, Repair & Maintenance"
5444758,Redacted Supplier,Education,Children's Services,Transport Of Ola Pupils,10/01/22,960.00 ,360000,Public Transport
5444805,Redacted Supplier,Operations and Neighbourhoods,Operations and Neighbourhoods,Hired Transport,10/01/22,"1,102.50 ",360000,Public Transport
5444807,Redacted Supplier,Operations and Neighbourhoods,Operations and Neighbourhoods,Hired Transport,10/01/22,"2,365.00 ",360000,Public Transport
5444515,Fanco Limited t/a 365 Medicare,Adult Social Care,Adults,Homecare Fees,10/01/22,524.65 ,321000,Social Community Care Supplies & Services - Adult
5444523,Fanco Limited t/a 365 Medicare,Adult Social Care,Adults,Homecare Fees,10/01/22,718.89 ,321000,Social Community Care Supplies & Services - Adult
5444626,Fanco Limited t/a 365 Medicare,Adult Social Care,Adults,Homecare Fees,10/01/22,735.55 ,321000,Social Community Care Supplies & Services - Adult
5445268,ALARM risk,Finance,Finance & IT,Professional Services,10/01/22,738.00 ,-999999,Unclassifiable
5444851,Wellbeing Property Solutions Ltd,Childrens Services,Children's Services,Childrens Homes Outside Local Authority Fees,10/01/22,700.00 ,261000,Human Resources
5444845,Wellbeing Property Solutions Ltd,Childrens Services,Children's Services,Childrens Homes Outside Local Authority Fees,10/01/22,700.00 ,261000,Human Resources
5444848,Wellbeing Property Solutions Ltd,Childrens Services,Children's Services,Childrens Homes Outside Local Authority Fees,10/01/22,700.00 ,261000,Human Resources
5442964,CCS Media,(blank),(blank),Computer Equipment,10/01/22,"3,108.93 ",-999999,Unclassifiable
5442965,CCS Media,(blank),(blank),Computer Equipment,10/01/22,"5,288.57 ",-999999,Unclassifiable
5444465,Headway Education,Individual Schools Budget,Children's Services,Professional Child Services,10/01/22,"2,800.00 ",-999999,Unclassifiable
5444415,TPR Care Services Ltd,Childrens Services,Children's Services,Living With Formal Support,10/01/22,"1,229.20 ",321100,Social Community Care Supplies & Services - Children
5444173,Redacted Supplier,People and Workforce Development,Governance,Professional Services,10/01/22,"31,128.00 ",-999999,Unclassifiable
470940,AGGREGATE INDUSTRIES UK LIMITED,Operations and Neighbourhoods,Operations and Neighbourhoods,General Materials,10/01/22,"1,560.31 ",230000,Highway Equipment & Materials
470940,ARCO LIMITED,Civil Engineers,Director of Place,Debits Goods Received,10/01/22,232.20 ,140000,Clothing
470940,ARCO LIMITED,Operations and Neighbourhoods,Operations and Neighbourhoods,General Materials,10/01/22,559.24 ,140000,Clothing
470940,ARCO LIMITED,Place,Growth,General Materials,10/01/22,119.92 ,140000,Clothing
470940,TARMAC CENTRAL LIMITED,Operations and Neighbourhoods,Operations and Neighbourhoods,General Materials,10/01/22,603.31 ,230000,Highway Equipment & Materials
470940,WILDE CONSULTING ENGINEERS,Operations and Neighbourhoods,Operations and Neighbourhoods,Sub-contractor Services,10/01/22,693.00 ,150000,Consultancy
470940,WOLSELEY UK LTD,Operations and Neighbourhoods,Operations and Neighbourhoods,General Materials,10/01/22,"12,162.00 ",230000,Highway Equipment & Materials
470940,BRAMHALL SURFACING LTD,Operations and Neighbourhoods,Operations and Neighbourhoods,Sub-contractor Services,10/01/22,"3,325.47 ",390000,"Works - Construction, Repair & Maintenance"
470940,4WAY CONSULTING LTD,Operations and Neighbourhoods,Operations and Neighbourhoods,General Materials,10/01/22,"1,757.48 ",180000,Environmental Services
470940,BRIDGE ELECTRICALSUPPLIES LTD,Civil Engineers,Director of Place,Debits Goods Received,10/01/22,"1,105.00 ",100000,Building Construction Materials
470940,BRIDGE ELECTRICALSUPPLIES LTD,Operations and Neighbourhoods,Operations and Neighbourhoods,General Materials,10/01/22,555.00 ,100000,Building Construction Materials
470940,MALLATITE LTD,Civil Engineers,Director of Place,Debits Goods Received,10/01/22,"13,166.18 ",230000,Highway Equipment & Materials
470940,ALTITUDE SERVICES,Operations and Neighbourhoods,Operations and Neighbourhoods,Sub-contractor Services,10/01/22,"15,787.40 ",230000,Highway Equipment & Materials
470940,HILTI (GB) LTD,Operations and Neighbourhoods,Operations and Neighbourhoods,General Materials,10/01/22,903.49 ,390000,"Works - Construction, Repair & Maintenance"
5445044,ASDA PHARMACY,Population Health,Population Health,Professional Services,10/01/22,"2,878.00 ",150000,Consultancy
5443237,GATEWAY QUALIFICATIONS,Place,Growth,Examination Fees,10/01/22,613.50 ,200000,Financial Services
5444399,Joes Travel LTD,Education,Children's Services,Transport Of Pupils,10/01/22,"1,608.75 ",360000,Public Transport
5444767,Joes Travel LTD,Education,Children's Services,Transport Of Post 16 Pupils,10/01/22,720.00 ,360000,Public Transport
5444768,Joes Travel LTD,Education,Children's Services,Transport Of Ola Pupils,10/01/22,"1,680.00 ",360000,Public Transport
5444770,Joes Travel LTD,Education,Children's Services,Transport Of Ola Pupils,10/01/22,"1,140.00 ",360000,Public Transport
5444406,Hyde Accessible Transport Limited,Operations and Neighbourhoods,Operations and Neighbourhoods,Hired Transport,10/01/22,700.00 ,360000,Public Transport
5444439,Hyde Accessible Transport Limited,Operations and Neighbourhoods,Operations and Neighbourhoods,Hired Transport,10/01/22,"1,530.00 ",360000,Public Transport
5444410,Hyde Accessible Transport Limited,Operations and Neighbourhoods,Operations and Neighbourhoods,Hired Transport,10/01/22,"1,222.50 ",360000,Public Transport
5444467,Hyde Accessible Transport Limited,Operations and Neighbourhoods,Operations and Neighbourhoods,Hired Transport,10/01/22,"2,070.00 ",360000,Public Transport
5444489,Hyde Accessible Transport Limited,Operations and Neighbourhoods,Operations and Neighbourhoods,Hired Transport,10/01/22,"5,457.50 ",360000,Public Transport
5444405,Hyde Accessible Transport Limited,Operations and Neighbourhoods,Operations and Neighbourhoods,Hired Transport,10/01/22,"1,255.00 ",360000,Public Transport
5444426,Hyde Accessible Transport Limited,Operations and Neighbourhoods,Operations and Neighbourhoods,Hired Transport,10/01/22,"3,125.00 ",360000,Public Transport
5444407,Hyde Accessible Transport Limited,Operations and Neighbourhoods,Operations and Neighbourhoods,Hired Transport,10/01/22,"1,187.50 ",360000,Public Transport
5444446,Hyde Accessible Transport Limited,Operations and Neighbourhoods,Operations and Neighbourhoods,Hired Transport,10/01/22,"1,445.00 ",360000,Public Transport
5444635,NMA Travel LTD,Education,Children's Services,Transport Of Pupils,10/01/22,"1,416.00 ",360000,Public Transport
5444774,STAMFORD CARS UK LTD,Education,Children's Services,Transport Of Ola Pupils,10/01/22,"1,500.00 ",361510,Public Transport
5445310,Montrose Recruitment Limited TA Montrose Living,Childrens Services,Children's Services,Living With Formal Support,11/01/22,"1,441.50 ",321100,Social Community Care Supplies & Services - Children
5445340,ISW CSC Limited,Childrens Services,Children's Services,Living With Formal Support,11/01/22,"3,214.28 ",260000,Human Resources
5445340,ISW CSC Limited,Childrens Services,Children's Services,Semi independent - Weekly Living Allowances,11/01/22,176.70 ,260000,Human Resources
5445320,ISW CSC Limited,Childrens Services,Children's Services,Living With Formal Support,11/01/22,"2,500.00 ",260000,Human Resources
5445323,ISW CSC Limited,Childrens Services,Children's Services,Living With Formal Support,11/01/22,"1,880.00 ",260000,Human Resources
5445328,ISW CSC Limited,Childrens Services,Children's Services,Living With Formal Support,11/01/22,"2,140.00 ",260000,Human Resources
5445331,ISW CSC Limited,Childrens Services,Children's Services,Living With Formal Support,11/01/22,"2,420.00 ",260000,Human Resources
5445334,ISW CSC Limited,Childrens Services,Children's Services,Living With Formal Support,11/01/22,"2,680.00 ",260000,Human Resources
5445334,ISW CSC Limited,Childrens Services,Children's Services,Semi independent - Weekly Living Allowances,11/01/22,117.80 ,260000,Human Resources
5445338,ISW CSC Limited,Childrens Services,Children's Services,Living With Formal Support,11/01/22,"3,668.56 ",260000,Human Resources
5445338,ISW CSC Limited,Childrens Services,Children's Services,Semi independent - Weekly Living Allowances,11/01/22,235.60 ,260000,Human Resources
5445318,ISW CSC Limited,Childrens Services,Children's Services,Living With Formal Support,11/01/22,"2,320.00 ",260000,Human Resources
5445311,ISW CSC Limited,Childrens Services,Children's Services,Living With Formal Support,11/01/22,"2,680.00 ",260000,Human Resources
5445324,ISW CSC Limited,Childrens Services,Children's Services,Living With Formal Support,11/01/22,"1,380.00 ",260000,Human Resources
5445327,ISW CSC Limited,Childrens Services,Children's Services,Living With Formal Support,11/01/22,"1,960.00 ",260000,Human Resources
5445332,ISW CSC Limited,Childrens Services,Children's Services,Living With Formal Support,11/01/22,"2,140.00 ",260000,Human Resources
5445333,ISW CSC Limited,Childrens Services,Children's Services,Living With Formal Support,11/01/22,"2,500.00 ",260000,Human Resources
5445333,ISW CSC Limited,Childrens Services,Children's Services,Semi independent - Weekly Living Allowances,11/01/22,117.80 ,260000,Human Resources
5445339,ISW CSC Limited,Childrens Services,Children's Services,Living With Formal Support,11/01/22,"3,214.28 ",260000,Human Resources
5445339,ISW CSC Limited,Childrens Services,Children's Services,Semi independent - Weekly Living Allowances,11/01/22,176.70 ,260000,Human Resources
5445317,ISW CSC Limited,Childrens Services,Children's Services,Living With Formal Support,11/01/22,"1,700.00 ",260000,Human Resources
5445312,ISW CSC Limited,Childrens Services,Children's Services,Living With Formal Support,11/01/22,"2,500.00 ",260000,Human Resources
5445322,ISW CSC Limited,Childrens Services,Children's Services,Living With Formal Support,11/01/22,"2,500.00 ",260000,Human Resources
5445325,ISW CSC Limited,Childrens Services,Children's Services,Living With Formal Support,11/01/22,"2,420.00 ",260000,Human Resources
5445330,ISW CSC Limited,Childrens Services,Children's Services,Living With Formal Support,11/01/22,"2,320.00 ",260000,Human Resources
5445335,ISW CSC Limited,Childrens Services,Children's Services,Living With Formal Support,11/01/22,"2,500.00 ",260000,Human Resources
5445335,ISW CSC Limited,Childrens Services,Children's Services,Semi independent - Weekly Living Allowances,11/01/22,117.80 ,260000,Human Resources
5445337,ISW CSC Limited,Childrens Services,Children's Services,Living With Formal Support,11/01/22,"1,960.00 ",260000,Human Resources
5445313,ISW CSC Limited,Childrens Services,Children's Services,Living With Formal Support,11/01/22,"2,320.00 ",260000,Human Resources
5445315,ISW CSC Limited,Childrens Services,Children's Services,Living With Formal Support,11/01/22,"2,142.85 ",260000,Human Resources
5445341,ISW CSC Limited,Childrens Services,Children's Services,Living With Formal Support,11/01/22,"2,014.27 ",260000,Human Resources
5445321,ISW CSC Limited,Childrens Services,Children's Services,Living With Formal Support,11/01/22,"1,960.00 ",260000,Human Resources
5445326,ISW CSC Limited,Childrens Services,Children's Services,Living With Formal Support,11/01/22,"1,980.00 ",260000,Human Resources
5445329,ISW CSC Limited,Childrens Services,Children's Services,Living With Formal Support,11/01/22,"2,320.00 ",260000,Human Resources
5445316,ISW CSC Limited,Childrens Services,Children's Services,Living With Formal Support,11/01/22,"2,320.00 ",260000,Human Resources
5442985,Stepping Stone Projects,Childrens Services,Children's Services,Living With Formal Support,11/01/22,"1,497.00 ",-999999,Unclassifiable
5443026,Paramount Children's Services,Childrens Services,Children's Services,Childrens Homes Outside Local Authority Fees,11/01/22,"19,980.00 ",321018,Social Community Care Supplies & Services
5443014,Amore Social Care Ltd,Childrens Services,Children's Services,Childrens Homes Outside Local Authority Fees,11/01/22,"12,793.36 ",310000,Healthcare
5445302,TPR Care Services Ltd,Childrens Services,Children's Services,Living With Formal Support,11/01/22,"1,229.20 ",321100,Social Community Care Supplies & Services - Children
5445304,TPR Care Services Ltd,Childrens Services,Children's Services,Living With Formal Support,11/01/22,"1,544.20 ",321100,Social Community Care Supplies & Services - Children
5445300,TPR Care Services Ltd,Childrens Services,Children's Services,Living With Formal Support,11/01/22,"1,604.92 ",321100,Social Community Care Supplies & Services - Children
5445367,UNITAS,Childrens Services,Children's Services,Training Course Costs,11/01/22,750.00 ,-999999,Unclassifiable
5444453,Hyde Accessible Transport Limited,Education,Children's Services,Transport Of Post 16 Pupils,11/01/22,"1,462.50 ",360000,Public Transport
5444436,Hyde Accessible Transport Limited,Operations and Neighbourhoods,Operations and Neighbourhoods,Hired Transport,11/01/22,"1,125.00 ",360000,Public Transport
5444461,Hyde Accessible Transport Limited,Operations and Neighbourhoods,Operations and Neighbourhoods,Hired Transport,11/01/22,"1,020.00 ",360000,Public Transport
5444454,Hyde Accessible Transport Limited,Education,Children's Services,Transport Of Pupils,11/01/22,"1,625.00 ",360000,Public Transport
5444466,Hyde Accessible Transport Limited,Education,Children's Services,Transport Of Pupils,11/01/22,"1,300.00 ",360000,Public Transport
5445308,Hyde Accessible Transport Limited,Education,Children's Services,Transport Of Post 16 Pupils,11/01/22,"1,462.50 ",360000,Public Transport
5444633,NMA Travel LTD,Education,Children's Services,Transport Of Pupils,11/01/22,"1,488.00 ",360000,Public Transport
5443350,STOCKPORT MBC,Population Health,Population Health,Professional Services,11/01/22,"111,730.08 ",400000,Non 3rd Party spend  
5443982,CREATIVE SUPPORT LTD,Adult Social Care,Adults,Homecare Fees,11/01/22,560.00 ,321000,Social Community Care Supplies & Services - Adult
5445363,Redacted Supplier,Adult Social Care,Adults,Voluntary Organisations Fees,11/01/22,"2,000.00 ",329999,Social Community Care Supplies & Services
5444784,STAMFORD CARS UK LTD,Education,Children's Services,Transport Of Ola Pupils,11/01/22,780.00 ,361510,Public Transport
5444734,STAMFORD CARS UK LTD,Education,Children's Services,Transport Of Ola Pupils,11/01/22,"2,145.00 ",361510,Public Transport
5444742,STAMFORD CARS UK LTD,Education,Children's Services,Transport Of Pupils,11/01/22,"1,040.00 ",361510,Public Transport
5444750,STAMFORD CARS UK LTD,Education,Children's Services,Transport Of Post 16 Pupils,11/01/22,975.00 ,361510,Public Transport
5444772,STAMFORD CARS UK LTD,Education,Children's Services,Transport Of Pupils,11/01/22,"1,235.00 ",361510,Public Transport
5444777,STAMFORD CARS UK LTD,Education,Children's Services,Transport Of Ola Pupils,11/01/22,"1,590.00 ",361510,Public Transport
5444779,STAMFORD CARS UK LTD,Education,Children's Services,Transport Of Ola Pupils,11/01/22,930.00 ,361510,Public Transport
5444783,STAMFORD CARS UK LTD,Education,Children's Services,Transport Of Pupils,11/01/22,"1,140.00 ",361510,Public Transport
5444607,STAMFORD CARS UK LTD,Education,Children's Services,Transport Of Post 16 Pupils,11/01/22,617.50 ,361510,Public Transport
5444659,STAMFORD CARS UK LTD,Education,Children's Services,Transport Of Post 16 Pupils,11/01/22,"1,430.00 ",361510,Public Transport
5444730,STAMFORD CARS UK LTD,Education,Children's Services,Transport Of Pupils,11/01/22,617.50 ,361510,Public Transport
5444735,STAMFORD CARS UK LTD,Education,Children's Services,Transport Of Pupils,11/01/22,"1,430.00 ",361510,Public Transport
5444737,STAMFORD CARS UK LTD,Education,Children's Services,Transport Of Ola Pupils,11/01/22,"1,300.00 ",361510,Public Transport
5444739,STAMFORD CARS UK LTD,Education,Children's Services,Transport Of Ola Pupils,11/01/22,"1,200.00 ",361510,Public Transport
5444741,STAMFORD CARS UK LTD,Education,Children's Services,Transport Of Pupils,11/01/22,"1,235.00 ",361510,Public Transport
5444745,STAMFORD CARS UK LTD,Education,Children's Services,Transport Of Ola Pupils,11/01/22,"1,170.00 ",361510,Public Transport
5444747,STAMFORD CARS UK LTD,Education,Children's Services,Transport Of Pupils,11/01/22,"1,072.50 ",361510,Public Transport
5444749,STAMFORD CARS UK LTD,Education,Children's Services,Transport Of Ola Pupils,11/01/22,"1,350.00 ",361510,Public Transport
5444766,STAMFORD CARS UK LTD,Education,Children's Services,Transport Of Pupils,11/01/22,"1,235.00 ",361510,Public Transport
5444629,STAMFORD CARS UK LTD,Education,Children's Services,Transport Of Pupils,11/01/22,"1,235.00 ",361510,Public Transport
5444782,STAMFORD CARS UK LTD,Education,Children's Services,Transport Of Ola Pupils,11/01/22,"1,640.00 ",361510,Public Transport
5444589,STAMFORD CARS UK LTD,Education,Children's Services,Transport Of Pupils,11/01/22,"1,235.00 ",361510,Public Transport
5444597,STAMFORD CARS UK LTD,Education,Children's Services,Transport Of Ola Pupils,11/01/22,"1,007.50 ",361510,Public Transport
5444602,STAMFORD CARS UK LTD,Education,Children's Services,Transport Of Ola Pupils,11/01/22,"1,495.00 ",361510,Public Transport
5444616,STAMFORD CARS UK LTD,Education,Children's Services,Transport Of Post 16 Pupils,11/01/22,"1,430.00 ",361510,Public Transport
5444704,STAMFORD CARS UK LTD,Education,Children's Services,Transport Of Ola Pupils,11/01/22,"1,690.00 ",361510,Public Transport
5444743,STAMFORD CARS UK LTD,Education,Children's Services,Transport Of Ola Pupils,11/01/22,"1,917.50 ",361510,Public Transport
5444754,STAMFORD CARS UK LTD,Education,Children's Services,Transport Of Post 16 Pupils,11/01/22,520.00 ,361510,Public Transport
5444757,STAMFORD CARS UK LTD,Education,Children's Services,Transport Of Post 16 Pupils,11/01/22,930.00 ,361510,Public Transport
5444759,STAMFORD CARS UK LTD,Education,Children's Services,Transport Of Pupils,11/01/22,720.00 ,361510,Public Transport
5444761,STAMFORD CARS UK LTD,Education,Children's Services,Transport Of Pupils,11/01/22,570.00 ,361510,Public Transport
5444769,STAMFORD CARS UK LTD,Education,Children's Services,Transport Of Pupils,11/01/22,"1,235.00 ",361510,Public Transport
5444593,STAMFORD CARS UK LTD,Education,Children's Services,Transport Of Pupils,11/01/22,780.00 ,361510,Public Transport
5444727,STAMFORD CARS UK LTD,Education,Children's Services,Transport Of Pupils,11/01/22,"1,235.00 ",361510,Public Transport
5445478,Montrose Recruitment Limited TA Montrose Living,Childrens Services,Children's Services,Living With Formal Support,12/01/22,"4,207.14 ",321100,Social Community Care Supplies & Services - Children
5445478,Montrose Recruitment Limited TA Montrose Living,Childrens Services,Children's Services,Semi independent - Weekly Living Allowances,12/01/22,260.84 ,321100,Social Community Care Supplies & Services - Children
5444069,Inspire Scotland Limited,Childrens Services,Children's Services,Childrens Homes Outside Local Authority Fees,12/01/22,"16,806.43 ",321100,Social Community Care Supplies & Services - Children
5444074,Inspire Scotland Limited,Childrens Services,Children's Services,Childrens Homes Outside Local Authority Fees,12/01/22,"16,806.43 ",321100,Social Community Care Supplies & Services - Children
5445314,ISW CSC Limited,Childrens Services,Children's Services,Living With Formal Support,12/01/22,"1,960.00 ",260000,Human Resources
5445336,ISW CSC Limited,Childrens Services,Children's Services,Childrens Homes Outside Local Authority Fees,12/01/22,"2,077.80 ",260000,Human Resources
5443037,YOUNG PEOPLE FIRST LIMITED,Childrens Services,Children's Services,Living With Formal Support,12/01/22,"2,100.00 ",321100,Social Community Care Supplies & Services - Children
5443039,YOUNG PEOPLE FIRST LIMITED,Childrens Services,Children's Services,Living With Formal Support,12/01/22,850.00 ,321100,Social Community Care Supplies & Services - Children
5443036,YOUNG PEOPLE FIRST LIMITED,Childrens Services,Children's Services,Living With Formal Support,12/01/22,"1,225.00 ",321100,Social Community Care Supplies & Services - Children
5445236,Redacted Supplier,People and Workforce Development,Governance,Training Course Costs,12/01/22,512.50 ,400000,Non 3rd Party spend  
5443034,Holden Knight Education Ltd,Individual Schools Budget,Children's Services,Agency Staff,12/01/22,"1,125.00 ",261400,Human Resources
5440267,BTTLR LIMITED T/A Connecting Hands Healthcare Services,Childrens Services,Children's Services,Childrens Homes Outside Local Authority Fees,12/01/22,"11,300.00 ",-999999,Unclassifiable
5443055,BTTLR LIMITED T/A Connecting Hands Healthcare Services,Childrens Services,Children's Services,Childrens Homes Outside Local Authority Fees,12/01/22,"11,300.00 ",-999999,Unclassifiable
5443069,DOMAIN CARE NORTH WEST LTD,Adult Social Care,Adults,Homecare Fees,12/01/22,"1,256.68 ",321100,Social Community Care Supplies & Services - Children
5443115,Redacted Supplier,Education,Children's Services,Training Course Costs,12/01/22,750.00 ,-999999,Unclassifiable
5443096,Randstad Public Services Limited,Individual Schools Budget,Children's Services,Agency Staff,12/01/22,995.00 ,170000,Education
5444800,Redacted Supplier,Education,Children's Services,Transport Of Pupils,12/01/22,"1,596.00 ",360000,Public Transport
5444763,Redacted Supplier,Education,Children's Services,Transport Of Pupils,12/01/22,"1,404.00 ",360000,Public Transport
5444803,Redacted Supplier,Education,Children's Services,Transport Of Pupils,12/01/22,"1,170.00 ",360000,Public Transport
5444802,Redacted Supplier,Education,Children's Services,Transport Of Pupils,12/01/22,"1,079.00 ",360000,Public Transport
5443125,Redacted Supplier,Digital Tameside,Finance & IT,IT Equipment,12/01/22,"1,231.50 ",270000,Information Communication Technology
5443087,REGENDA LIMITED,Adult Social Care,Adults,Non-Authority Accommodation Rental,12/01/22,"2,152.54 ",250000,Housing Management
5443086,REGENDA LIMITED,Adult Social Care,Adults,"Fixtures, Fittings & Furniture Purchase",12/01/22,"15,883.61 ",250000,Housing Management
5444598,PERSON CENTRED CARE SERVICES LIMITED,Adult Social Care,Adults,Homecare Fees,12/01/22,999.00 ,310000,Healthcare
5443022,INSPIREDSPACES TAMESIDE LTD,(blank),(blank),Refurbish Accommodation Works,12/01/22,"129,072.54 ",390000,"Works - Construction, Repair & Maintenance"
5445472,Oxygen Finance Limited,People and Workforce Development,Governance,Professional Services,12/01/22,"3,163.26 ",200000,Financial Services
5445488,Next Stage 'A Way Forward' Youth Development LTD,Childrens Services,Children's Services,Living With Formal Support,12/01/22,"4,650.00 ",321100,Social Community Care Supplies & Services - Children
5442967,Orange Grove Fostercare LTD,Childrens Services,Children's Services,Foster Carer Agency Fees,12/01/22,"3,496.60 ",321100,Social Community Care Supplies & Services - Children
5443100,Redacted Supplier,Education,Children's Services,Professional Services,12/01/22,"1,100.00 ",321100,Social Community Care Supplies & Services - Children
5443099,Redacted Supplier,Education,Children's Services,Professional Services,12/01/22,"1,100.00 ",321100,Social Community Care Supplies & Services - Children
5412296,GREATER MANCHESTER COMBINED AUTHORITY,Operations and Neighbourhoods,Operations and Neighbourhoods,Passenger Transport Levy,12/01/22,"844,834.00 ",-999999,Unclassifiable
5412316,GREATER MANCHESTER COMBINED AUTHORITY,Operations and Neighbourhoods,Operations and Neighbourhoods,Passenger Transport Levy,12/01/22,"692,494.00 ",-999999,Unclassifiable
5443092,TEACHING PERSONNEL LTD,Individual Schools Budget,Children's Services,Agency Staff,12/01/22,"1,015.40 ",260000,Human Resources
5443088,TEACHING PERSONNEL LTD,Individual Schools Budget,Children's Services,Agency Staff,12/01/22,693.88 ,260000,Human Resources
5443098,CREATIVE SUPPORT LTD,Adult Social Care,Adults,Homecare Fees,12/01/22,"13,493.04 ",321000,Social Community Care Supplies & Services - Adult
5444647,STAMFORD CARS UK LTD,Operations and Neighbourhoods,Operations and Neighbourhoods,Hired Transport,12/01/22,630.00 ,361510,Public Transport
5444780,STAMFORD CARS UK LTD,Operations and Neighbourhoods,Operations and Neighbourhoods,Hired Transport,12/01/22,975.00 ,361510,Public Transport
5444771,STAMFORD CARS UK LTD,Operations and Neighbourhoods,Operations and Neighbourhoods,Hired Transport,12/01/22,"1,040.00 ",361510,Public Transport
5444604,STAMFORD CARS UK LTD,Operations and Neighbourhoods,Operations and Neighbourhoods,Transport Of Pupils,12/01/22,600.00 ,361510,Public Transport
5444705,STAMFORD CARS UK LTD,Operations and Neighbourhoods,Operations and Neighbourhoods,Hired Transport,12/01/22,"1,430.00 ",361510,Public Transport
5444755,STAMFORD CARS UK LTD,Operations and Neighbourhoods,Operations and Neighbourhoods,Hired Transport,12/01/22,690.00 ,361510,Public Transport
5444653,STAMFORD CARS UK LTD,Operations and Neighbourhoods,Operations and Neighbourhoods,Hired Transport,12/01/22,825.00 ,361510,Public Transport
5444748,STAMFORD CARS UK LTD,Operations and Neighbourhoods,Operations and Neighbourhoods,Transport Of Pupils,12/01/22,"1,170.00 ",361510,Public Transport
5444762,STAMFORD CARS UK LTD,Operations and Neighbourhoods,Operations and Neighbourhoods,Hired Transport,12/01/22,870.00 ,361510,Public Transport
5444732,STAMFORD CARS UK LTD,Operations and Neighbourhoods,Operations and Neighbourhoods,Hired Transport,12/01/22,900.00 ,361510,Public Transport
5444756,STAMFORD CARS UK LTD,Operations and Neighbourhoods,Operations and Neighbourhoods,Hired Transport,12/01/22,802.50 ,361510,Public Transport
5444656,STAMFORD CARS UK LTD,Operations and Neighbourhoods,Operations and Neighbourhoods,Hired Transport,12/01/22,761.25 ,361510,Public Transport
3250846,BURNT TREE GROUP LIMITED,Operations and Neighbourhoods,Operations and Neighbourhoods,Additional Hire,13/01/22,"1,198.90 ",380000,Vehicle Management
3250846,BURNT TREE GROUP LIMITED,Operations and Neighbourhoods,Operations and Neighbourhoods,Replacement Hire,13/01/22,828.87 ,380000,Vehicle Management
3250846,BURNT TREE GROUP LIMITED,Operations and Neighbourhoods,Operations and Neighbourhoods,Tyre Costs,13/01/22,98.26 ,380000,Vehicle Management
3250846,BURNT TREE GROUP LIMITED,Operations and Neighbourhoods,Operations and Neighbourhoods,Workshop Recharges including Misuse & Damage Costs,13/01/22,328.56 ,380000,Vehicle Management
3250846,DENNIS EAGLE LTD,Transport,Director of Place,Debits Goods Received,13/01/22,"1,048.76 ",380000,Vehicle Management
3250846,DENNIS EAGLE LTD,Operations and Neighbourhoods,Operations and Neighbourhoods,General Materials,13/01/22,"1,282.27 ",380000,Vehicle Management
3250846,G B OILS TA CARLTON FUELS,Transport,Director of Place,Diesel Fuel,13/01/22,"42,811.65 ",380000,Vehicle Management
3250846,JOHNSTON SWEEPERS LTD,Operations and Neighbourhoods,Operations and Neighbourhoods,General Materials,13/01/22,805.78 ,180000,Environmental Services
3250846,MULTEVO LIMITED,Operations and Neighbourhoods,Operations and Neighbourhoods,Sub-contractor Services,13/01/22,"4,535.86 ",-999999,Unclassifiable
3250846,AEBI SCHMIDT UK LTD,Transport,Director of Place,Debits Goods Received,13/01/22,"1,857.81 ",380000,Vehicle Management
3250846,A & J MOTORSPARES,Operations and Neighbourhoods,Operations and Neighbourhoods,Consumable Materials,13/01/22,67.60 ,380000,Vehicle Management
3250846,A & J MOTORSPARES,Operations and Neighbourhoods,Operations and Neighbourhoods,General Equipment Purchase,13/01/22,151.64 ,380000,Vehicle Management
3250846,A & J MOTORSPARES,Operations and Neighbourhoods,Operations and Neighbourhoods,General Materials,13/01/22,726.54 ,380000,Vehicle Management
3250846,Teletrac Navman UK LTD (in corporating Navman Wireless UK LTD),Operations and Neighbourhoods,Operations and Neighbourhoods,General Equipment Repair & Maintenance,13/01/22,"5,099.33 ",360000,Public Transport
3250846,BRENNTAG UK LIMITED,Transport,Director of Place,Fuel / Ad Blu,13/01/22,857.00 ,130000,Cleaning & Janitorial
3250846,CALIBRATION &CONSULTANCYSERVICES (UK) LTD,Operations and Neighbourhoods,Operations and Neighbourhoods,General Equipment Repair & Maintenance,13/01/22,686.47 ,150000,Consultancy
3250846,JOHNSONS APPARELMASTER LTD,Operations and Neighbourhoods,Operations and Neighbourhoods,Protective Clothing,13/01/22,569.20 ,141300,Clothing
3250846,RIVERSIDE TRUCK RENTAL LIMITED,Operations and Neighbourhoods,Operations and Neighbourhoods,Additional Hire,13/01/22,"8,055.00 ",380000,Vehicle Management
3250846,Redacted Supplier,Operations and Neighbourhoods,Operations and Neighbourhoods,Replacement Hire,13/01/22,"3,312.00 ",380000,Vehicle Management
3250846,MOTUS COMMERCIALS (OLDHAM),Operations and Neighbourhoods,Operations and Neighbourhoods,General Materials,13/01/22,"1,712.02 ",380000,Vehicle Management
3250846,HTF TYRE SERVICES LTD,Operations and Neighbourhoods,Operations and Neighbourhoods,Tyre Costs,13/01/22,"1,893.00 ",380000,Vehicle Management
3250846,JDS TRUCKS LIMITED,Transport,Director of Place,Debits Goods Received,13/01/22,"1,293.22 ",381000,Vehicle Management
3250846,JDS TRUCKS LIMITED,Operations and Neighbourhoods,Operations and Neighbourhoods,General Materials,13/01/22,"1,235.29 ",381000,Vehicle Management
3250846,GARIC LTD,Operations and Neighbourhoods,Operations and Neighbourhoods,Additional Hire,13/01/22,"1,421.40 ",-999999,Unclassifiable
3250846,GARIC LTD,Operations and Neighbourhoods,Operations and Neighbourhoods,Workshop Recharges including Misuse & Damage Costs,13/01/22,102.60 ,-999999,Unclassifiable
3250846,MANTRA LEARNING LIMITED,Operations and Neighbourhoods,Operations and Neighbourhoods,Training Course Costs,13/01/22,763.00 ,260000,Human Resources
3250846,WASTE PARTS UK LTD,Operations and Neighbourhoods,Operations and Neighbourhoods,General Materials,13/01/22,927.76 ,182200,Environmental Services
5445514,Fanco Limited t/a 365 Medicare,Adult Social Care,Adults,Homecare Fees,13/01/22,524.65 ,321000,Social Community Care Supplies & Services - Adult
5442038,KEYS PCE LTD,Education,Children's Services,Independent School Fees,13/01/22,"3,184.00 ",321100,Social Community Care Supplies & Services - Children
5443214,Redacted Supplier,Education,Children's Services,Non-Maintained School Fees,13/01/22,960.00 ,-999999,Unclassifiable
5443222,SURECARE TAMESIDE & OLDHAM,Adult Social Care,Adults,Homecare Fees,13/01/22,"3,246.39 ",111230,Catering
5443226,Milestone Living Limited,Childrens Services,Children's Services,Childrens Homes Outside Local Authority Fees,13/01/22,"28,350.00 ",321017,Social Community Care Supplies & Services - Adult
5445742,Redacted Supplier,Contingency,Contingency,COVID-19 Test and Trace Support Payments - Statutory,13/01/22,500.00 ,-999999,Unclassifiable
5445621,NSL LIMITED,Operations and Neighbourhoods,Operations and Neighbourhoods,Fees,13/01/22,"1,413.45 ",350000,Street & Traffic Management
5443229,Redacted Supplier,Childrens Services,Children's Services,Professional Consultancy Services,13/01/22,"1,977.00 ",321100,Social Community Care Supplies & Services - Children
5445530,BEACHCROFT,Tameside Investment Partnership,Director of Place,Consultancies,13/01/22,"9,984.00 ",280000,Legal Services
5445525,BEACHCROFT,Tameside Investment Partnership,Director of Place,Consultancies,13/01/22,"12,792.00 ",280000,Legal Services
5445527,BEACHCROFT,Tameside Investment Partnership,Director of Place,Consultancies,13/01/22,"9,255.00 ",280000,Legal Services
5445529,BEACHCROFT,Tameside Investment Partnership,Director of Place,Consultancies,13/01/22,"6,404.00 ",280000,Legal Services
5443241,POSITIVE STEPS OLDHAM,Place,Growth,Professional Services,13/01/22,"12,328.77 ",261400,Human Resources
5444527,ROCHDALE MBC,Hosted Services,Hosted Services,Computer Hardware Maintenance Costs,13/01/22,"22,200.10 ",-999999,Unclassifiable
5443230,NEW IMAGE LIGHTING,Corporate Costs,Corporate Costs,Event Related Activity,13/01/22,630.00 ,100000,Building Construction Materials
5445802,Redacted Supplier,Childrens Services,Children's Services,Special Guardianship Allowance,13/01/22,"1,058.40 ",-999999,Unclassifiable
5438398,THREE CIRCLES FOSTERING LTD,Childrens Services,Children's Services,Foster Carer Agency Fees,13/01/22,"4,122.00 ",321100,Social Community Care Supplies & Services - Children
5443240,CITY LIFT SERVICES (NW) LTD,Adult Social Care,Adults,General Equipment Repair & Maintenance,13/01/22,"1,550.00 ",390000,"Works - Construction, Repair & Maintenance"
5445640,Community Integrated Care,Adult Social Care,Adults,Homecare Fees,13/01/22,670.80 ,321000,Social Community Care Supplies & Services - Adult
5445639,Community Integrated Care,Adult Social Care,Adults,Homecare Fees,13/01/22,670.80 ,321000,Social Community Care Supplies & Services - Adult
5445647,ABLE CARE AND SUPPORT SERVICES LTD,Adult Social Care,Adults,Homecare Fees,13/01/22,"10,714.84 ",321000,Social Community Care Supplies & Services - Adult
5443393,CARE 4 CHILDREN RESIDENTIAL SERVICES LTD,Childrens Services,Children's Services,Foster Carer Agency Fees,13/01/22,"5,469.33 ",321100,Social Community Care Supplies & Services - Children
5443394,CARE 4 CHILDREN RESIDENTIAL SERVICES LTD,Childrens Services,Children's Services,Foster Carer Agency Fees,13/01/22,"5,367.14 ",321100,Social Community Care Supplies & Services - Children
5445164,GREATER MANCHESTER DYSLEXIA CENTRE,Place,Growth,Miscellaneous Expenses,13/01/22,"1,000.00 ",170000,Education
5445803,QUICK FIT CARPETS,Housing,Director of Place,Minor Works - Building,13/01/22,680.00 ,321000,Social Community Care Supplies & Services - Adult
5443190,COMPUTEAM LTD,Individual Schools Budget,Children's Services,IT Equipment,13/01/22,"6,383.80 ",270000,Information Communication Technology
5444287,MEDACS HEALTHCARE,Adult Social Care,Adults,Homecare Fees,13/01/22,"18,399.27 ",150000,Consultancy
5444842,Viva Minibus LTD,Education,Children's Services,Transport Of Pupils,13/01/22,"1,690.00 ",230000,Highway Equipment & Materials
5444852,Viva Minibus LTD,Childrens Services,Children's Services,Transport Of Pupils,13/01/22,780.00 ,230000,Highway Equipment & Materials
5444855,Viva Minibus LTD,Education,Children's Services,Transport Of Pupils,13/01/22,"1,430.00 ",230000,Highway Equipment & Materials
5443238,EON,Adult Social Care,Adults,Electricity,13/01/22,"1,018.43 ",370000,Utilities
5445765,GREATER MANCHESTER COMBINED AUTHORITY,Engineers Client,Director of Place,Fees,13/01/22,"7,479.69 ",-999999,Unclassifiable
5443242,CROMWELL POLYTHENE LTD.,Operations and Neighbourhoods,Operations and Neighbourhoods,Purchase Plastic Sacks,13/01/22,"9,052.20 ",-999999,Unclassifiable
5443223,THE TOGETHER CENTRE - LOXLEY HOUSE CIO,Adult Social Care,Adults,Voluntary Organisations Fees,13/01/22,"3,455.00 ",-999999,Unclassifiable
5443236,STAFF CARE SERVICES,Adult Social Care,Adults,Professional Consultancy Services,13/01/22,"1,027.06 ",260000,Human Resources
5443248,MHR International UK Limited,People and Workforce Development,Governance,Computer Software,13/01/22,"2,808.00 ",270000,Information Communication Technology
5444746,STAMFORD CARS UK LTD,Education,Children's Services,Transport Of Pupils,13/01/22,"1,040.00 ",361510,Public Transport
5444738,STAMFORD CARS UK LTD,Education,Children's Services,Transport Of Ola Pupils,13/01/22,"1,320.00 ",361510,Public Transport
5445566,SANTANDER UK PLC,Finance,Finance & IT,National Giro,13/01/22,"4,817.74 ",200000,Financial Services
5445878,SANTANDER UK PLC,Finance,Finance & IT,National Giro,13/01/22,"4,946.02 ",200000,Financial Services
5445861,WORLDPAY,Finance,Finance & IT,National Giro,13/01/22,"11,454.83 ",200000,Financial Services
5445829,BARCLAYCARD COMMERCIAL,Childrens Services,Children's Services,Procurement Hub Holding Account,13/01/22,"20,344.49 ",200000,Financial Services
5445829,BARCLAYCARD COMMERCIAL,Individual Schools Budget,Children's Services,Procurement Hub Holding Account,13/01/22,"1,238.27 ",200000,Financial Services
5445829,BARCLAYCARD COMMERCIAL,Operations and Neighbourhoods,Operations and Neighbourhoods,Procurement Hub Holding Account,13/01/22,"1,808.20 ",200000,Financial Services
5445829,BARCLAYCARD COMMERCIAL,Education,Children's Services,Procurement Hub Holding Account,13/01/22,293.67 ,200000,Financial Services
5445829,BARCLAYCARD COMMERCIAL,Hosted Services,Hosted Services,Procurement Hub Holding Account,13/01/22,"1,249.30 ",200000,Financial Services
5445829,BARCLAYCARD COMMERCIAL,Adult Social Care,Adults,Procurement Hub Holding Account,13/01/22,712.96 ,200000,Financial Services
5445829,BARCLAYCARD COMMERCIAL,Place,Growth,Procurement Hub Holding Account,13/01/22,101.02 ,200000,Financial Services
5445829,BARCLAYCARD COMMERCIAL,Digital Tameside,Finance & IT,Procurement Hub Holding Account,13/01/22,651.29 ,200000,Financial Services
5445829,BARCLAYCARD COMMERCIAL,Policy and Communications,Governance,Procurement Hub Holding Account,13/01/22,925.40 ,200000,Financial Services
5445829,BARCLAYCARD COMMERCIAL,Finance,Finance & IT,Procurement Hub Holding Account,13/01/22,"1,338.00 ",200000,Financial Services
5445887,SIEMENS FINANCIAL SERVICES LTD,Adult Social Care,Adults,IT Equipment,13/01/22,"20,571.22 ",200000,Financial Services
5445834,AD HOC CHAPS PAYMENT,Operations and Neighbourhoods,Operations and Neighbourhoods,Other Accommodation Related Costs,13/01/22,800.00 ,400002,Chaps Payments
5445830,AD HOC CHAPS PAYMENT,Operations and Neighbourhoods,Operations and Neighbourhoods,Other Accommodation Related Costs,13/01/22,862.50 ,400002,Chaps Payments
5445880,AD HOC CHAPS PAYMENT,Operations and Neighbourhoods,Operations and Neighbourhoods,Other Accommodation Related Costs,13/01/22,"1,650.00 ",400002,Chaps Payments
5445837,AD HOC CHAPS PAYMENT,Operations and Neighbourhoods,Operations and Neighbourhoods,Other Accommodation Related Costs,13/01/22,990.00 ,400002,Chaps Payments
5445848,AD HOC CHAPS PAYMENT,Multiple Heads of Service,Multiple Strategic Directorates,Debits Superann Local Govt,13/01/22,"707,618.46 ",400002,Chaps Payments
5445848,AD HOC CHAPS PAYMENT,(blank),(blank),Debits Superann Local Govt,13/01/22,"1,058.45 ",400002,Chaps Payments
5445879,AD HOC CHAPS PAYMENT,Multiple Heads of Service,Multiple Strategic Directorates,Debits Superann Teachers,13/01/22,"1,230,443.50 ",400002,Chaps Payments
5445832,AD HOC CHAPS PAYMENT,Operations and Neighbourhoods,Operations and Neighbourhoods,Other Accommodation Related Costs,13/01/22,"1,100.18 ",400002,Chaps Payments
5445836,AD HOC CHAPS PAYMENT,Operations and Neighbourhoods,Operations and Neighbourhoods,Other Accommodation Related Costs,13/01/22,"1,190.00 ",400002,Chaps Payments
5445882,AD HOC CHAPS PAYMENT,Multiple Heads of Service,Multiple Strategic Directorates,Debits,13/01/22,"3,122.90 ",400002,Chaps Payments
5443384,Pickering Psychology Services Limited,Childrens Services,Children's Services,Professional Child Services,14/01/22,570.06 ,280000,Legal Services
5443667,Complete Care & Enablement Services LTD,Adult Social Care,Adults,Residential Home Long Stay Fees,14/01/22,"5,916.35 ",321000,Social Community Care Supplies & Services - Adult
5443670,Complete Care & Enablement Services LTD,Adult Social Care,Adults,Residential Home Long Stay Fees,14/01/22,"5,916.35 ",321000,Social Community Care Supplies & Services - Adult
5443669,Complete Care & Enablement Services LTD,Adult Social Care,Adults,Residential Home Long Stay Fees,14/01/22,"5,916.35 ",321000,Social Community Care Supplies & Services - Adult
5443386,Redacted Supplier,Education,Children's Services,Other Local Authorities Fees,14/01/22,878.00 ,321100,Social Community Care Supplies & Services - Children
5443388,Redacted Supplier,Childrens Services,Children's Services,Childrens Homes Outside Local Authority Fees,14/01/22,"1,599.39 ",170000,Education
5443391,Redacted Supplier,Education,Children's Services,Other Local Authorities Fees,14/01/22,"3,570.00 ",170000,Education
5443345,Sandcastle Care LTD,Childrens Services,Children's Services,Childrens Homes Outside Local Authority Fees,14/01/22,"18,821.43 ",321000,Social Community Care Supplies & Services - Adult
5443347,Sandcastle Care LTD,Childrens Services,Children's Services,Childrens Homes Outside Local Authority Fees,14/01/22,"26,549.29 ",321000,Social Community Care Supplies & Services - Adult
5443344,Sandcastle Care LTD,Childrens Services,Children's Services,Childrens Homes Outside Local Authority Fees,14/01/22,"26,549.29 ",321000,Social Community Care Supplies & Services - Adult
5443346,Sandcastle Care LTD,Childrens Services,Children's Services,Childrens Homes Outside Local Authority Fees,14/01/22,"26,549.29 ",321000,Social Community Care Supplies & Services - Adult
5443269,Furniture Resource Centre Ltd,Operations and Neighbourhoods,Operations and Neighbourhoods,"Fixtures, Fittings & Furniture Purchase",14/01/22,526.84 ,#N/A,Furniture & Soft Furnishings
5443270,Furniture Resource Centre Ltd,Operations and Neighbourhoods,Operations and Neighbourhoods,"Fixtures, Fittings & Furniture Purchase",14/01/22,909.22 ,#N/A,Furniture & Soft Furnishings
5443561,Furniture Resource Centre Ltd,(blank),(blank),"Fixtures, Fittings & Furniture Purchase",14/01/22,664.72 ,#N/A,Furniture & Soft Furnishings
5443257,Furniture Resource Centre Ltd,Operations and Neighbourhoods,Operations and Neighbourhoods,"Fixtures, Fittings & Furniture Purchase",14/01/22,684.26 ,#N/A,Furniture & Soft Furnishings
5443556,Furniture Resource Centre Ltd,(blank),(blank),"Fixtures, Fittings & Furniture Purchase",14/01/22,843.08 ,#N/A,Furniture & Soft Furnishings
5443261,Furniture Resource Centre Ltd,Operations and Neighbourhoods,Operations and Neighbourhoods,"Fixtures, Fittings & Furniture Purchase",14/01/22,"1,089.29 ",#N/A,Furniture & Soft Furnishings
5443265,Furniture Resource Centre Ltd,Operations and Neighbourhoods,Operations and Neighbourhoods,"Fixtures, Fittings & Furniture Purchase",14/01/22,"1,223.00 ",#N/A,Furniture & Soft Furnishings
5443267,Furniture Resource Centre Ltd,Operations and Neighbourhoods,Operations and Neighbourhoods,"Fixtures, Fittings & Furniture Purchase",14/01/22,"1,275.93 ",#N/A,Furniture & Soft Furnishings
5443256,Furniture Resource Centre Ltd,(blank),(blank),"Fixtures, Fittings & Furniture Purchase",14/01/22,832.61 ,#N/A,Furniture & Soft Furnishings
5443560,Furniture Resource Centre Ltd,(blank),(blank),"Fixtures, Fittings & Furniture Purchase",14/01/22,578.93 ,#N/A,Furniture & Soft Furnishings
5443262,Furniture Resource Centre Ltd,Operations and Neighbourhoods,Operations and Neighbourhoods,"Fixtures, Fittings & Furniture Purchase",14/01/22,"1,043.85 ",#N/A,Furniture & Soft Furnishings
5443260,Furniture Resource Centre Ltd,Operations and Neighbourhoods,Operations and Neighbourhoods,"Fixtures, Fittings & Furniture Purchase",14/01/22,868.23 ,#N/A,Furniture & Soft Furnishings
5443398,G2V Recruitment Group Limited t/a Vivid Resourcing,Place,Growth,Recruitment Campaign,14/01/22,500.00 ,280000,Legal Services
5443368,G2V Recruitment Group Limited t/a Vivid Resourcing,Place,Growth,Recruitment Campaign,14/01/22,"5,200.00 ",280000,Legal Services
5443366,G2V Recruitment Group Limited t/a Vivid Resourcing,Place,Growth,Agency Staff,14/01/22,"2,500.00 ",280000,Legal Services
5443494,Redacted Supplier,Education,Children's Services,Other Local Authorities Fees,14/01/22,"1,647.00 ",170000,Education
5443493,Redacted Supplier,Education,Children's Services,Other Local Authorities Fees,14/01/22,"2,196.00 ",170000,Education
5445039,UK Military Mentors Ltd,Individual Schools Budget,Children's Services,Professional Child Services,14/01/22,620.00 ,310000,Healthcare
5445518,Fanco Limited t/a 365 Medicare,Adult Social Care,Adults,Homecare Fees,14/01/22,718.89 ,321000,Social Community Care Supplies & Services - Adult
5443479,Care 4 Every Child Ltd,Childrens Services,Children's Services,Childrens Homes Outside Local Authority Fees,14/01/22,"25,118.86 ",401399,Social Community Care Supplies & Services - Children
5443482,Greater Manchester Poverty Action,(blank),(blank),Professional Services,14/01/22,"1,800.00 ",-999999,Unclassifiable
5445753,Wellbeing Property Solutions Ltd,Childrens Services,Children's Services,Childrens Homes Outside Local Authority Fees,14/01/22,700.00 ,261000,Human Resources
5445728,Positive Care Solutions Ltd,Childrens Services,Children's Services,Childrens Homes Outside Local Authority Fees,14/01/22,"7,300.00 ",261000,Human Resources
5444950,Shabach Health Care Ltd,Adult Social Care,Adults,Homecare Fees,14/01/22,"3,554.78 ",-999999,Unclassifiable
5443716,Amore Social Care Ltd,Childrens Services,Children's Services,Childrens Homes Outside Local Authority Fees,14/01/22,"12,793.36 ",310000,Healthcare
5443249,Avoira Ltd,Digital Tameside,Finance & IT,Telephone Landline Costs,14/01/22,"5,457.30 ",-999999,Unclassifiable
5445691,Lincolnshire County Council,Education,Children's Services,Other Local Authorities Fees,14/01/22,"8,794.00 ",UNCLASS,Unclassifiable
5443573,The Market Co,Operations and Neighbourhoods,Operations and Neighbourhoods,Professional Entertainment Services,14/01/22,"2,100.00 ",-999999,Unclassifiable
5443658,James Hallam Insurance Brokers,Individual Schools Budget,Children's Services,Transport Insurance,14/01/22,"1,146.26 ",-999999,Unclassifiable
5443389,Priority Media Agency Limited,Policy and Communications,Governance,"Marketing, Publicity and Recruitment",14/01/22,"1,600.00 ",-999999,Unclassifiable
5443387,Priority Media Agency Limited,Policy and Communications,Governance,"Marketing, Publicity and Recruitment",14/01/22,"1,700.00 ",-999999,Unclassifiable
5443337,Holden Knight Education Ltd,Individual Schools Budget,Children's Services,Agency Staff,14/01/22,"1,125.00 ",261400,Human Resources
5443407,Anglian Water Business (National) t/a Wave Utilities,Place,Growth,Water (Metered and Rates),14/01/22,"16,049.47 ",370000,Utilities
5443504,Brooks and Brooks Recruitment Ltd,Childrens Services,Children's Services,Professional Medical Services,14/01/22,"7,007.00 ",-999999,Unclassifiable
5443500,Brooks and Brooks Recruitment Ltd,Childrens Services,Children's Services,Professional Medical Services,14/01/22,"1,859.00 ",-999999,Unclassifiable
5443502,Brooks and Brooks Recruitment Ltd,Childrens Services,Children's Services,Professional Medical Services,14/01/22,"2,496.00 ",-999999,Unclassifiable
5443564,Local Creative Project Ltd,(blank),(blank),Event Related Activity,14/01/22,"2,000.00 ",-999999,Unclassifiable
5443564,Local Creative Project Ltd,(blank),(blank),Professional Services,14/01/22,"1,200.00 ",-999999,Unclassifiable
5443699,Local Creative Project Ltd,(blank),(blank),Professional Entertainment Services,14/01/22,500.00 ,-999999,Unclassifiable
5443700,Local Creative Project Ltd,(blank),(blank),Professional Entertainment Services,14/01/22,"4,995.00 ",-999999,Unclassifiable
5443435,Local Creative Project Ltd,(blank),(blank),Professional Services,14/01/22,"3,000.00 ",-999999,Unclassifiable
5443571,NEW HORIZONS (STOCKPORT) LTD,Childrens Services,Children's Services,Childrens Homes Outside Local Authority Fees,14/01/22,"14,614.33 ",321100,Social Community Care Supplies & Services - Children
5445656,NSL LIMITED,Operations and Neighbourhoods,Operations and Neighbourhoods,Fees,14/01/22,889.95 ,350000,Street & Traffic Management
5443537,FOSTERING SOLUTIONS LTD,Childrens Services,Children's Services,Foster Carer Agency Fees,14/01/22,"1,206.45 ",321000,Social Community Care Supplies & Services - Adult
5443536,FOSTERING SOLUTIONS LTD,Childrens Services,Children's Services,Foster Carer Agency Fees,14/01/22,"3,399.99 ",321000,Social Community Care Supplies & Services - Adult
5443701,AUTISM INITIATIVES (UK),Adult Social Care,Adults,Homecare Fees,14/01/22,"2,962.56 ",321100,Social Community Care Supplies & Services - Children
5443703,AUTISM INITIATIVES (UK),Adult Social Care,Adults,Homecare Fees,14/01/22,"2,962.56 ",321100,Social Community Care Supplies & Services - Children
5443702,AUTISM INITIATIVES (UK),Adult Social Care,Adults,Professional Bailiff Services,14/01/22,"1,022.64 ",321100,Social Community Care Supplies & Services - Children
5443357,SEASHELL TRUST,Education,Children's Services,Non-Maintained School Fees,14/01/22,"21,830.33 ",321000,Social Community Care Supplies & Services - Adult
5443356,SEASHELL TRUST,Education,Children's Services,Non-Maintained School Fees,14/01/22,"21,614.07 ",321000,Social Community Care Supplies & Services - Adult
5443359,SEASHELL TRUST,Education,Children's Services,Non-Maintained School Fees,14/01/22,"22,867.70 ",321000,Social Community Care Supplies & Services - Adult
5445144,TAMESIDE AND GLOSSOP INTEGRATED CARE NHS FOUNDATION TRUST,Hosted Services,Hosted Services,Professional Services,14/01/22,"2,642,996.24 ",310000,Healthcare
5445183,TAMESIDE AND GLOSSOP INTEGRATED CARE NHS FOUNDATION TRUST,Adult Social Care,Adults,External Secondments,14/01/22,"3,950.48 ",310000,Healthcare
5443352,Randstad Public Services Limited,Education,Children's Services,Professional Services,14/01/22,560.50 ,170000,Education
5443339,Randstad Public Services Limited,Individual Schools Budget,Children's Services,Agency Staff,14/01/22,846.50 ,170000,Education
5443340,Randstad Public Services Limited,Individual Schools Budget,Children's Services,Agency Staff,14/01/22,897.00 ,170000,Education
5443353,Randstad Public Services Limited,Education,Children's Services,Professional Services,14/01/22,590.00 ,170000,Education
5443355,Randstad Public Services Limited,Education,Children's Services,Professional Services,14/01/22,590.00 ,170000,Education
5443540,Randstad Public Services Limited,Education,Children's Services,Professional Services,14/01/22,590.00 ,170000,Education
5443539,Randstad Public Services Limited,Education,Children's Services,Professional Services,14/01/22,560.50 ,170000,Education
5444670,Redacted Supplier,Education,Children's Services,Transport Of Post 16 Pupils,14/01/22,"1,404.00 ",360000,Public Transport
5443424,VISION FOR EDUCATION LIMITED,Education,Children's Services,Professional Services,14/01/22,722.00 ,170000,Education
5445721,MATTHEWS ENVIRONMENTAL SOLUTIONS LTD,(blank),(blank),Engineers -External,14/01/22,"8,000.00 ",390000,"Works - Construction, Repair & Maintenance"
5445093,STEP AHEAD RESOURCE SERVICES,Childrens Services,Children's Services,Living With Formal Support,14/01/22,"1,200.00 ",321000,Social Community Care Supplies & Services - Adult
5445092,STEP AHEAD RESOURCE SERVICES,Childrens Services,Children's Services,Living With Formal Support,14/01/22,"1,200.00 ",321000,Social Community Care Supplies & Services - Adult
5445266,AG FUNERAL SERVICES LTD T/A Aidan Gaunt Funeral Directors,Operations and Neighbourhoods,Operations and Neighbourhoods,Professional Services,14/01/22,"1,385.00 ",-999999,Unclassifiable
5444929,PERSON CENTRED CARE SERVICES LIMITED,Adult Social Care,Adults,Homecare Fees,14/01/22,"8,468.04 ",310000,Healthcare
5444927,PERSON CENTRED CARE SERVICES LIMITED,Adult Social Care,Adults,Homecare Fees,14/01/22,"8,586.09 ",310000,Healthcare
5445239,PERSON CENTRED CARE SERVICES LIMITED,Adult Social Care,Adults,Homecare Fees,14/01/22,"8,205.80 ",310000,Healthcare
5443441,PROFILE SECURITY SERVICES LIMITED,Operations and Neighbourhoods,Operations and Neighbourhoods,Security Services,14/01/22,"3,907.93 ",190000,Facilities & Management Services
5445281,ASHTON PIONEER HOMES,Operations and Neighbourhoods,Operations and Neighbourhoods,Miscellaneous Expenses,14/01/22,"4,022.17 ",191700,Facilities & Management Services
5443576,R B L ASHTON UNDER LYNE BRANCH,Corporate Costs,Corporate Costs,Event Related Activity,14/01/22,517.00 ,200000,Financial Services
5443446,ALPHA BIOLABS,Childrens Services,Children's Services,Professional Consultancy Services,14/01/22,"1,079.00 ",180000,Environmental Services
5445023,THE FAMILY UNIT LTD,Childrens Services,Children's Services,Living With Formal Support,14/01/22,"3,600.00 ",321000,Social Community Care Supplies & Services - Adult
5445023,THE FAMILY UNIT LTD,Childrens Services,Children's Services,Semi independent - Weekly Living Allowances,14/01/22,236.80 ,321000,Social Community Care Supplies & Services - Adult
5445029,THE FAMILY UNIT LTD,Childrens Services,Children's Services,Childrens Homes Outside Local Authority Fees,14/01/22,"40,000.00 ",321000,Social Community Care Supplies & Services - Adult
5445021,THE FAMILY UNIT LTD,Childrens Services,Children's Services,Living With Formal Support,14/01/22,"10,320.00 ",321000,Social Community Care Supplies & Services - Adult
5443563,Redacted Supplier,Childrens Services,Children's Services,Living With Formal Support,14/01/22,"3,557.52 ",321000,Social Community Care Supplies & Services - Adult
5443325,Redacted Supplier,Childrens Services,Children's Services,Childrens Homes Outside Local Authority Fees,14/01/22,"19,928.66 ",321000,Social Community Care Supplies & Services - Adult
5443320,Redacted Supplier,Childrens Services,Children's Services,Childrens Homes Outside Local Authority Fees,14/01/22,"19,928.66 ",321000,Social Community Care Supplies & Services - Adult
5443322,Redacted Supplier,Childrens Services,Children's Services,Childrens Homes Outside Local Authority Fees,14/01/22,"19,928.66 ",321000,Social Community Care Supplies & Services - Adult
5443436,THE BREAD & BUTTER THEATRE COMPANY,Operations and Neighbourhoods,Operations and Neighbourhoods,Professional Entertainment Services,14/01/22,650.00 ,290000,Arts & Leisure Services
5443432,Synectics Security Limited,Operations and Neighbourhoods,Operations and Neighbourhoods,Professional Services,14/01/22,"10,624.37 ",190000,Facilities & Management Services
5443281,ACORN CARE & EDUCATION LTD (SALES),Adult Social Care,Adults,Homecare Fees,14/01/22,"20,681.43 ",321100,Social Community Care Supplies & Services - Children
5443283,ACORN CARE & EDUCATION LTD (SALES),Adult Social Care,Adults,Homecare Fees,14/01/22,"20,014.29 ",321100,Social Community Care Supplies & Services - Children
5443274,ACORN CARE & EDUCATION LTD (SALES),Education,Children's Services,Independent School Fees,14/01/22,"15,422.12 ",321100,Social Community Care Supplies & Services - Children
5443268,ACORN CARE & EDUCATION LTD (SALES),Education,Children's Services,Independent School Fees,14/01/22,"19,356.33 ",321100,Social Community Care Supplies & Services - Children
5443264,ACORN CARE & EDUCATION LTD (SALES),Education,Children's Services,Independent School Fees,14/01/22,"9,079.51 ",321100,Social Community Care Supplies & Services - Children
5443266,ACORN CARE & EDUCATION LTD (SALES),Education,Children's Services,Independent School Fees,14/01/22,"8,812.64 ",321100,Social Community Care Supplies & Services - Children
5441657,THREE CIRCLES FOSTERING LTD,Childrens Services,Children's Services,Foster Carer Agency Fees,14/01/22,"4,050.00 ",321100,Social Community Care Supplies & Services - Children
5444884,ABLE CARE AND SUPPORT SERVICES LTD,Adult Social Care,Adults,Homecare Fees,14/01/22,"1,153.73 ",321000,Social Community Care Supplies & Services - Adult
5444872,ABLE CARE AND SUPPORT SERVICES LTD,Adult Social Care,Adults,Homecare Fees,14/01/22,"21,190.00 ",321000,Social Community Care Supplies & Services - Adult
5445103,ABLE CARE AND SUPPORT SERVICES LTD,Adult Social Care,Adults,Homecare Fees,14/01/22,"10,432.42 ",321000,Social Community Care Supplies & Services - Adult
5443499,JENOPTIK TRAFFIC SOLUTIONS UK LTD,Operations and Neighbourhoods,Operations and Neighbourhoods,Fees,14/01/22,"2,219.00 ",350000,Street & Traffic Management
5443287,INTERFERENCE-ART,Operations and Neighbourhoods,Operations and Neighbourhoods,Professional Entertainment Services,14/01/22,"3,500.00 ",200000,Financial Services
5443430,Redacted Supplier,Individual Schools Budget,Children's Services,Training Course Costs,14/01/22,668.07 ,170000,Education
5443431,Mark Hancock Limited,Education,Children's Services,Professional Services,14/01/22,"3,300.00 ",170000,Education
5443433,Andrew Jenner Ltd t/a RCD,Operations and Neighbourhoods,Operations and Neighbourhoods,General Materials,14/01/22,"1,433.13 ",340000,Stationery
5443489,GRANART LIMITED,Operations and Neighbourhoods,Operations and Neighbourhoods,Plaques,14/01/22,769.00 ,120000,Cemetery & Crematorium
5443491,GRANART LIMITED,Operations and Neighbourhoods,Operations and Neighbourhoods,Plaques,14/01/22,561.00 ,120000,Cemetery & Crematorium
5443306,DEKKO WINDOW SYSTEMS LTD,Place,Growth,Gas,14/01/22,558.72 ,370000,Utilities
5443483,UK CONTAINER MAINTENANCE LTD,Operations and Neighbourhoods,Operations and Neighbourhoods,Purchase Wheeled Bins,14/01/22,"1,855.00 ",390000,"Works - Construction, Repair & Maintenance"
5443717,GEORGECO MARKETING SERVICES LLP T/A MEDIA PERFORMANCE,Policy and Communications,Governance,"Marketing, Publicity and Recruitment",14/01/22,900.00 ,-999999,Unclassifiable
5443638,CARETECH COMMUNITY SERVICES LIMITED,Adult Social Care,Adults,Residential Home Long Stay Fees,14/01/22,"3,227.10 ",321000,Social Community Care Supplies & Services - Adult
5443635,CARETECH COMMUNITY SERVICES LIMITED,Adult Social Care,Adults,Residential Home Long Stay Fees,14/01/22,"3,764.95 ",321000,Social Community Care Supplies & Services - Adult
5443644,CARETECH COMMUNITY SERVICES LIMITED,Adult Social Care,Adults,Residential Home Long Stay Fees,14/01/22,"7,529.90 ",321000,Social Community Care Supplies & Services - Adult
5443650,CARETECH COMMUNITY SERVICES LIMITED,Adult Social Care,Adults,Homecare Fees,14/01/22,"5,916.35 ",321000,Social Community Care Supplies & Services - Adult
5443647,CARETECH COMMUNITY SERVICES LIMITED,Adult Social Care,Adults,Residential Home Long Stay Fees,14/01/22,"4,787.02 ",321000,Social Community Care Supplies & Services - Adult
5443652,CARETECH COMMUNITY SERVICES LIMITED,Adult Social Care,Adults,Residential Home Long Stay Fees,14/01/22,"7,529.90 ",321000,Social Community Care Supplies & Services - Adult
5443661,CARETECH COMMUNITY SERVICES LIMITED,Adult Social Care,Adults,Residential Home Long Stay Fees,14/01/22,"3,227.10 ",321000,Social Community Care Supplies & Services - Adult
5443678,CARETECH COMMUNITY SERVICES LIMITED,Adult Social Care,Adults,Residential Home Long Stay Fees,14/01/22,"4,610.01 ",321000,Social Community Care Supplies & Services - Adult
5443640,CARETECH COMMUNITY SERVICES LIMITED,Adult Social Care,Adults,Residential Home Long Stay Fees,14/01/22,"10,165.52 ",321000,Social Community Care Supplies & Services - Adult
5443639,CARETECH COMMUNITY SERVICES LIMITED,Adult Social Care,Adults,Homecare Fees,14/01/22,"14,668.58 ",321000,Social Community Care Supplies & Services - Adult
5443673,CARETECH COMMUNITY SERVICES LIMITED,Adult Social Care,Adults,Residential Home Long Stay Fees,14/01/22,"4,787.02 ",321000,Social Community Care Supplies & Services - Adult
5443646,CARETECH COMMUNITY SERVICES LIMITED,Adult Social Care,Adults,Residential Home Long Stay Fees,14/01/22,"6,268.51 ",321000,Social Community Care Supplies & Services - Adult
5443657,CARETECH COMMUNITY SERVICES LIMITED,Adult Social Care,Adults,Residential Home Long Stay Fees,14/01/22,"6,992.05 ",321000,Social Community Care Supplies & Services - Adult
5443642,CARETECH COMMUNITY SERVICES LIMITED,Adult Social Care,Adults,Residential Home Long Stay Fees,14/01/22,"4,065.34 ",321000,Social Community Care Supplies & Services - Adult
5443681,CARETECH COMMUNITY SERVICES LIMITED,Adult Social Care,Adults,Residential Home Long Stay Fees,14/01/22,"4,302.80 ",321000,Social Community Care Supplies & Services - Adult
5443651,CARETECH COMMUNITY SERVICES LIMITED,Adult Social Care,Adults,Residential Home Long Stay Fees,14/01/22,"5,862.72 ",321000,Social Community Care Supplies & Services - Adult
5443682,CARETECH COMMUNITY SERVICES LIMITED,Adult Social Care,Adults,Residential Home Long Stay Fees,14/01/22,"5,647.58 ",321000,Social Community Care Supplies & Services - Adult
5443636,CARETECH COMMUNITY SERVICES LIMITED,Adult Social Care,Adults,Residential Home Long Stay Fees,14/01/22,"6,992.05 ",321000,Social Community Care Supplies & Services - Adult
5444996,STEPPING STONES CHILDRENS HOMES LTD,Childrens Services,Children's Services,Childrens Homes Outside Local Authority Fees,14/01/22,"20,000.00 ",321100,Social Community Care Supplies & Services - Children
5445004,STEPPING STONES CHILDRENS HOMES LTD,Childrens Services,Children's Services,Childrens Homes Outside Local Authority Fees,14/01/22,"28,000.00 ",321100,Social Community Care Supplies & Services - Children
5445000,STEPPING STONES CHILDRENS HOMES LTD,Childrens Services,Children's Services,Childrens Homes Outside Local Authority Fees,14/01/22,"17,596.00 ",321100,Social Community Care Supplies & Services - Children
5445002,STEPPING STONES CHILDRENS HOMES LTD,Childrens Services,Children's Services,Childrens Homes Outside Local Authority Fees,14/01/22,"13,200.00 ",321100,Social Community Care Supplies & Services - Children
5445145,Headsets4Business Limited,Digital Tameside,Finance & IT,IT Equipment,14/01/22,"2,200.00 ",270000,Information Communication Technology
5443406,The Shed Tameside,Adult Social Care,Adults,Professional Services,14/01/22,"3,435.36 ",321000,Social Community Care Supplies & Services - Adult
5444902,The Shed Tameside,Adult Social Care,Adults,Professional Services,14/01/22,"2,997.52 ",321000,Social Community Care Supplies & Services - Adult
5443408,The Shed Tameside,Adult Social Care,Adults,Professional Services,14/01/22,"3,266.96 ",321000,Social Community Care Supplies & Services - Adult
5445027,Smartway Health and Social Care Limited,Adult Social Care,Adults,Homecare Fees,14/01/22,"7,105.39 ",321000,Social Community Care Supplies & Services - Adult
5443532,Olive Branch Fostering LTD,Childrens Services,Children's Services,Foster Carer Agency Fees,14/01/22,"3,210.75 ",321100,Social Community Care Supplies & Services - Children
5443533,Olive Branch Fostering LTD,Childrens Services,Children's Services,Foster Carer Agency Fees,14/01/22,"2,825.46 ",321100,Social Community Care Supplies & Services - Children
5443437,SMS Coaching LTD,Education,Children's Services,Non-Maintained School Fees,14/01/22,"10,115.00 ",-999999,Unclassifiable
5443690,Greatwood House t/a Meridian Healthcare LTD,Contingency,Contingency,Nursing Home Long Stay Fees,14/01/22,"11,037.64 ",321000,Social Community Care Supplies & Services - Adult
5443677,Greatwood House t/a Meridian Healthcare LTD,Contingency,Contingency,Nursing Home Long Stay Fees,14/01/22,"2,700.07 ",321000,Social Community Care Supplies & Services - Adult
5443692,Greatwood House t/a Meridian Healthcare LTD,Contingency,Contingency,Nursing Home Long Stay Fees,14/01/22,"3,679.21 ",321000,Social Community Care Supplies & Services - Adult
5443687,Greatwood House t/a Meridian Healthcare LTD,Contingency,Contingency,Nursing Home Long Stay Fees,14/01/22,"10,462.77 ",321000,Social Community Care Supplies & Services - Adult
5443680,Greatwood House t/a Meridian Healthcare LTD,Contingency,Contingency,Nursing Home Long Stay Fees,14/01/22,"3,560.53 ",321000,Social Community Care Supplies & Services - Adult
5443679,Greatwood House t/a Meridian Healthcare LTD,Contingency,Contingency,Nursing Home Long Stay Fees,14/01/22,"7,425.19 ",321000,Social Community Care Supplies & Services - Adult
5443694,Greatwood House t/a Meridian Healthcare LTD,Contingency,Contingency,Nursing Home Long Stay Fees,14/01/22,"10,125.26 ",321000,Social Community Care Supplies & Services - Adult
5443695,Greatwood House t/a Meridian Healthcare LTD,Contingency,Contingency,Nursing Home Long Stay Fees,14/01/22,"10,681.59 ",321000,Social Community Care Supplies & Services - Adult
5443693,Greatwood House t/a Meridian Healthcare LTD,Contingency,Contingency,Nursing Home Long Stay Fees,14/01/22,"10,462.77 ",321000,Social Community Care Supplies & Services - Adult
5443784,Redacted Supplier,Education,Children's Services,Professional Services,14/01/22,"1,100.00 ",321100,Social Community Care Supplies & Services - Children
5444962,DIRECT CARE (TAMESIDE) LTD,Adult Social Care,Adults,Homecare Fees,14/01/22,"40,893.83 ",321000,Social Community Care Supplies & Services - Adult
5445160,DIRECT CARE (TAMESIDE) LTD,Adult Social Care,Adults,Homecare Fees,14/01/22,"37,640.48 ",321000,Social Community Care Supplies & Services - Adult
5445017,DIRECT CARE (TAMESIDE) LTD,Adult Social Care,Adults,Homecare Fees,14/01/22,"37,840.49 ",321000,Social Community Care Supplies & Services - Adult
5443665,THE UNIVERSITY OF MANCHESTER,Education,Children's Services,Training Course Costs,14/01/22,"3,987.50 ",170000,Education
5443439,GREATER MANCHESTER COMBINED AUTHORITY,(blank),(blank),Traffic Signals,14/01/22,"3,359.05 ",-999999,Unclassifiable
5443492,Talk Listen Change,Population Health,Population Health,Project Costs,14/01/22,"100,000.00 ",310000,Healthcare
5443664,TAMESIDE SPORTS TRUST,Population Health,Population Health,Professional Services,14/01/22,"19,225.00 ",290000,Arts & Leisure Services
5444248,TAMESIDE SPORTS TRUST,Adult Social Care,Adults,Professional Services,14/01/22,828.13 ,290000,Arts & Leisure Services
5443375,TAMESIDE SPORTS TRUST,Place,Growth,Other Accommodation Related Costs,14/01/22,"4,100.00 ",290000,Arts & Leisure Services
5443379,TAMESIDE SPORTS TRUST,Place,Growth,Other Accommodation Related Costs,14/01/22,"4,100.00 ",290000,Arts & Leisure Services
5444256,TAMESIDE SPORTS TRUST,Adult Social Care,Adults,Professional Services,14/01/22,"1,325.00 ",290000,Arts & Leisure Services
5433544,TAMESIDE SPORTS TRUST,Childrens Services,Children's Services,Community Based Activities,14/01/22,"37,928.64 ",290000,Arts & Leisure Services
5444246,TAMESIDE SPORTS TRUST,Adult Social Care,Adults,Professional Services,14/01/22,"1,656.25 ",290000,Arts & Leisure Services
5444317,TAMESIDE SPORTS TRUST,Childrens Services,Children's Services,Short Breaks (Respite),14/01/22,520.00 ,290000,Arts & Leisure Services
5444321,TAMESIDE SPORTS TRUST,Childrens Services,Children's Services,Short Breaks (Respite),14/01/22,640.00 ,290000,Arts & Leisure Services
5444323,TAMESIDE SPORTS TRUST,Adult Social Care,Adults,Professional Services,14/01/22,640.00 ,290000,Arts & Leisure Services
5444301,TAMESIDE SPORTS TRUST,Childrens Services,Children's Services,Short Breaks (Respite),14/01/22,"1,152.00 ",290000,Arts & Leisure Services
5444245,TAMESIDE SPORTS TRUST,Adult Social Care,Adults,Professional Services,14/01/22,"1,325.00 ",290000,Arts & Leisure Services
5444243,TAMESIDE SPORTS TRUST,Adult Social Care,Adults,Professional Services,14/01/22,"1,656.25 ",290000,Arts & Leisure Services
5444250,TAMESIDE SPORTS TRUST,Adult Social Care,Adults,Professional Services,14/01/22,"1,987.50 ",290000,Arts & Leisure Services
5444247,TAMESIDE SPORTS TRUST,Adult Social Care,Adults,Professional Services,14/01/22,993.75 ,290000,Arts & Leisure Services
5444249,TAMESIDE SPORTS TRUST,Adult Social Care,Adults,Professional Services,14/01/22,993.75 ,290000,Arts & Leisure Services
5444251,TAMESIDE SPORTS TRUST,Adult Social Care,Adults,Professional Services,14/01/22,662.50 ,290000,Arts & Leisure Services
5444293,TAMESIDE SPORTS TRUST,Childrens Services,Children's Services,Short Breaks (Respite),14/01/22,640.00 ,290000,Arts & Leisure Services
5444302,TAMESIDE SPORTS TRUST,Childrens Services,Children's Services,Short Breaks (Respite),14/01/22,640.00 ,290000,Arts & Leisure Services
5443376,TAMESIDE SPORTS TRUST,Place,Growth,Other Accommodation Related Costs,14/01/22,"4,100.00 ",290000,Arts & Leisure Services
5444253,TAMESIDE SPORTS TRUST,Adult Social Care,Adults,Professional Services,14/01/22,"1,325.00 ",290000,Arts & Leisure Services
5444255,TAMESIDE SPORTS TRUST,Adult Social Care,Adults,Professional Services,14/01/22,"1,325.00 ",290000,Arts & Leisure Services
5443663,TAMESIDE SPORTS TRUST,Population Health,Population Health,Professional Services,14/01/22,"19,225.00 ",290000,Arts & Leisure Services
5444254,TAMESIDE SPORTS TRUST,Adult Social Care,Adults,Professional Services,14/01/22,993.75 ,290000,Arts & Leisure Services
5443377,TAMESIDE SPORTS TRUST,Place,Growth,Other Accommodation Related Costs,14/01/22,"4,100.00 ",290000,Arts & Leisure Services
5445120,TAMESIDE SPORTS TRUST,Adult Social Care,Adults,Voluntary Organisations Fees,14/01/22,"5,000.00 ",290000,Arts & Leisure Services
5443341,TEACHING PERSONNEL LTD,Individual Schools Budget,Children's Services,Agency Staff,14/01/22,693.88 ,260000,Human Resources
5445005,TAMESIDE LINK,Adult Social Care,Adults,Voluntary Organisations Fees,14/01/22,"25,425.84 ",321000,Social Community Care Supplies & Services - Adult
5443496,Redacted Supplier,Education,Children's Services,Independent School Fees,14/01/22,"6,415.80 ",321100,Social Community Care Supplies & Services - Children
5444353,CREATIVE SUPPORT LTD,Adult Social Care,Adults,Homecare Fees,14/01/22,"14,367.25 ",321000,Social Community Care Supplies & Services - Adult
5444358,CREATIVE SUPPORT LTD,Adult Social Care,Adults,Homecare Fees,14/01/22,"14,367.25 ",321000,Social Community Care Supplies & Services - Adult
5444356,CREATIVE SUPPORT LTD,Adult Social Care,Adults,Homecare Fees,14/01/22,"180,926.35 ",321000,Social Community Care Supplies & Services - Adult
5444354,CREATIVE SUPPORT LTD,Adult Social Care,Adults,Homecare Fees,14/01/22,"159,940.84 ",321000,Social Community Care Supplies & Services - Adult
5444352,CREATIVE SUPPORT LTD,Adult Social Care,Adults,Homecare Fees,14/01/22,"180,926.35 ",321000,Social Community Care Supplies & Services - Adult
5444359,CREATIVE SUPPORT LTD,Adult Social Care,Adults,Homecare Fees,14/01/22,"14,367.25 ",321000,Social Community Care Supplies & Services - Adult
5444361,CREATIVE SUPPORT LTD,Adult Social Care,Adults,Homecare Fees,14/01/22,"14,367.25 ",321000,Social Community Care Supplies & Services - Adult
5444357,CREATIVE SUPPORT LTD,Adult Social Care,Adults,Homecare Fees,14/01/22,"180,926.35 ",321000,Social Community Care Supplies & Services - Adult
5444355,CREATIVE SUPPORT LTD,Adult Social Care,Adults,Homecare Fees,14/01/22,"159,940.84 ",321000,Social Community Care Supplies & Services - Adult
5444360,CREATIVE SUPPORT LTD,Adult Social Care,Adults,Homecare Fees,14/01/22,"159,940.84 ",321000,Social Community Care Supplies & Services - Adult
5444351,CREATIVE SUPPORT LTD,Adult Social Care,Adults,Homecare Fees,14/01/22,"180,926.35 ",321000,Social Community Care Supplies & Services - Adult
5443298,BRAKE BROS LTD,Operations and Neighbourhoods,Operations and Neighbourhoods,General Materials,14/01/22,680.34 ,110000,Catering
5443297,BRAKE BROS LTD,Operations and Neighbourhoods,Operations and Neighbourhoods,General Materials,14/01/22,579.69 ,110000,Catering
5443450,BELMONT PARKHILL LTD,Contingency,Contingency,Nursing Home Long Stay Fees,14/01/22,"95,200.00 ",321000,Social Community Care Supplies & Services - Adult
5443307,SWIIS FOSTER CARE LTD,Childrens Services,Children's Services,Foster Carer Agency Fees,14/01/22,760.48 ,321100,Social Community Care Supplies & Services - Children
5443305,SWIIS FOSTER CARE LTD,Childrens Services,Children's Services,Foster Carer Agency Fees,14/01/22,787.78 ,321100,Social Community Care Supplies & Services - Children
5443308,SWIIS FOSTER CARE LTD,Childrens Services,Children's Services,Foster Carer Agency Fees,14/01/22,863.03 ,321100,Social Community Care Supplies & Services - Children
5443309,SWIIS FOSTER CARE LTD,Childrens Services,Children's Services,Foster Carer Agency Fees,14/01/22,696.99 ,321100,Social Community Care Supplies & Services - Children
5443311,SWIIS FOSTER CARE LTD,Childrens Services,Children's Services,Foster Carer Agency Fees,14/01/22,"1,694.98 ",321100,Social Community Care Supplies & Services - Children
5444878,ROYALE MINICOACHES,Education,Children's Services,Transport Of Pupils,14/01/22,"1,352.00 ",360000,Public Transport
5443447,HOUSE OF IMAGES,Operations and Neighbourhoods,Operations and Neighbourhoods,Subscriptions,14/01/22,525.00 ,190000,Facilities & Management Services
5445271,TONY MORETON INSULATIONS LTD,Operations and Neighbourhoods,Operations and Neighbourhoods,General Materials,14/01/22,"1,085.00 ",390000,"Works - Construction, Repair & Maintenance"
5445280,TONY MORETON INSULATIONS LTD,Operations and Neighbourhoods,Operations and Neighbourhoods,General Materials,14/01/22,"1,055.00 ",390000,"Works - Construction, Repair & Maintenance"
5444959,JACKSON & TAYLOR LTD,Housing,Director of Place,Mandatory Adaptations Grant (DFG),14/01/22,"8,652.88 ",390000,"Works - Construction, Repair & Maintenance"
5445437,JACKSON & TAYLOR LTD,Housing,Director of Place,Mandatory Adaptations Grant (DFG),14/01/22,"5,021.74 ",390000,"Works - Construction, Repair & Maintenance"
5444937,TAMESIDE CITIZENS ADVICE BUREAU LTD,Operations and Neighbourhoods,Operations and Neighbourhoods,Grants to Citizens' Advice Bureau,14/01/22,"9,578.20 ",908001,Public Bodies
5443372,Redacted Supplier,Education,Children's Services,Independent School Fees,14/01/22,"6,633.33 ",321100,Social Community Care Supplies & Services - Children
5443370,Redacted Supplier,Education,Children's Services,Independent School Fees,14/01/22,"14,675.67 ",321100,Social Community Care Supplies & Services - Children
5443374,Redacted Supplier,Education,Children's Services,Independent School Fees,14/01/22,"2,280.00 ",321100,Social Community Care Supplies & Services - Children
5443580,T KIRK FORESTRY,Operations and Neighbourhoods,Operations and Neighbourhoods,Training Course Costs,14/01/22,601.00 ,240000,Horticultural
5445169,STAMFORD CARS UK LTD,Education,Children's Services,Transport Of Pupils,14/01/22,"1,235.00 ",361510,Public Transport
5443420,K P DODD CONSTRUCTION LTD,Housing,Director of Place,Mandatory Adaptations Grant (DFG),14/01/22,"7,574.04 ",390000,"Works - Construction, Repair & Maintenance"
5443416,K P DODD CONSTRUCTION LTD,Housing,Director of Place,Mandatory Adaptations Grant (DFG),14/01/22,"5,041.62 ",390000,"Works - Construction, Repair & Maintenance"
5443421,K P DODD CONSTRUCTION LTD,Housing,Director of Place,Mandatory Adaptations Grant (DFG),14/01/22,630.00 ,390000,"Works - Construction, Repair & Maintenance"
5445588,PENNINE CARE NHS TRUST,Population Health,Population Health,Professional Services,17/01/22,"50,000.00 ",321000,Social Community Care Supplies & Services - Adult
5446057,Carrington West Ltd,Place,Growth,Agency Staff,17/01/22,900.90 ,-999999,Unclassifiable
5445831,Redacted Supplier,Education,Children's Services,Independent School Fees,17/01/22,"7,702.00 ",-999999,Unclassifiable
5445756,Wellbeing Property Solutions Ltd,Childrens Services,Children's Services,Childrens Homes Outside Local Authority Fees,17/01/22,700.00 ,261000,Human Resources
5439432,SECOND CHANCE HOUSING,Adult Social Care,Adults,Homecare Fees,17/01/22,"1,222.50 ",202000,Financial Services
5440495,SECOND CHANCE HOUSING,Adult Social Care,Adults,Homecare Fees,17/01/22,"1,426.25 ",202000,Financial Services
5446090,Redacted Supplier,Contingency,Contingency,COVID-19 Test and Trace Support Payments - Discretionary,17/01/22,500.00 ,-999999,Unclassifiable
5445374,BEN HALL TREE SURGEONS t/a ACER SPADES,Operations and Neighbourhoods,Operations and Neighbourhoods,Grounds Maintenance,17/01/22,950.00 ,240000,Horticultural
5445901,FUSION CARE,Adult Social Care,Adults,Homecare Fees,17/01/22,"2,840.60 ",321100,Social Community Care Supplies & Services - Children
5445898,FUSION CARE,Childrens Services,Children's Services,Living With Formal Support,17/01/22,"2,635.00 ",321100,Social Community Care Supplies & Services - Children
5445900,FUSION CARE,Adult Social Care,Adults,Homecare Fees,17/01/22,"2,431.88 ",321100,Social Community Care Supplies & Services - Children
5445920,Gallagher Bassett International Ltd,Multiple Heads of Service,Multiple Strategic Directorates,Public Liability Insurance Claims,17/01/22,"5,394.00 ",-999999,Unclassifiable
5445920,Gallagher Bassett International Ltd,Multiple Heads of Service,Multiple Strategic Directorates,Transport Insurance Claims,17/01/22,585.82 ,-999999,Unclassifiable
5445920,Gallagher Bassett International Ltd,Finance,Finance & IT,Professional Services,17/01/22,22.53 ,-999999,Unclassifiable
5445920,Gallagher Bassett International Ltd,Finance,Finance & IT,Public Liability Insurance,17/01/22,"1,718.56 ",-999999,Unclassifiable
5445920,Gallagher Bassett International Ltd,Finance,Finance & IT,Transport Insurance,17/01/22,"8,280.35 ",-999999,Unclassifiable
5443410,The Shed Tameside,Adult Social Care,Adults,Professional Services,17/01/22,"5,523.52 ",321000,Social Community Care Supplies & Services - Adult
5443741,DHL Parcel UK Ltd (UK Mail),Operations and Neighbourhoods,Operations and Neighbourhoods,Printing And Stationery,17/01/22,"3,678.13 ",300000,Mail Services
5443743,DHL Parcel UK Ltd (UK Mail),Operations and Neighbourhoods,Operations and Neighbourhoods,Printing And Stationery,17/01/22,"8,176.26 ",300000,Mail Services
5445366,Smartway Health and Social Care Limited,Adult Social Care,Adults,Homecare Fees,17/01/22,"6,777.88 ",321000,Social Community Care Supplies & Services - Adult
5443745,XMA LIMITED,GMPF (FX),GMPF (FX),Computer Hardware Maintenance Costs,17/01/22,"2,364.00 ",270000,Information Communication Technology
5445121,TAMESIDE SPORTS TRUST,Adult Social Care,Adults,Professional Services,17/01/22,"41,999.00 ",290000,Arts & Leisure Services
5444035,GRANT THORNTON UK LLP,Finance,Finance & IT,Professional Services,17/01/22,"7,500.00 ",200000,Financial Services
5445384,NEXUS MOVE LIMITED PREVIOUSLY RADIO CABS (ASHTON)LTD,Education,Children's Services,Transport Of Post 16 Pupils,17/01/22,660.00 ,360000,Public Transport
5445404,NEXUS MOVE LIMITED PREVIOUSLY RADIO CABS (ASHTON)LTD,Operations and Neighbourhoods,Operations and Neighbourhoods,Hired Transport,17/01/22,"1,536.00 ",360000,Public Transport
5445406,NEXUS MOVE LIMITED PREVIOUSLY RADIO CABS (ASHTON)LTD,Education,Children's Services,Transport Of Ola Pupils,17/01/22,770.00 ,360000,Public Transport
5445447,NEXUS MOVE LIMITED PREVIOUSLY RADIO CABS (ASHTON)LTD,Education,Children's Services,Transport Of Pupils,17/01/22,"1,352.00 ",360000,Public Transport
5445452,NEXUS MOVE LIMITED PREVIOUSLY RADIO CABS (ASHTON)LTD,Education,Children's Services,Transport Of Pupils,17/01/22,"1,248.00 ",360000,Public Transport
5445461,NEXUS MOVE LIMITED PREVIOUSLY RADIO CABS (ASHTON)LTD,Education,Children's Services,Transport Of Pupils,17/01/22,"1,378.00 ",360000,Public Transport
5445464,NEXUS MOVE LIMITED PREVIOUSLY RADIO CABS (ASHTON)LTD,Education,Children's Services,Transport Of Pupils,17/01/22,"1,482.00 ",360000,Public Transport
5445379,NEXUS MOVE LIMITED PREVIOUSLY RADIO CABS (ASHTON)LTD,Education,Children's Services,Transport Of Ola Pupils,17/01/22,577.50 ,360000,Public Transport
5445422,NEXUS MOVE LIMITED PREVIOUSLY RADIO CABS (ASHTON)LTD,Education,Children's Services,Transport Of Post 16 Pupils,17/01/22,640.00 ,360000,Public Transport
5445428,NEXUS MOVE LIMITED PREVIOUSLY RADIO CABS (ASHTON)LTD,Education,Children's Services,Transport Of Pupils,17/01/22,"1,378.00 ",360000,Public Transport
5445430,NEXUS MOVE LIMITED PREVIOUSLY RADIO CABS (ASHTON)LTD,Education,Children's Services,Transport Of Pupils,17/01/22,"1,482.00 ",360000,Public Transport
5445432,NEXUS MOVE LIMITED PREVIOUSLY RADIO CABS (ASHTON)LTD,Education,Children's Services,Transport Of Pupils,17/01/22,"1,378.00 ",360000,Public Transport
5445434,NEXUS MOVE LIMITED PREVIOUSLY RADIO CABS (ASHTON)LTD,Education,Children's Services,Transport Of Ola Pupils,17/01/22,854.70 ,360000,Public Transport
5445443,NEXUS MOVE LIMITED PREVIOUSLY RADIO CABS (ASHTON)LTD,Education,Children's Services,Transport Of Post 16 Pupils,17/01/22,"1,248.00 ",360000,Public Transport
5445445,NEXUS MOVE LIMITED PREVIOUSLY RADIO CABS (ASHTON)LTD,Education,Children's Services,Transport Of Ola Pupils,17/01/22,"1,796.00 ",360000,Public Transport
5445453,NEXUS MOVE LIMITED PREVIOUSLY RADIO CABS (ASHTON)LTD,Education,Children's Services,Transport Of Pupils,17/01/22,920.00 ,360000,Public Transport
5445455,NEXUS MOVE LIMITED PREVIOUSLY RADIO CABS (ASHTON)LTD,Education,Children's Services,Transport Of Pupils,17/01/22,"1,378.00 ",360000,Public Transport
5445458,NEXUS MOVE LIMITED PREVIOUSLY RADIO CABS (ASHTON)LTD,Education,Children's Services,Transport Of Pupils,17/01/22,"1,248.00 ",360000,Public Transport
5445462,NEXUS MOVE LIMITED PREVIOUSLY RADIO CABS (ASHTON)LTD,Education,Children's Services,Transport Of Pupils,17/01/22,636.00 ,360000,Public Transport
5445468,NEXUS MOVE LIMITED PREVIOUSLY RADIO CABS (ASHTON)LTD,Education,Children's Services,Transport Of Ola Pupils,17/01/22,"1,120.00 ",360000,Public Transport
5445401,NEXUS MOVE LIMITED PREVIOUSLY RADIO CABS (ASHTON)LTD,Education,Children's Services,Transport Of Ola Pupils,17/01/22,550.00 ,360000,Public Transport
5445409,NEXUS MOVE LIMITED PREVIOUSLY RADIO CABS (ASHTON)LTD,Education,Children's Services,Transport Of Pupils,17/01/22,"1,176.00 ",360000,Public Transport
5445411,NEXUS MOVE LIMITED PREVIOUSLY RADIO CABS (ASHTON)LTD,Operations and Neighbourhoods,Operations and Neighbourhoods,Hired Transport,17/01/22,786.94 ,360000,Public Transport
5445419,NEXUS MOVE LIMITED PREVIOUSLY RADIO CABS (ASHTON)LTD,Education,Children's Services,Transport Of Pupils,17/01/22,800.00 ,360000,Public Transport
5445426,NEXUS MOVE LIMITED PREVIOUSLY RADIO CABS (ASHTON)LTD,Operations and Neighbourhoods,Operations and Neighbourhoods,Hired Transport,17/01/22,887.50 ,360000,Public Transport
5445378,NEXUS MOVE LIMITED PREVIOUSLY RADIO CABS (ASHTON)LTD,Education,Children's Services,Transport Of Ola Pupils,17/01/22,"1,800.00 ",360000,Public Transport
5445399,NEXUS MOVE LIMITED PREVIOUSLY RADIO CABS (ASHTON)LTD,Operations and Neighbourhoods,Operations and Neighbourhoods,Transport Of Pupils,17/01/22,520.00 ,360000,Public Transport
5445415,NEXUS MOVE LIMITED PREVIOUSLY RADIO CABS (ASHTON)LTD,Operations and Neighbourhoods,Operations and Neighbourhoods,Hired Transport,17/01/22,660.00 ,360000,Public Transport
5445446,NEXUS MOVE LIMITED PREVIOUSLY RADIO CABS (ASHTON)LTD,Education,Children's Services,Transport Of Pupils,17/01/22,"1,248.00 ",360000,Public Transport
5445463,NEXUS MOVE LIMITED PREVIOUSLY RADIO CABS (ASHTON)LTD,Education,Children's Services,Transport Of Pupils,17/01/22,"1,482.00 ",360000,Public Transport
5445467,NEXUS MOVE LIMITED PREVIOUSLY RADIO CABS (ASHTON)LTD,Education,Children's Services,Transport Of Ola Pupils,17/01/22,"1,056.00 ",360000,Public Transport
5444622,STAMFORD CARS UK LTD,Operations and Neighbourhoods,Operations and Neighbourhoods,Transport Of Pupils,17/01/22,520.00 ,361510,Public Transport
470941,AGGREGATE INDUSTRIES UK LIMITED,Operations and Neighbourhoods,Operations and Neighbourhoods,General Materials,18/01/22,"7,884.91 ",230000,Highway Equipment & Materials
470941,EAGLE CIVIL ENGINEERING LTD,Operations and Neighbourhoods,Operations and Neighbourhoods,Sub-contractor Services,18/01/22,960.00 ,391411,"Works - Construction, Repair & Maintenance"
470941,ELECTRICITY NORTH WEST LTD,Operations and Neighbourhoods,Operations and Neighbourhoods,Sub-contractor Services,18/01/22,953.24 ,370000,Utilities
470941,P F CUSACK LTD,Civil Engineers,Director of Place,Debits Goods Received,18/01/22,"1,700.00 ",240000,Horticultural
470941,4WAY CONSULTING LTD,Operations and Neighbourhoods,Operations and Neighbourhoods,Engineers Recharge - Reactive Works (Internal),18/01/22,"3,199.28 ",180000,Environmental Services
470941,ABBEY INDUSTRIAL SOLUTIONS LTD,Operations and Neighbourhoods,Operations and Neighbourhoods,General Materials,18/01/22,"1,314.39 ",390000,"Works - Construction, Repair & Maintenance"
470941,STALYBRIDGE READYMIX LTD,Operations and Neighbourhoods,Operations and Neighbourhoods,General Materials,18/01/22,777.50 ,231200,Highway Equipment & Materials
470941,RONDAR SIGNS LTD,Engineers Client,Director of Place,Highway Construction,18/01/22,750.00 ,190000,Facilities & Management Services
470941,CASTINGS SERVICES LTD,Civil Engineers,Director of Place,Debits Goods Received,18/01/22,"2,688.00 ",100000,Building Construction Materials
470941,Holroyds Skip Hire Limited,Operations and Neighbourhoods,Operations and Neighbourhoods,Sub-contractor Services,18/01/22,"1,150.00 ",150000,Consultancy
470941,NORTHWEST UTILITY SOLUTIONS LTD,Operations and Neighbourhoods,Operations and Neighbourhoods,Sub-contractor Services,18/01/22,"1,600.00 ",370000,Utilities
470941,TRAFFIC DIRECT LTD,Operations and Neighbourhoods,Operations and Neighbourhoods,Sub-contractor Services,18/01/22,"8,400.00 ",350000,Street & Traffic Management
470941,GARIC LTD,Operations and Neighbourhoods,Operations and Neighbourhoods,General Materials,18/01/22,802.00 ,-999999,Unclassifiable
470941,ALTITUDE SERVICES,Operations and Neighbourhoods,Operations and Neighbourhoods,Sub-contractor Services,18/01/22,"14,016.83 ",230000,Highway Equipment & Materials
5446102,ISW CSC Limited,Childrens Services,Children's Services,Living With Formal Support,18/01/22,"1,380.00 ",260000,Human Resources
5446107,ISW CSC Limited,Childrens Services,Children's Services,Living With Formal Support,18/01/22,"1,960.00 ",260000,Human Resources
5446114,ISW CSC Limited,Childrens Services,Children's Services,Living With Formal Support,18/01/22,"2,500.00 ",260000,Human Resources
5446085,ISW CSC Limited,Childrens Services,Children's Services,Childrens Homes Outside Local Authority Fees,18/01/22,"2,077.80 ",260000,Human Resources
5446108,ISW CSC Limited,Childrens Services,Children's Services,Living With Formal Support,18/01/22,"2,500.00 ",260000,Human Resources
5446110,ISW CSC Limited,Childrens Services,Children's Services,Living With Formal Support,18/01/22,"1,700.00 ",260000,Human Resources
5446115,ISW CSC Limited,Childrens Services,Children's Services,Living With Formal Support,18/01/22,"2,680.00 ",260000,Human Resources
5446096,ISW CSC Limited,Childrens Services,Children's Services,Living With Formal Support,18/01/22,"2,140.00 ",260000,Human Resources
5446103,ISW CSC Limited,Childrens Services,Children's Services,Living With Formal Support,18/01/22,"1,880.00 ",260000,Human Resources
5446111,ISW CSC Limited,Childrens Services,Children's Services,Living With Formal Support,18/01/22,"2,320.00 ",260000,Human Resources
5446113,ISW CSC Limited,Childrens Services,Children's Services,Living With Formal Support,18/01/22,"2,320.00 ",260000,Human Resources
5446101,ISW CSC Limited,Childrens Services,Children's Services,Living With Formal Support,18/01/22,"2,420.00 ",260000,Human Resources
5442680,G2V Recruitment Group Limited t/a Vivid Resourcing,Place,Growth,Agency Staff,18/01/22,"2,500.00 ",280000,Legal Services
5446063,0161 Project,Childrens Services,Children's Services,"Childrens Allowances (Weekly,Xmas,Festive,Clothing)",18/01/22,"3,150.00 ",171011,Education
5443737,Paramount Children's Services,Childrens Services,Children's Services,Childrens Homes Outside Local Authority Fees,18/01/22,"29,980.00 ",321018,Social Community Care Supplies & Services
5444869,Ashton-under-Lyne Brass Band,Corporate Costs,Corporate Costs,Event Related Activity,18/01/22,650.00 ,-999999,Unclassifiable
5446073,TPR Care Services Ltd,Childrens Services,Children's Services,Living With Formal Support,18/01/22,"1,229.20 ",321100,Social Community Care Supplies & Services - Children
5446075,TPR Care Services Ltd,Childrens Services,Children's Services,Living With Formal Support,18/01/22,"1,544.20 ",321100,Social Community Care Supplies & Services - Children
5446071,TPR Care Services Ltd,Childrens Services,Children's Services,Living With Formal Support,18/01/22,"1,604.92 ",321100,Social Community Care Supplies & Services - Children
5445670,L & R ROADLINES LIMITED,Engineers Client,Director of Place,Road Marking Works,18/01/22,"1,501.05 ",391411,"Works - Construction, Repair & Maintenance"
5445670,L & R ROADLINES LIMITED,(blank),(blank),Highway Construction,18/01/22,"1,121.36 ",391411,"Works - Construction, Repair & Maintenance"
5445670,L & R ROADLINES LIMITED,Operations and Neighbourhoods,Operations and Neighbourhoods,Engineers Works,18/01/22,284.33 ,391411,"Works - Construction, Repair & Maintenance"
5445205,L & R ROADLINES LIMITED,(blank),(blank),Other Works,18/01/22,"1,123.96 ",391411,"Works - Construction, Repair & Maintenance"
5444038,PAT HIGGINS LTD,Governance,Governance,Miscellaneous Expenses,18/01/22,"11,000.00 ",190000,Facilities & Management Services
5442431,TIPTOES CHILD THERAPY SERVICES (LTD),Childrens Services,Children's Services,Professional Consultancy Services,18/01/22,580.00 ,321100,Social Community Care Supplies & Services - Children
5444600,PERSON CENTRED CARE SERVICES LIMITED,Adult Social Care,Adults,Homecare Fees,18/01/22,"1,315.35 ",310000,Healthcare
5445945,JENOPTIK TRAFFIC SOLUTIONS UK LTD,Operations and Neighbourhoods,Operations and Neighbourhoods,Fees,18/01/22,"2,807.00 ",350000,Street & Traffic Management
5443891,QUEST MEDIA NETWORK LTD,Policy and Communications,Governance,"Marketing, Publicity and Recruitment",18/01/22,575.00 ,-999999,Unclassifiable
5445015,KENT COUNTY COUNCIL,Adult Social Care,Adults,Professional Services,18/01/22,580.68 ,400000,Non 3rd Party spend  
5412262,GREATER MANCHESTER COMBINED AUTHORITY,Operations and Neighbourhoods,Operations and Neighbourhoods,Waste Levy - Domestic Waste Disposal Costs,18/01/22,"1,253,000.00 ",-999999,Unclassifiable
5444736,STAMFORD CARS UK LTD,Education,Children's Services,Transport Of Post 16 Pupils,18/01/22,780.00 ,361510,Public Transport
5444752,STAMFORD CARS UK LTD,Education,Children's Services,Transport Of Pupils,18/01/22,780.00 ,361510,Public Transport
5446019,Pickering Psychology Services Limited,Childrens Services,Children's Services,Professional Child Services,19/01/22,791.59 ,280000,Legal Services
5446081,ISW CSC Limited,Childrens Services,Children's Services,Living With Formal Support,19/01/22,"2,500.00 ",260000,Human Resources
5446081,ISW CSC Limited,Childrens Services,Children's Services,Semi independent - Weekly Living Allowances,19/01/22,117.80 ,260000,Human Resources
5446086,ISW CSC Limited,Childrens Services,Children's Services,Living With Formal Support,19/01/22,"2,500.00 ",260000,Human Resources
5446086,ISW CSC Limited,Childrens Services,Children's Services,Semi independent - Weekly Living Allowances,19/01/22,117.80 ,260000,Human Resources
5446088,ISW CSC Limited,Childrens Services,Children's Services,Living With Formal Support,19/01/22,"2,500.00 ",260000,Human Resources
5446088,ISW CSC Limited,Childrens Services,Children's Services,Semi independent - Weekly Living Allowances,19/01/22,117.80 ,260000,Human Resources
5446094,ISW CSC Limited,Childrens Services,Children's Services,Living With Formal Support,19/01/22,"2,320.00 ",260000,Human Resources
5446082,ISW CSC Limited,Childrens Services,Children's Services,Living With Formal Support,19/01/22,"2,140.00 ",260000,Human Resources
5446082,ISW CSC Limited,Childrens Services,Children's Services,Semi independent - Weekly Living Allowances,19/01/22,117.80 ,260000,Human Resources
5446083,ISW CSC Limited,Childrens Services,Children's Services,Living With Formal Support,19/01/22,"1,960.00 ",260000,Human Resources
5446089,ISW CSC Limited,Childrens Services,Children's Services,Living With Formal Support,19/01/22,"2,140.00 ",260000,Human Resources
5446213,ISW CSC Limited,Childrens Services,Children's Services,Living With Formal Support,19/01/22,"2,500.00 ",260000,Human Resources
5446213,ISW CSC Limited,Childrens Services,Children's Services,Semi independent - Weekly Living Allowances,19/01/22,647.90 ,260000,Human Resources
5446080,ISW CSC Limited,Childrens Services,Children's Services,Living With Formal Support,19/01/22,"2,500.00 ",260000,Human Resources
5446080,ISW CSC Limited,Childrens Services,Children's Services,Semi independent - Weekly Living Allowances,19/01/22,117.80 ,260000,Human Resources
5446087,ISW CSC Limited,Childrens Services,Children's Services,Living With Formal Support,19/01/22,"2,680.00 ",260000,Human Resources
5446087,ISW CSC Limited,Childrens Services,Children's Services,Semi independent - Weekly Living Allowances,19/01/22,117.80 ,260000,Human Resources
5446099,ISW CSC Limited,Childrens Services,Children's Services,Living With Formal Support,19/01/22,"1,980.00 ",260000,Human Resources
5446097,ISW CSC Limited,Childrens Services,Children's Services,Living With Formal Support,19/01/22,"1,960.00 ",260000,Human Resources
5446112,ISW CSC Limited,Childrens Services,Children's Services,Living With Formal Support,19/01/22,"1,960.00 ",260000,Human Resources
5446079,ISW CSC Limited,Childrens Services,Children's Services,Living With Formal Support,19/01/22,"1,880.00 ",260000,Human Resources
5446092,ISW CSC Limited,Childrens Services,Children's Services,Living With Formal Support,19/01/22,"2,320.00 ",260000,Human Resources
5443850,YOUNG PEOPLE FIRST LIMITED,Childrens Services,Children's Services,Living With Formal Support,19/01/22,"1,225.00 ",321100,Social Community Care Supplies & Services - Children
5443842,YOUNG PEOPLE FIRST LIMITED,Childrens Services,Children's Services,Living With Formal Support,19/01/22,850.00 ,321100,Social Community Care Supplies & Services - Children
5443844,YOUNG PEOPLE FIRST LIMITED,Childrens Services,Children's Services,Living With Formal Support,19/01/22,850.00 ,321100,Social Community Care Supplies & Services - Children
5443855,YOUNG PEOPLE FIRST LIMITED,Childrens Services,Children's Services,Living With Formal Support,19/01/22,"2,100.00 ",321100,Social Community Care Supplies & Services - Children
5443857,YOUNG PEOPLE FIRST LIMITED,Childrens Services,Children's Services,Living With Formal Support,19/01/22,"2,100.00 ",321100,Social Community Care Supplies & Services - Children
5443851,YOUNG PEOPLE FIRST LIMITED,Childrens Services,Children's Services,Living With Formal Support,19/01/22,"1,225.00 ",321100,Social Community Care Supplies & Services - Children
5443812,Zeno Ltd,Adult Social Care,Adults,Homecare Fees,19/01/22,"10,256.66 ",310000,Healthcare
5443780,KB Extruders Ltd,Operations and Neighbourhoods,Operations and Neighbourhoods,General Materials,19/01/22,"1,830.00 ",-999999,Unclassifiable
5443815,MDS Healthcare Limited,Contingency,Contingency,Protective Clothing,19/01/22,"1,200.00 ",151510,Healthcare
5443868,Nola House Tutoring,Education,Children's Services,Independent School Fees,19/01/22,840.00 ,171011,Education
5443852,Made by Mortals,Adult Social Care,Adults,Voluntary Organisations Fees,19/01/22,"4,975.00 ",-999999,Unclassifiable
5446242,Wellbeing Property Solutions Ltd,Childrens Services,Children's Services,Childrens Homes Outside Local Authority Fees,19/01/22,700.00 ,261000,Human Resources
5446239,Positive Care Solutions Ltd,Childrens Services,Children's Services,Childrens Homes Outside Local Authority Fees,19/01/22,"7,300.00 ",261000,Human Resources
5444579,Access UK Ltd,Adult Social Care,Adults,Computer Software Maintenance Costs,19/01/22,"2,681.12 ",-999999,Unclassifiable
5443814,SURECARE TAMESIDE & OLDHAM,Adult Social Care,Adults,Homecare Fees,19/01/22,"3,493.38 ",111230,Catering
5444010,Connect Care Solutions Limited,Childrens Services,Children's Services,Childrens Homes Outside Local Authority Fees,19/01/22,"38,550.00 ",310000,Healthcare
5443853,BTTLR LIMITED T/A Connecting Hands Healthcare Services,Childrens Services,Children's Services,Childrens Homes Outside Local Authority Fees,19/01/22,"11,300.00 ",-999999,Unclassifiable
5443858,TELEFONICA O2 (UK) LTD,Digital Tameside,Finance & IT,Mobile Telephones,19/01/22,"7,572.00 ",270000,Information Communication Technology
5445899,FUSION CARE,Adult Social Care,Adults,Residential Home Long Stay Fees,19/01/22,"5,570.92 ",321100,Social Community Care Supplies & Services - Children
5444627,COMFORT CALL LIMITED,Adult Social Care,Adults,Homecare Fees,19/01/22,"36,564.76 ",310000,Healthcare
5446357,THE FAMILY UNIT LTD,Childrens Services,Children's Services,Living With Formal Support,19/01/22,"7,428.57 ",321000,Social Community Care Supplies & Services - Adult
5446356,THE FAMILY UNIT LTD,Childrens Services,Children's Services,Living With Formal Support,19/01/22,"7,681.43 ",321000,Social Community Care Supplies & Services - Adult
5443885,SYMOLOGY LIMITED,Operations and Neighbourhoods,Operations and Neighbourhoods,Computer Software,19/01/22,854.79 ,270000,Information Communication Technology
5443837,CITY LIFT SERVICES (NW) LTD,Adult Social Care,Adults,General Equipment Repair & Maintenance,19/01/22,"2,085.00 ",390000,"Works - Construction, Repair & Maintenance"
5443887,Redacted Supplier,Childrens Services,Children's Services,Childrens Homes Outside Local Authority Fees,19/01/22,"12,621.00 ",321100,Social Community Care Supplies & Services - Children
5446314,COMPLETE BACKGROUND SCREENING LTD,People and Workforce Development,Governance,Professional Services,19/01/22,"4,612.50 ",-999999,Unclassifiable
5446313,COMPLETE BACKGROUND SCREENING LTD,People and Workforce Development,Governance,Professional Services,19/01/22,"7,770.50 ",-999999,Unclassifiable
5446312,COMPLETE BACKGROUND SCREENING LTD,People and Workforce Development,Governance,Professional Services,19/01/22,997.50 ,-999999,Unclassifiable
5446311,COMPLETE BACKGROUND SCREENING LTD,People and Workforce Development,Governance,Professional Services,19/01/22,"1,829.00 ",-999999,Unclassifiable
5446211,NPOWER BUSINESS SOLUTIONS,Place,Growth,Electricity,19/01/22,"19,016.16 ",-999999,Unclassifiable
5446212,NPOWER BUSINESS SOLUTIONS,Place,Growth,Electricity,19/01/22,552.00 ,-999999,Unclassifiable
5446210,NPOWER BUSINESS SOLUTIONS,Place,Growth,Electricity,19/01/22,"1,367.28 ",-999999,Unclassifiable
5446209,NPOWER BUSINESS SOLUTIONS,Place,Growth,Electricity,19/01/22,"2,046.91 ",-999999,Unclassifiable
5444562,CARELINE HOMECARE LTD,Adult Social Care,Adults,Homecare Fees,19/01/22,"32,384.44 ",321000,Social Community Care Supplies & Services - Adult
5444558,CARELINE HOMECARE LTD,Adult Social Care,Adults,Homecare Fees,19/01/22,"23,794.92 ",321000,Social Community Care Supplies & Services - Adult
5444621,CARELINE HOMECARE LTD,Adult Social Care,Adults,Homecare Fees,19/01/22,"1,174.59 ",321000,Social Community Care Supplies & Services - Adult
5443859,CARETECH COMMUNITY SERVICES LIMITED,Adult Social Care,Adults,Nursing Home Long Stay Fees,19/01/22,"5,423.45 ",321000,Social Community Care Supplies & Services - Adult
5443645,CARETECH COMMUNITY SERVICES LIMITED,Adult Social Care,Adults,Residential Home Long Stay Fees,19/01/22,"2,393.51 ",321000,Social Community Care Supplies & Services - Adult
5440104,Redacted Supplier,Digital Tameside,Finance & IT,Professional Services,19/01/22,"1,200.00 ",270000,Information Communication Technology
5443869,Redacted Supplier,Digital Tameside,Finance & IT,Network Maintenance/Rental,19/01/22,"3,050.00 ",270000,Information Communication Technology
5435202,Redacted Supplier,Digital Tameside,Finance & IT,Professional Services,19/01/22,600.00 ,270000,Information Communication Technology
5435211,Redacted Supplier,Digital Tameside,Finance & IT,Security Services,19/01/22,600.00 ,270000,Information Communication Technology
5438056,Redacted Supplier,Digital Tameside,Finance & IT,Professional Services,19/01/22,900.00 ,270000,Information Communication Technology
5436578,Redacted Supplier,Digital Tameside,Finance & IT,Professional Services,19/01/22,"1,000.00 ",270000,Information Communication Technology
5443767,Redacted Supplier,(blank),(blank),Professional Entertainment Services,19/01/22,"2,300.00 ",170000,Education
5445541,FENTONS TAXIS,Education,Children's Services,Transport Of Pupils,19/01/22,"1,365.00 ",360000,Public Transport
5445543,FENTONS TAXIS,Education,Children's Services,Transport Of Pupils,19/01/22,"1,365.00 ",360000,Public Transport
5443764,STOCKPORT CP  SOCIETY,Adult Social Care,Adults,Homecare Fees,19/01/22,"1,795.50 ",321000,Social Community Care Supplies & Services - Adult
5443825,D.A. LANGUAGES LTD,Childrens Services,Children's Services,Professional Interpreter Services,19/01/22,"1,584.00 ",260000,Human Resources
5443883,KILLGERM CHEMICALS LTD,Operations and Neighbourhoods,Operations and Neighbourhoods,Pest Control Equipment,19/01/22,516.00 ,180000,Environmental Services
5443860,ASKEWS  AND HOLTS LIBRARY SERVICES LTD,Operations and Neighbourhoods,Operations and Neighbourhoods,Purchase Books,19/01/22,"2,744.86 ",170000,Education
5443847,ROSS AUTO ENGINEERING LIMITED TRADING AS ROSS CARE,Adult Social Care,Adults,Joint Loans Store Fee,19/01/22,"15,432.29 ",321100,Social Community Care Supplies & Services - Children
5443845,ROSS AUTO ENGINEERING LIMITED TRADING AS ROSS CARE,Adult Social Care,Adults,Joint Loans Store Fee,19/01/22,"137,136.65 ",321100,Social Community Care Supplies & Services - Children
5443861,KONE PLC,Operations and Neighbourhoods,Operations and Neighbourhoods,Miscellaneous Expenses,19/01/22,821.28 ,190000,Facilities & Management Services
5443880,Water Plus,Operations and Neighbourhoods,Operations and Neighbourhoods,Water (Metered and Rates),19/01/22,"1,272.54 ",370000,Utilities
5443880,Water Plus,Place,Growth,Water (Metered and Rates),19/01/22,"1,323.82 ",370000,Utilities
5444011,Redacted Supplier,Digital Tameside,Finance & IT,Computer Hardware Maintenance Costs,20/01/22,"1,328.12 ",270000,Information Communication Technology
5446091,ISW CSC Limited,Childrens Services,Children's Services,Living With Formal Support,20/01/22,"2,420.00 ",260000,Human Resources
5446109,ISW CSC Limited,Childrens Services,Children's Services,Living With Formal Support,20/01/22,"2,320.00 ",260000,Human Resources
5446376,Rossendale Scaffolding & Equipment Hire Ltd t/a Heywood Scaffolding Services,(blank),(blank),External  Consultants,20/01/22,"9,525.65 ",100000,Building Construction Materials
3250847,BURNT TREE GROUP LIMITED,Operations and Neighbourhoods,Operations and Neighbourhoods,Additional Hire,20/01/22,391.64 ,380000,Vehicle Management
3250847,BURNT TREE GROUP LIMITED,Operations and Neighbourhoods,Operations and Neighbourhoods,Sub-contractor Services,20/01/22,408.80 ,380000,Vehicle Management
3250847,DENNIS EAGLE LTD,Transport,Director of Place,Debits Goods Received,20/01/22,"8,023.52 ",380000,Vehicle Management
3250847,DENNIS EAGLE LTD,Operations and Neighbourhoods,Operations and Neighbourhoods,General Materials,20/01/22,"6,126.38 ",380000,Vehicle Management
3250847,F. R. SHARROCK LIMITED,Transport,Director of Place,Debits Goods Received,20/01/22,"1,912.69 ",908001,Public Bodies
3250847,F. R. SHARROCK LIMITED,Operations and Neighbourhoods,Operations and Neighbourhoods,General Materials,20/01/22,394.07 ,908001,Public Bodies
3250847,G B OILS TA CARLTON FUELS,Transport,Director of Place,Diesel Fuel,20/01/22,"11,382.89 ",380000,Vehicle Management
3250847,A & J MOTORSPARES,Transport,Director of Place,Debits Goods Received,20/01/22,22.80 ,380000,Vehicle Management
3250847,A & J MOTORSPARES,Operations and Neighbourhoods,Operations and Neighbourhoods,Building Repairs,20/01/22,540.68 ,380000,Vehicle Management
3250847,A & J MOTORSPARES,Operations and Neighbourhoods,Operations and Neighbourhoods,General Materials,20/01/22,176.47 ,380000,Vehicle Management
3250847,CALIBRATION &CONSULTANCYSERVICES (UK) LTD,Operations and Neighbourhoods,Operations and Neighbourhoods,General Equipment Repair & Maintenance,20/01/22,593.26 ,150000,Consultancy
3250847,TRUCTYRE ATS,Operations and Neighbourhoods,Operations and Neighbourhoods,Tyre Costs,20/01/22,"1,324.69 ",380000,Vehicle Management
3250847,RIVERSIDE TRUCK RENTAL LIMITED,Operations and Neighbourhoods,Operations and Neighbourhoods,Sub-contractor Services,20/01/22,"1,159.64 ",380000,Vehicle Management
3250847,GARIC LTD,Operations and Neighbourhoods,Operations and Neighbourhoods,Additional Hire,20/01/22,"1,375.40 ",-999999,Unclassifiable
3250847,MANTRA LEARNING LIMITED,Operations and Neighbourhoods,Operations and Neighbourhoods,Training Course Costs,20/01/22,"1,445.00 ",260000,Human Resources
3250847,TOLLAND PRECISION ENGINEERING LTD,Operations and Neighbourhoods,Operations and Neighbourhoods,General Equipment Purchase,20/01/22,380.00 ,390000,"Works - Construction, Repair & Maintenance"
3250847,TOLLAND PRECISION ENGINEERING LTD,Operations and Neighbourhoods,Operations and Neighbourhoods,General Materials,20/01/22,142.50 ,390000,"Works - Construction, Repair & Maintenance"
3250847,TOLLAND PRECISION ENGINEERING LTD,Operations and Neighbourhoods,Operations and Neighbourhoods,Sub-contractor Services,20/01/22,175.00 ,390000,"Works - Construction, Repair & Maintenance"
3250847,AIR PRODUCTS PLC,Operations and Neighbourhoods,Operations and Neighbourhoods,General Equipment Repair & Maintenance,20/01/22,646.35 ,370000,Utilities
3250847,C V PARTS,Operations and Neighbourhoods,Operations and Neighbourhoods,General Materials,20/01/22,620.00 ,-999999,Unclassifiable
5444700,Bloom Procurement Services Limited,(blank),(blank),External  Consultants,20/01/22,"13,208.50 ",150000,Consultancy
5445249,Bloom Procurement Services Limited,Place,Growth,Professional Consultancy Services,20/01/22,"7,340.90 ",150000,Consultancy
5444025,SMI Group,Operations and Neighbourhoods,Operations and Neighbourhoods,Protective Clothing,20/01/22,536.71 ,140000,Clothing
5445630,UK Military Mentors Ltd,Operations and Neighbourhoods,Operations and Neighbourhoods,Project Costs,20/01/22,"20,000.00 ",310000,Healthcare
5446285,Fanco Limited t/a 365 Medicare,Adult Social Care,Adults,Homecare Fees,20/01/22,524.65 ,321000,Social Community Care Supplies & Services - Adult
5446289,Fanco Limited t/a 365 Medicare,Adult Social Care,Adults,Homecare Fees,20/01/22,718.89 ,321000,Social Community Care Supplies & Services - Adult
5444005,Pennine Medical Supplies Ltd T/A Pennine Workwear,Operations and Neighbourhoods,Operations and Neighbourhoods,Protective Clothing,20/01/22,902.35 ,MEDICAL,Medical
5444004,Pennine Medical Supplies Ltd T/A Pennine Workwear,Operations and Neighbourhoods,Operations and Neighbourhoods,Protective Clothing,20/01/22,"1,149.80 ",MEDICAL,Medical
5444003,Prestige Adolescent Care & Education Ltd,Childrens Services,Children's Services,Childrens Homes Outside Local Authority Fees,20/01/22,"15,278.66 ",321117,Social Community Care Supplies & Services - Children
5446476,Redacted Supplier,Childrens Services,Children's Services,Legal Fees,20/01/22,600.00 ,280000,Legal Services
5443987,Footsteps A Path To Change 08 Ltd,Childrens Services,Children's Services,Childrens Homes Outside Local Authority Fees,20/01/22,"18,644.95 ",250000,Housing Management
5443998,Redacted Supplier,Education,Children's Services,Professional Services,20/01/22,"1,100.00 ",-999999,Unclassifiable
5444000,Redacted Supplier,Education,Children's Services,Professional Services,20/01/22,550.00 ,-999999,Unclassifiable
5443994,Redacted Supplier,Education,Children's Services,Professional Services,20/01/22,"1,100.00 ",-999999,Unclassifiable
5443996,Redacted Supplier,Education,Children's Services,Professional Services,20/01/22,500.00 ,-999999,Unclassifiable
5443999,Redacted Supplier,Education,Children's Services,Professional Services,20/01/22,500.00 ,-999999,Unclassifiable
5443997,Redacted Supplier,Education,Children's Services,Professional Services,20/01/22,"1,100.00 ",-999999,Unclassifiable
5443961,Trafford Parents Forum Limited,Hosted Services,Hosted Services,Professional Services,20/01/22,"1,200.00 ",-999999,Unclassifiable
5443963,Engage Support LTD,Childrens Services,Children's Services,Living With Formal Support,20/01/22,"9,180.00 ",-999999,Unclassifiable
5445565,AWBURN HOUSE MEDICAL PRACTICE,Population Health,Population Health,Local Enhanced Services,20/01/22,511.00 ,150000,Consultancy
5444006,Timeout Childrens Homes Ltd,Childrens Services,Children's Services,Childrens Homes Outside Local Authority Fees,20/01/22,"17,692.01 ",321117,Social Community Care Supplies & Services - Children
5444002,Timeout Childrens Homes Ltd,Childrens Services,Children's Services,Childrens Homes Outside Local Authority Fees,20/01/22,"17,692.01 ",321117,Social Community Care Supplies & Services - Children
5443978,Point North Brand Co Ltd t/a Michelle Lyons,(blank),(blank),Artwork,20/01/22,360.00 ,-999999,Unclassifiable
5443978,Point North Brand Co Ltd t/a Michelle Lyons,(blank),(blank),Professional Services,20/01/22,360.00 ,-999999,Unclassifiable
5443970,Redacted Supplier,(blank),(blank),Professional Entertainment Services,20/01/22,"3,000.00 ",-999999,Unclassifiable
5444007,One51 ES Plastics (UK) Limited T/A MGB Plastics,Operations and Neighbourhoods,Operations and Neighbourhoods,Purchase Wheeled Bins,20/01/22,"14,336.00 ",182013,Environmental Services
